Department Family,Entity,Date,Expense Type,Expense Area,Supplier,Transaction Number,Amount,VAT Registration Number
Department of Health,East Sussex Hospitals NHS Trust,05/03/2014,SR ROYAL BROMPTON & HAREFIELD,Integrated Care,ROYAL BROMPTON & HAREFIELD NHS FND TRST,0000139253,797.14,
Department of Health,East Sussex Hospitals NHS Trust,05/03/2014,SA-FPC REF FP10S,Cross Site,NHS BUSINESS SERVICES AUTHORITY,0000139271,7725.61,
Department of Health,East Sussex Hospitals NHS Trust,05/03/2014,BLOOD PRODUCTS - NBS OTHER,Integrated Care,NHS BLOOD AND TRANSPLANT (NHSBT),0000139275,1334.12,
Department of Health,East Sussex Hospitals NHS Trust,05/03/2014,BLOOD PRODUCTS - NBS OTHER,Integrated Care,NHS BLOOD AND TRANSPLANT (NHSBT),0000139277,1831.10,
Department of Health,East Sussex Hospitals NHS Trust,05/03/2014,BLOOD PRODUCTS - NBS ST CONTRA,Integrated Care,NHS BLOOD AND TRANSPLANT (NHSBT),0000139278,91579.04,
Department of Health,East Sussex Hospitals NHS Trust,05/03/2014,SR SUSSEX PARTNERSHIP FT,Commercial,SUSSEX PARTNERSHIP NHS FOUNDATION TRUST,0000139291,3967.36,
Department of Health,East Sussex Hospitals NHS Trust,05/03/2014,SR SUSSEX PARTNERSHIP FT,Commercial,SUSSEX PARTNERSHIP NHS FOUNDATION TRUST,0000139292,2148.72,
Department of Health,East Sussex Hospitals NHS Trust,05/03/2014,SR SUSSEX PARTNERSHIP FT,Commercial,SUSSEX PARTNERSHIP NHS FOUNDATION TRUST,0000139293,3874.70,
Department of Health,East Sussex Hospitals NHS Trust,05/03/2014,SR SHEFFIELD TEACHING HOSP,Integrated Care,SHEFFIELD TEACHING HOSP NHS FOUNDATION T,0000139294,2024.80,
Department of Health,East Sussex Hospitals NHS Trust,05/03/2014,SR OXFORD UNIVERSITY HOSP RTH,Integrated Care,OXFORD UNIVERSITY HOSPITALS NHS TRUST,0000139295,1008.10,
Department of Health,East Sussex Hospitals NHS Trust,05/03/2014,AGENCY ADMIN & CLERICAL,Corporate Services,VENN GROUP LTD,0000295912,1457.85,
Department of Health,East Sussex Hospitals NHS Trust,05/03/2014,AGENCY SPECIALIST REG,Urgent Care,RICHMOND MEDICAL AGENCY LTD,0000295916,2769.00,
Department of Health,East Sussex Hospitals NHS Trust,05/03/2014,AGENCY TECHNICIAN,Planned Care,THE PLACEMENT GROUP,0000295937,1474.66,
Department of Health,East Sussex Hospitals NHS Trust,05/03/2014,AGENCY TECHNICIAN,Urgent Care,DYNAMIC FUTURES CORPORATION LTD,0000295946,1665.00,
Department of Health,East Sussex Hospitals NHS Trust,05/03/2014,AGENCY TECHNICIAN,Urgent Care,DYNAMIC FUTURES CORPORATION LTD,0000295947,1665.00,
Department of Health,East Sussex Hospitals NHS Trust,05/03/2014,AGENCY TECHNICIAN,Urgent Care,DYNAMIC FUTURES CORPORATION LTD,0000295948,3330.00,
Department of Health,East Sussex Hospitals NHS Trust,05/03/2014,AGENCY NURSE - QUALIFIED,Integrated Care,MAYDAY HEALTHCARE PLC,0000295953,1148.48,
Department of Health,East Sussex Hospitals NHS Trust,05/03/2014,AGENCY NURSE - QUALIFIED,Integrated Care,MAYDAY HEALTHCARE PLC,0000295954,1030.08,
Department of Health,East Sussex Hospitals NHS Trust,05/03/2014,AGENCY NURSE - QUALIFIED,Integrated Care,MAYDAY HEALTHCARE PLC,0000295955,618.57,
Department of Health,East Sussex Hospitals NHS Trust,05/03/2014,AGENCY NURSE - QUALIFIED,Integrated Care,MAYDAY HEALTHCARE PLC,0000295956,1192.81,
Department of Health,East Sussex Hospitals NHS Trust,05/03/2014,AGENCY NURSE - QUALIFIED,Urgent Care,MAYDAY HEALTHCARE PLC,0000295958,570.29,
Department of Health,East Sussex Hospitals NHS Trust,05/03/2014,AGENCY NURSE - QUALIFIED,Urgent Care,MAYDAY HEALTHCARE PLC,0000295969,541.95,
Department of Health,East Sussex Hospitals NHS Trust,05/03/2014,AGENCY CONSULTANT,Planned Care,TLC - THE LOCUM CONSULTANCY,0000295985,3560.70,
Department of Health,East Sussex Hospitals NHS Trust,05/03/2014,AGENCY TECHNICIAN,Urgent Care,DYNAMIC FUTURES CORPORATION LTD,0000295994,1665.00,
Department of Health,East Sussex Hospitals NHS Trust,05/03/2014,AGENCY SPECIALIST REG,Urgent Care,RICHMOND MEDICAL AGENCY LTD,0000296004,5811.00,
Department of Health,East Sussex Hospitals NHS Trust,05/03/2014,ENGINEERING MATERIALS,Commercial,CAMFIL FARR,0000623860,965.15,
Department of Health,East Sussex Hospitals NHS Trust,05/03/2014,CONTRACT ENGINEERING MAINT,Commercial,COCHRAN LTD,0000623879,3938.00,
Department of Health,East Sussex Hospitals NHS Trust,05/03/2014,PURICORE,Planned Care,PURICORE ENDOSCOPY,0000623889,14397.50,
Department of Health,East Sussex Hospitals NHS Trust,05/03/2014,PATS APPL - FOOTWARE,Integrated Care,KENWARD ORTHOPAEDICS LTD,0000757533,502.14,
Department of Health,East Sussex Hospitals NHS Trust,05/03/2014,STOCK-ASCRIBE CONQUEST,Pharmacy Stock,BAYER PLC,0001226295,26220.00,
Department of Health,East Sussex Hospitals NHS Trust,05/03/2014,STOCK-ASCRIBE CONQUEST,Pharmacy Stock,BOEHRINGER INGELHEIM LTD,0001226298,3456.00,
Department of Health,East Sussex Hospitals NHS Trust,05/03/2014,STOCK-ASCRIBE CONQUEST,Pharmacy Stock,BOEHRINGER INGELHEIM LTD,0001226299,2160.00,
Department of Health,East Sussex Hospitals NHS Trust,05/03/2014,STOCK-ASCRIBE CONQUEST,Pharmacy Stock,CELGENE LTD,0001226300,9359.76,
Department of Health,East Sussex Hospitals NHS Trust,05/03/2014,STOCK-ASCRIBE CONQUEST,Pharmacy Stock,GRIFOLS UK LTD,0001226301,1700.00,
Department of Health,East Sussex Hospitals NHS Trust,05/03/2014,STOCK-ASCRIBE CONQUEST,Pharmacy Stock,ALCON EYE CARE UK LTD,0001226306,1152.00,
Department of Health,East Sussex Hospitals NHS Trust,05/03/2014,STOCK-ASCRIBE CONQUEST,Pharmacy Stock,CSL BEHRING,0001226307,1395.00,
Department of Health,East Sussex Hospitals NHS Trust,05/03/2014,STOCK-ASCRIBE CONQUEST,Pharmacy Stock,NOVARTIS PHARMACEUTICALS UK LTD,0001226308,4032.00,
Department of Health,East Sussex Hospitals NHS Trust,05/03/2014,STOCK-ASCRIBE CONQUEST,Pharmacy Stock,PHOENIX HEALTHCARE DISTRIBUTION LTD,0001226310,1082.02,
Department of Health,East Sussex Hospitals NHS Trust,05/03/2014,STOCK-ASCRIBE CONQUEST,Pharmacy Stock,PHOENIX HEALTHCARE DISTRIBUTION LTD,0001226311,1899.44,
Department of Health,East Sussex Hospitals NHS Trust,05/03/2014,STOCK-ASCRIBE CONQUEST,Pharmacy Stock,HEALTHCARE AT HOME LTD,0001226342,2063.52,
Department of Health,East Sussex Hospitals NHS Trust,05/03/2014,STOCK-ASCRIBE CONQUEST,Pharmacy Stock,HOSPIRA UK LIMITED,0001226344,552.00,
Department of Health,East Sussex Hospitals NHS Trust,05/03/2014,STOCK-ASCRIBE CONQUEST,Pharmacy Stock,AMGEN LTD,0001226347,5285.16,
Department of Health,East Sussex Hospitals NHS Trust,05/03/2014,STOCK-ASCRIBE CONQUEST,Pharmacy Stock,ELI LILLY & CO LTD,0001226348,5184.00,
Department of Health,East Sussex Hospitals NHS Trust,05/03/2014,STOCK-ASCRIBE CONQUEST,Pharmacy Stock,NOVARTIS PHARMACEUTICALS UK LTD,0001226351,2686.38,
Department of Health,East Sussex Hospitals NHS Trust,05/03/2014,STOCK-ASCRIBE CONQUEST,Pharmacy Stock,JANSSEN-CILAG LTD,0001226353,19080.00,
Department of Health,East Sussex Hospitals NHS Trust,05/03/2014,STOCK-ASCRIBE CONQUEST,Pharmacy Stock,JANSSEN-CILAG LTD,0001226354,3659.42,
Department of Health,East Sussex Hospitals NHS Trust,05/03/2014,STOCK-ASCRIBE CONQUEST,Pharmacy Stock,BAXTER HEALTHCARE (BERKSHIRE)LTD,0001226359,1680.00,
Department of Health,East Sussex Hospitals NHS Trust,05/03/2014,STOCK-ASCRIBE CONQUEST,Pharmacy Stock,ROCHE PRODUCTS LTD,0001226360,34924.20,
Department of Health,East Sussex Hospitals NHS Trust,05/03/2014,STOCK-ASCRIBE CONQUEST,Pharmacy Stock,HEALTHCARE AT HOME LTD,0001226363,715.00,
Department of Health,East Sussex Hospitals NHS Trust,05/03/2014,STOCK-ASCRIBE CONQUEST,Pharmacy Stock,HEALTHCARE AT HOME LTD,0001226364,704.28,
Department of Health,East Sussex Hospitals NHS Trust,05/03/2014,STOCK-ASCRIBE CONQUEST,Pharmacy Stock,HEALTHCARE AT HOME LTD,0001226365,704.28,
Department of Health,East Sussex Hospitals NHS Trust,05/03/2014,STOCK-ASCRIBE CONQUEST,Pharmacy Stock,HEALTHCARE AT HOME LTD,0001226366,746.95,
Department of Health,East Sussex Hospitals NHS Trust,05/03/2014,STOCK-ASCRIBE CONQUEST,Pharmacy Stock,HEALTHCARE AT HOME LTD,0001226367,746.95,
Department of Health,East Sussex Hospitals NHS Trust,05/03/2014,STOCK-ASCRIBE CONQUEST,Pharmacy Stock,HEALTHCARE AT HOME LTD,0001226368,1912.00,
Department of Health,East Sussex Hospitals NHS Trust,05/03/2014,STOCK-ASCRIBE CONQUEST,Pharmacy Stock,HEALTHCARE AT HOME LTD,0001226369,715.00,
Department of Health,East Sussex Hospitals NHS Trust,05/03/2014,STOCK-ASCRIBE CONQUEST,Pharmacy Stock,HEALTHCARE AT HOME LTD,0001226370,1912.00,
Department of Health,East Sussex Hospitals NHS Trust,05/03/2014,STOCK-ASCRIBE CONQUEST,Pharmacy Stock,HEALTHCARE AT HOME LTD,0001226371,715.00,
Department of Health,East Sussex Hospitals NHS Trust,05/03/2014,STOCK-ASCRIBE CONQUEST,Pharmacy Stock,HEALTHCARE AT HOME LTD,0001226372,1408.56,
Department of Health,East Sussex Hospitals NHS Trust,05/03/2014,STOCK-ASCRIBE CONQUEST,Pharmacy Stock,HEALTHCARE AT HOME LTD,0001226373,1408.56,
Department of Health,East Sussex Hospitals NHS Trust,05/03/2014,STOCK-ASCRIBE CONQUEST,Pharmacy Stock,HEALTHCARE AT HOME LTD,0001226374,654.00,
Department of Health,East Sussex Hospitals NHS Trust,05/03/2014,STOCK-ASCRIBE CONQUEST,Pharmacy Stock,HEALTHCARE AT HOME LTD,0001226375,1408.56,
Department of Health,East Sussex Hospitals NHS Trust,05/03/2014,STOCK-ASCRIBE CONQUEST,Pharmacy Stock,HEALTHCARE AT HOME LTD,0001226376,746.95,
Department of Health,East Sussex Hospitals NHS Trust,05/03/2014,STOCK-ASCRIBE CONQUEST,Pharmacy Stock,HEALTHCARE AT HOME LTD,0001226377,654.00,
Department of Health,East Sussex Hospitals NHS Trust,05/03/2014,STOCK-ASCRIBE CONQUEST,Pharmacy Stock,HEALTHCARE AT HOME LTD,0001226378,704.28,
Department of Health,East Sussex Hospitals NHS Trust,05/03/2014,STOCK-ASCRIBE CONQUEST,Pharmacy Stock,HEALTHCARE AT HOME LTD,0001226379,1962.00,
Department of Health,East Sussex Hospitals NHS Trust,05/03/2014,STOCK-ASCRIBE CONQUEST,Pharmacy Stock,HEALTHCARE AT HOME LTD,0001226380,1741.25,
Department of Health,East Sussex Hospitals NHS Trust,05/03/2014,STOCK-ASCRIBE CONQUEST,Pharmacy Stock,HEALTHCARE AT HOME LTD,0001226381,1382.15,
Department of Health,East Sussex Hospitals NHS Trust,05/03/2014,STOCK-ASCRIBE CONQUEST,Pharmacy Stock,HEALTHCARE AT HOME LTD,0001226382,1408.56,
Department of Health,East Sussex Hospitals NHS Trust,05/03/2014,STOCK-ASCRIBE CONQUEST,Pharmacy Stock,HEALTHCARE AT HOME LTD,0001226383,1733.76,
Department of Health,East Sussex Hospitals NHS Trust,05/03/2014,STOCK-ASCRIBE CONQUEST,Pharmacy Stock,HEALTHCARE AT HOME LTD,0001226385,1789.88,
Department of Health,East Sussex Hospitals NHS Trust,05/03/2014,STOCK-ASCRIBE CONQUEST,Pharmacy Stock,ALLIANCE HEALTHCARE (DISTRIBUTION) LTD,0001226424,1002.94,
Department of Health,East Sussex Hospitals NHS Trust,05/03/2014,STOCK-ASCRIBE CONQUEST,Pharmacy Stock,UNIDRUG DISTRIBUTION GROUP LTD,0001226428,589.07,
Department of Health,East Sussex Hospitals NHS Trust,05/03/2014,STOCK-ASCRIBE CONQUEST,Pharmacy Stock,BAXTER HEALTHCARE (BERKSHIRE)LTD,0001226429,3775.68,
Department of Health,East Sussex Hospitals NHS Trust,05/03/2014,STOCK-ASCRIBE CONQUEST,Pharmacy Stock,ALLIANCE HEALTHCARE (DISTRIBUTION) LTD,0001226432,819.81,
Department of Health,East Sussex Hospitals NHS Trust,05/03/2014,STOCK-ASCRIBE CONQUEST,Pharmacy Stock,ALLIANCE HEALTHCARE (DISTRIBUTION) LTD,0001226433,629.42,
Department of Health,East Sussex Hospitals NHS Trust,05/03/2014,STOCK-ASCRIBE CONQUEST,Pharmacy Stock,ALLIANCE HEALTHCARE (DISTRIBUTION) LTD,0001226434,2851.43,
Department of Health,East Sussex Hospitals NHS Trust,05/03/2014,STOCK-ASCRIBE CONQUEST,Pharmacy Stock,ALLIANCE HEALTHCARE (DISTRIBUTION) LTD,0001226436,1481.15,
Department of Health,East Sussex Hospitals NHS Trust,05/03/2014,STOCK-ASCRIBE CONQUEST,Pharmacy Stock,ALLIANCE HEALTHCARE (DISTRIBUTION) LTD,0001226439,1021.48,
Department of Health,East Sussex Hospitals NHS Trust,05/03/2014,STOCK-ASCRIBE CONQUEST,Pharmacy Stock,ALLIANCE HEALTHCARE (DISTRIBUTION) LTD,0001226441,1488.00,
Department of Health,East Sussex Hospitals NHS Trust,05/03/2014,STOCK-ASCRIBE CONQUEST,Pharmacy Stock,ALLIANCE HEALTHCARE (DISTRIBUTION) LTD,0001226445,604.29,
Department of Health,East Sussex Hospitals NHS Trust,05/03/2014,STOCK-ASCRIBE CONQUEST,Pharmacy Stock,ALLIANCE HEALTHCARE (DISTRIBUTION) LTD,0001226446,1323.29,
Department of Health,East Sussex Hospitals NHS Trust,05/03/2014,STOCK-ASCRIBE CONQUEST,Pharmacy Stock,ALLIANCE HEALTHCARE (DISTRIBUTION) LTD,0001226447,3720.00,
Department of Health,East Sussex Hospitals NHS Trust,05/03/2014,STOCK-ASCRIBE CONQUEST,Pharmacy Stock,ALLIANCE HEALTHCARE (DISTRIBUTION) LTD,0001226448,1183.71,
Department of Health,East Sussex Hospitals NHS Trust,05/03/2014,STOCK-ASCRIBE CONQUEST,Pharmacy Stock,ALLIANCE HEALTHCARE (DISTRIBUTION) LTD,0001226450,3720.00,
Department of Health,East Sussex Hospitals NHS Trust,05/03/2014,STOCK-ASCRIBE CONQUEST,Pharmacy Stock,ALLIANCE HEALTHCARE (DISTRIBUTION) LTD,0001226453,1092.31,
Department of Health,East Sussex Hospitals NHS Trust,05/03/2014,STOCK-ASCRIBE CONQUEST,Pharmacy Stock,HEALTHCARE PRODUCT SERVICES,0001226455,2599.20,
Department of Health,East Sussex Hospitals NHS Trust,05/03/2014,STOCK-ASCRIBE CONQUEST,Pharmacy Stock,CELGENE LTD,0001226456,11076.00,
Department of Health,East Sussex Hospitals NHS Trust,05/03/2014,STOCK-ASCRIBE CONQUEST,Pharmacy Stock,HOSPIRA UK LIMITED,0001226459,550.56,
Department of Health,East Sussex Hospitals NHS Trust,05/03/2014,STOCK-ASCRIBE CONQUEST,Pharmacy Stock,IDIS LTD,0001226462,1402.32,
Department of Health,East Sussex Hospitals NHS Trust,05/03/2014,STOCK-ASCRIBE CONQUEST,Pharmacy Stock,NOVARTIS PHARMACEUTICALS UK LTD,0001226463,32061.60,
Department of Health,East Sussex Hospitals NHS Trust,05/03/2014,STOCK-ASCRIBE CONQUEST,Pharmacy Stock,ALLIANCE HEALTHCARE (DISTRIBUTION) LTD,0001226465,2675.20,
Department of Health,East Sussex Hospitals NHS Trust,05/03/2014,STOCK-ASCRIBE CONQUEST,Pharmacy Stock,ALLIANCE HEALTHCARE (DISTRIBUTION) LTD,0001226468,777.60,
Department of Health,East Sussex Hospitals NHS Trust,05/03/2014,STOCK-ASCRIBE CONQUEST,Pharmacy Stock,ALLIANCE HEALTHCARE (DISTRIBUTION) LTD,0001226469,523.95,
Department of Health,East Sussex Hospitals NHS Trust,05/03/2014,STOCK-ASCRIBE CONQUEST,Pharmacy Stock,JANSSEN-CILAG LTD,0001226681,16446.38,
Department of Health,East Sussex Hospitals NHS Trust,05/03/2014,STOCK-ASCRIBE CONQUEST,Pharmacy Stock,ALCURA UK LTD,0001226710,5206.17,
Department of Health,East Sussex Hospitals NHS Trust,05/03/2014,STOCK-ASCRIBE CONQUEST,Pharmacy Stock,ALCURA UK LTD,0001226711,1757.39,
Department of Health,East Sussex Hospitals NHS Trust,05/03/2014,STOCK-ASCRIBE CONQUEST,Pharmacy Stock,ALCURA UK LTD,0001226712,5212.92,
Department of Health,East Sussex Hospitals NHS Trust,05/03/2014,STOCK-ASCRIBE CONQUEST,Pharmacy Stock,ALCURA UK LTD,0001226713,3703.00,
Department of Health,East Sussex Hospitals NHS Trust,05/03/2014,STOCK-ASCRIBE CONQUEST,Pharmacy Stock,ALCURA UK LTD,0001226714,1642.43,
Department of Health,East Sussex Hospitals NHS Trust,05/03/2014,STOCK-ASCRIBE CONQUEST,Pharmacy Stock,ALCURA UK LTD,0001226715,5212.92,
Department of Health,East Sussex Hospitals NHS Trust,05/03/2014,STOCK-ASCRIBE CONQUEST,Pharmacy Stock,ALCURA UK LTD,0001226716,4073.20,
Department of Health,East Sussex Hospitals NHS Trust,05/03/2014,STOCK-ASCRIBE CONQUEST,Pharmacy Stock,ALCURA UK LTD,0001226717,2626.32,
Department of Health,East Sussex Hospitals NHS Trust,05/03/2014,STOCK-ASCRIBE CONQUEST,Pharmacy Stock,ALCURA UK LTD,0001226718,837.73,
Department of Health,East Sussex Hospitals NHS Trust,05/03/2014,STOCK-ASCRIBE CONQUEST,Pharmacy Stock,NOVARTIS PHARMACEUTICALS UK LTD,0001226724,1254.10,
Department of Health,East Sussex Hospitals NHS Trust,05/03/2014,STOCK-ASCRIBE CONQUEST,Pharmacy Stock,NOVARTIS PHARMACEUTICALS UK LTD,0001226737,5504.92,
Department of Health,East Sussex Hospitals NHS Trust,05/03/2014,STOCK-ASCRIBE CONQUEST,Pharmacy Stock,ALLIANCE HEALTHCARE (DISTRIBUTION) LTD,0001226775,4092.84,
Department of Health,East Sussex Hospitals NHS Trust,05/03/2014,STOCK-ASCRIBE CONQUEST,Pharmacy Stock,BIO PRODUCTS LABORATORY,0001226782,1702.25,
Department of Health,East Sussex Hospitals NHS Trust,05/03/2014,STOCK-ASCRIBE CONQUEST,Pharmacy Stock,ROCHE PRODUCTS LTD,0001226785,2874.00,
Department of Health,East Sussex Hospitals NHS Trust,05/03/2014,STOCK-ASCRIBE CONQUEST,Pharmacy Stock,ROCHE PRODUCTS LTD,0001226786,7311.12,
Department of Health,East Sussex Hospitals NHS Trust,05/03/2014,STOCK-ASCRIBE CONQUEST,Pharmacy Stock,HEALTHCARE AT HOME LTD,0001226789,687.84,
Department of Health,East Sussex Hospitals NHS Trust,05/03/2014,STOCK-ASCRIBE CONQUEST,Pharmacy Stock,HEALTHCARE AT HOME LTD,0001226790,715.00,
Department of Health,East Sussex Hospitals NHS Trust,05/03/2014,STOCK-ASCRIBE CONQUEST,Pharmacy Stock,HEALTHCARE AT HOME LTD,0001226793,746.95,
Department of Health,East Sussex Hospitals NHS Trust,05/03/2014,STOCK-ASCRIBE CONQUEST,Pharmacy Stock,HEALTHCARE AT HOME LTD,0001226794,704.28,
Department of Health,East Sussex Hospitals NHS Trust,05/03/2014,STOCK-ASCRIBE CONQUEST,Pharmacy Stock,HEALTHCARE AT HOME LTD,0001226795,715.00,
Department of Health,East Sussex Hospitals NHS Trust,05/03/2014,STOCK-ASCRIBE CONQUEST,Pharmacy Stock,HEALTHCARE AT HOME LTD,0001226796,1430.00,
Department of Health,East Sussex Hospitals NHS Trust,05/03/2014,STOCK-ASCRIBE CONQUEST,Pharmacy Stock,HEALTHCARE AT HOME LTD,0001226797,1408.56,
Department of Health,East Sussex Hospitals NHS Trust,05/03/2014,STOCK-ASCRIBE CONQUEST,Pharmacy Stock,HEALTHCARE AT HOME LTD,0001226798,2817.12,
Department of Health,East Sussex Hospitals NHS Trust,05/03/2014,STOCK-ASCRIBE CONQUEST,Pharmacy Stock,HEALTHCARE AT HOME LTD,0001226799,2817.12,
Department of Health,East Sussex Hospitals NHS Trust,05/03/2014,STOCK-ASCRIBE CONQUEST,Pharmacy Stock,HEALTHCARE AT HOME LTD,0001226808,1408.56,
Department of Health,East Sussex Hospitals NHS Trust,05/03/2014,STOCK-ASCRIBE CONQUEST,Pharmacy Stock,HEALTHCARE AT HOME LTD,0001226816,1408.56,
Department of Health,East Sussex Hospitals NHS Trust,05/03/2014,STOCK-ASCRIBE CONQUEST,Pharmacy Stock,HEALTHCARE AT HOME LTD,0001226818,1340.10,
Department of Health,East Sussex Hospitals NHS Trust,05/03/2014,STOCK-ASCRIBE CONQUEST,Pharmacy Stock,HEALTHCARE AT HOME LTD,0001226819,1408.56,
Department of Health,East Sussex Hospitals NHS Trust,05/03/2014,STOCK-ASCRIBE CONQUEST,Pharmacy Stock,HEALTHCARE AT HOME LTD,0001226820,1408.56,
Department of Health,East Sussex Hospitals NHS Trust,05/03/2014,STOCK-ASCRIBE CONQUEST,Pharmacy Stock,HEALTHCARE AT HOME LTD,0001226821,746.95,
Department of Health,East Sussex Hospitals NHS Trust,05/03/2014,STOCK-ASCRIBE CONQUEST,Pharmacy Stock,HEALTHCARE AT HOME LTD,0001226822,704.28,
Department of Health,East Sussex Hospitals NHS Trust,05/03/2014,STOCK-ASCRIBE CONQUEST,Pharmacy Stock,HEALTHCARE AT HOME LTD,0001226823,715.00,
Department of Health,East Sussex Hospitals NHS Trust,05/03/2014,STOCK-ASCRIBE CONQUEST,Pharmacy Stock,HEALTHCARE AT HOME LTD,0001226824,1430.00,
Department of Health,East Sussex Hospitals NHS Trust,05/03/2014,STOCK-ASCRIBE CONQUEST,Pharmacy Stock,HEALTHCARE AT HOME LTD,0001226825,746.95,
Department of Health,East Sussex Hospitals NHS Trust,05/03/2014,STOCK-ASCRIBE CONQUEST,Pharmacy Stock,HEALTHCARE AT HOME LTD,0001226826,715.00,
Department of Health,East Sussex Hospitals NHS Trust,05/03/2014,STOCK-ASCRIBE CONQUEST,Pharmacy Stock,HEALTHCARE AT HOME LTD,0001226827,715.00,
Department of Health,East Sussex Hospitals NHS Trust,05/03/2014,STOCK-ASCRIBE CONQUEST,Pharmacy Stock,HEALTHCARE AT HOME LTD,0001226828,715.00,
Department of Health,East Sussex Hospitals NHS Trust,05/03/2014,STOCK-ASCRIBE CONQUEST,Pharmacy Stock,HEALTHCARE AT HOME LTD,0001226829,1408.56,
Department of Health,East Sussex Hospitals NHS Trust,05/03/2014,STOCK-ASCRIBE CONQUEST,Pharmacy Stock,HEALTHCARE AT HOME LTD,0001226830,715.00,
Department of Health,East Sussex Hospitals NHS Trust,05/03/2014,STOCK-ASCRIBE CONQUEST,Pharmacy Stock,HEALTHCARE AT HOME LTD,0001226831,746.95,
Department of Health,East Sussex Hospitals NHS Trust,05/03/2014,STOCK-ASCRIBE CONQUEST,Pharmacy Stock,HEALTHCARE AT HOME LTD,0001226832,704.28,
Department of Health,East Sussex Hospitals NHS Trust,05/03/2014,STOCK-ASCRIBE CONQUEST,Pharmacy Stock,HEALTHCARE AT HOME LTD,0001226833,746.95,
Department of Health,East Sussex Hospitals NHS Trust,05/03/2014,STOCK-ASCRIBE CONQUEST,Pharmacy Stock,HEALTHCARE AT HOME LTD,0001226834,746.95,
Department of Health,East Sussex Hospitals NHS Trust,05/03/2014,STOCK-ASCRIBE CONQUEST,Pharmacy Stock,HEALTHCARE AT HOME LTD,0001226835,704.28,
Department of Health,East Sussex Hospitals NHS Trust,05/03/2014,STOCK-ASCRIBE CONQUEST,Pharmacy Stock,HEALTHCARE AT HOME LTD,0001226836,704.28,
Department of Health,East Sussex Hospitals NHS Trust,05/03/2014,STOCK-ASCRIBE CONQUEST,Pharmacy Stock,HEALTHCARE AT HOME LTD,0001226837,1408.56,
Department of Health,East Sussex Hospitals NHS Trust,05/03/2014,STOCK-ASCRIBE CONQUEST,Pharmacy Stock,HEALTHCARE AT HOME LTD,0001226838,1408.56,
Department of Health,East Sussex Hospitals NHS Trust,05/03/2014,STOCK-ASCRIBE CONQUEST,Pharmacy Stock,HEALTHCARE AT HOME LTD,0001226839,2112.84,
Department of Health,East Sussex Hospitals NHS Trust,05/03/2014,STOCK-ASCRIBE CONQUEST,Pharmacy Stock,HEALTHCARE AT HOME LTD,0001226840,654.00,
Department of Health,East Sussex Hospitals NHS Trust,05/03/2014,STOCK-ASCRIBE CONQUEST,Pharmacy Stock,HEALTHCARE AT HOME LTD,0001226841,596.63,
Department of Health,East Sussex Hospitals NHS Trust,05/03/2014,STOCK-ASCRIBE CONQUEST,Pharmacy Stock,HEALTHCARE AT HOME LTD,0001226842,715.00,
Department of Health,East Sussex Hospitals NHS Trust,05/03/2014,STOCK-ASCRIBE CONQUEST,Pharmacy Stock,ALCURA UK LTD,0001226843,715.00,
Department of Health,East Sussex Hospitals NHS Trust,05/03/2014,STOCK-ASCRIBE CONQUEST,Pharmacy Stock,ALCURA UK LTD,0001226844,704.28,
Department of Health,East Sussex Hospitals NHS Trust,05/03/2014,STOCK-ASCRIBE CONQUEST,Pharmacy Stock,ALCURA UK LTD,0001226845,715.00,
Department of Health,East Sussex Hospitals NHS Trust,05/03/2014,STOCK-ASCRIBE CONQUEST,Pharmacy Stock,ALCURA UK LTD,0001226846,715.00,
Department of Health,East Sussex Hospitals NHS Trust,05/03/2014,STOCK-ASCRIBE CONQUEST,Pharmacy Stock,AAH PHARMACEUTICALS LTD,0001226891,591.56,
Department of Health,East Sussex Hospitals NHS Trust,05/03/2014,STOCK-ASCRIBE CONQUEST,Pharmacy Stock,AAH PHARMACEUTICALS LTD,0001226907,627.00,
Department of Health,East Sussex Hospitals NHS Trust,05/03/2014,STOCK-ASCRIBE CONQUEST,Pharmacy Stock,AAH PHARMACEUTICALS LTD,0001226916,1007.04,
Department of Health,East Sussex Hospitals NHS Trust,05/03/2014,STOCK-ASCRIBE CONQUEST,Pharmacy Stock,AAH PHARMACEUTICALS LTD,0001226923,685.37,
Department of Health,East Sussex Hospitals NHS Trust,05/03/2014,STOCK-ASCRIBE CONQUEST,Pharmacy Stock,AAH PHARMACEUTICALS LTD,0001226925,1343.56,
Department of Health,East Sussex Hospitals NHS Trust,05/03/2014,STOCK-ASCRIBE CONQUEST,Pharmacy Stock,AAH PHARMACEUTICALS LTD,0001226930,856.80,
Department of Health,East Sussex Hospitals NHS Trust,05/03/2014,STOCK-ASCRIBE CONQUEST,Pharmacy Stock,AAH PHARMACEUTICALS LTD,0001226934,805.90,
Department of Health,East Sussex Hospitals NHS Trust,05/03/2014,STOCK-ASCRIBE CONQUEST,Pharmacy Stock,AAH PHARMACEUTICALS LTD,0001226935,785.52,
Department of Health,East Sussex Hospitals NHS Trust,05/03/2014,STOCK-ASCRIBE CONQUEST,Pharmacy Stock,AAH PHARMACEUTICALS LTD,0001226939,720.00,
Department of Health,East Sussex Hospitals NHS Trust,05/03/2014,STOCK-ASCRIBE CONQUEST,Pharmacy Stock,AAH PHARMACEUTICALS LTD,0001226943,569.59,
Department of Health,East Sussex Hospitals NHS Trust,05/03/2014,STOCK-ASCRIBE CONQUEST,Pharmacy Stock,AAH PHARMACEUTICALS LTD,0001226947,1037.16,
Department of Health,East Sussex Hospitals NHS Trust,05/03/2014,STOCK-ASCRIBE CONQUEST,Pharmacy Stock,AAH PHARMACEUTICALS LTD,0001226950,635.22,
Department of Health,East Sussex Hospitals NHS Trust,05/03/2014,STOCK-ASCRIBE CONQUEST,Pharmacy Stock,AAH PHARMACEUTICALS LTD,0001226957,631.57,
Department of Health,East Sussex Hospitals NHS Trust,05/03/2014,STOCK-ASCRIBE CONQUEST,Pharmacy Stock,AAH PHARMACEUTICALS LTD,0001226958,607.53,
Department of Health,East Sussex Hospitals NHS Trust,05/03/2014,STOCK-ASCRIBE CONQUEST,Pharmacy Stock,AAH PHARMACEUTICALS LTD,0001226964,856.80,
Department of Health,East Sussex Hospitals NHS Trust,05/03/2014,STOCK-ASCRIBE CONQUEST,Pharmacy Stock,AAH PHARMACEUTICALS LTD,0001226968,805.90,
Department of Health,East Sussex Hospitals NHS Trust,05/03/2014,STOCK-ASCRIBE CONQUEST,Pharmacy Stock,AAH PHARMACEUTICALS LTD,0001226969,1004.34,
Department of Health,East Sussex Hospitals NHS Trust,05/03/2014,STOCK-ASCRIBE CONQUEST,Pharmacy Stock,AAH PHARMACEUTICALS LTD,0001226978,2354.11,
Department of Health,East Sussex Hospitals NHS Trust,05/03/2014,STOCK-ASCRIBE CONQUEST,Pharmacy Stock,AAH PHARMACEUTICALS LTD,0001226987,1418.47,
Department of Health,East Sussex Hospitals NHS Trust,05/03/2014,STOCK-ASCRIBE CONQUEST,Pharmacy Stock,AAH PHARMACEUTICALS LTD,0001226988,3819.24,
Department of Health,East Sussex Hospitals NHS Trust,05/03/2014,STOCK-ASCRIBE CONQUEST,Pharmacy Stock,AAH PHARMACEUTICALS LTD,0001227002,620.57,
Department of Health,East Sussex Hospitals NHS Trust,05/03/2014,STOCK-ASCRIBE CONQUEST,Pharmacy Stock,AAH PHARMACEUTICALS LTD,0001227007,643.70,
Department of Health,East Sussex Hospitals NHS Trust,05/03/2014,STOCK-ASCRIBE CONQUEST,Pharmacy Stock,AAH PHARMACEUTICALS LTD,0001227008,621.94,
Department of Health,East Sussex Hospitals NHS Trust,05/03/2014,STOCK-ASCRIBE CONQUEST,Pharmacy Stock,AAH PHARMACEUTICALS LTD,0001227018,1882.38,
Department of Health,East Sussex Hospitals NHS Trust,05/03/2014,STOCK-ASCRIBE CONQUEST,Pharmacy Stock,AAH PHARMACEUTICALS LTD,0001227024,810.73,
Department of Health,East Sussex Hospitals NHS Trust,05/03/2014,STOCK-ASCRIBE CONQUEST,Pharmacy Stock,AAH PHARMACEUTICALS LTD,0001227026,4095.00,
Department of Health,East Sussex Hospitals NHS Trust,05/03/2014,STOCK-ASCRIBE CONQUEST,Pharmacy Stock,AAH PHARMACEUTICALS LTD,0001227084,808.71,
Department of Health,East Sussex Hospitals NHS Trust,05/03/2014,STOCK-ASCRIBE CONQUEST,Pharmacy Stock,AAH PHARMACEUTICALS LTD,0001227089,508.57,
Department of Health,East Sussex Hospitals NHS Trust,05/03/2014,STOCK-ASCRIBE CONQUEST,Pharmacy Stock,ALLIANCE HEALTHCARE (DISTRIBUTION) LTD,0001227123,3720.00,
Department of Health,East Sussex Hospitals NHS Trust,05/03/2014,STOCK-ASCRIBE CONQUEST,Pharmacy Stock,ALLIANCE HEALTHCARE (DISTRIBUTION) LTD,0001227124,4278.62,
Department of Health,East Sussex Hospitals NHS Trust,05/03/2014,STOCK-ASCRIBE CONQUEST,Pharmacy Stock,ALLIANCE HEALTHCARE (DISTRIBUTION) LTD,0001227129,14500.12,
Department of Health,East Sussex Hospitals NHS Trust,05/03/2014,STOCK-ASCRIBE CONQUEST,Pharmacy Stock,ALLIANCE HEALTHCARE (DISTRIBUTION) LTD,0001227131,3949.73,
Department of Health,East Sussex Hospitals NHS Trust,05/03/2014,STOCK-ASCRIBE CONQUEST,Pharmacy Stock,ALLIANCE HEALTHCARE (DISTRIBUTION) LTD,0001227132,518.40,
Department of Health,East Sussex Hospitals NHS Trust,05/03/2014,STOCK-ASCRIBE CONQUEST,Pharmacy Stock,ALLIANCE HEALTHCARE (DISTRIBUTION) LTD,0001227133,820.87,
Department of Health,East Sussex Hospitals NHS Trust,05/03/2014,STOCK-ASCRIBE CONQUEST,Pharmacy Stock,ALLIANCE HEALTHCARE (DISTRIBUTION) LTD,0001227138,1437.74,
Department of Health,East Sussex Hospitals NHS Trust,05/03/2014,STOCK-ASCRIBE CONQUEST,Pharmacy Stock,ALLIANCE HEALTHCARE (DISTRIBUTION) LTD,0001227139,777.60,
Department of Health,East Sussex Hospitals NHS Trust,05/03/2014,STOCK-ASCRIBE CONQUEST,Pharmacy Stock,ALLIANCE HEALTHCARE (DISTRIBUTION) LTD,0001227165,-3766.56,
Department of Health,East Sussex Hospitals NHS Trust,05/03/2014,MINOR WORKS - BUILDING,Integrated Care,PD HARRIS LTD (ALAN HARRIS),0001423889,1817.90,
Department of Health,East Sussex Hospitals NHS Trust,05/03/2014,CAPITAL EXPENDITURE,Other Central,PD HARRIS LTD (ALAN HARRIS),0001423890,46085.30,
Department of Health,East Sussex Hospitals NHS Trust,05/03/2014,CAPITAL EXPENDITURE,Other Central,PD HARRIS LTD (ALAN HARRIS),0001423891,3323.58,
Department of Health,East Sussex Hospitals NHS Trust,05/03/2014,AGENCY TECHNICIAN,Urgent Care,ABSOLUTE ACCOUNTING & TAX SOLS LTD,0001423914,1148.00,
Department of Health,East Sussex Hospitals NHS Trust,05/03/2014,GENERAL LAB. CONSUMABLES,Integrated Care,ALERE LTD,0001423972,672.05,
Department of Health,East Sussex Hospitals NHS Trust,05/03/2014,PRINTING/PRINTED MATERIALS,Integrated Care,LABELS PLUS LTD,0001423973,686.00,
Department of Health,East Sussex Hospitals NHS Trust,05/03/2014,COMPUTER MAINT - SOFTWARE,Corporate Services,ADVANCED BUSINESS SOLUTIONS,0001423991,4999.83,
Department of Health,East Sussex Hospitals NHS Trust,05/03/2014,PROFESSIONAL FEES,Integrated Care,HEALTHCARE PERFORMANCE LTD,0001533916,1446.60,
Department of Health,East Sussex Hospitals NHS Trust,05/03/2014,LECTURE FEES,Corporate Services,DR PAM SHAW,0001534013,1000.00,
Department of Health,East Sussex Hospitals NHS Trust,05/03/2014,TAXI - OTHER,Commercial,247 TRANSPORT SOLUTIONS LTD,0001534015,2876.20,
Department of Health,East Sussex Hospitals NHS Trust,05/03/2014,DRUGS-OTHER,Commercial,HOSPIRA UK LIMITED,0001616384,1260.00,
Department of Health,East Sussex Hospitals NHS Trust,05/03/2014,OTHER STATIONERY,Commercial,PIROTO LABELLING LIMITED,0001616392,517.00,
Department of Health,East Sussex Hospitals NHS Trust,05/03/2014,LAB-CONTAINERS/BOTTLES & CAPS,Commercial,VALLEY NORTHERN,0001616393,1549.90,
Department of Health,East Sussex Hospitals NHS Trust,05/03/2014,DRUGS-OTHER,Commercial,JANSSEN-CILAG LTD,0001616459,788.40,
Department of Health,East Sussex Hospitals NHS Trust,05/03/2014,WHEELCHAIR REPAIRS,Integrated Care,QBITUS PRODUCTS,0001817818,819.54,
Department of Health,East Sussex Hospitals NHS Trust,05/03/2014,WHEELCHAIR REPAIRS,Integrated Care,GERALD SIMONDS HEALTHCARE LTD,0001817915,510.00,
Department of Health,East Sussex Hospitals NHS Trust,05/03/2014,HIRE OF ACCOMMODATION,Integrated Care,THE FELLOWSHIP OF ST NICHOLAS (FSN),0001817939,840.00,
Department of Health,East Sussex Hospitals NHS Trust,05/03/2014,COUNSELLING EXPENSES,Integrated Care,THE FELLOWSHIP OF ST NICHOLAS (FSN),0001817940,1705.00,
Department of Health,East Sussex Hospitals NHS Trust,05/03/2014,CONTRACT HIRE-VENDING MACHINES,Commercial,FEAST POINT LTD,0001908971,3942.00,
Department of Health,East Sussex Hospitals NHS Trust,05/03/2014,M&S GENERAL SUPPLIES-OTHER,Planned Care,3M HEALTHCARE LTD,0002129726,562.80,
Department of Health,East Sussex Hospitals NHS Trust,05/03/2014,PROSTHESES-HIP,Planned Care,JOHNSON & JOHNSON MEDICAL LTD,0002129856,2157.62,
Department of Health,East Sussex Hospitals NHS Trust,05/03/2014,SURGICAL INSTRUMENTS,Planned Care,JOHNSON & JOHNSON MEDICAL LTD,0002129857,2333.10,
Department of Health,East Sussex Hospitals NHS Trust,05/03/2014,PROSTHESES-HIP,Planned Care,JOHNSON & JOHNSON MEDICAL LTD,0002129858,589.52,
Department of Health,East Sussex Hospitals NHS Trust,05/03/2014,PROSTHESES-HIP,Planned Care,JOHNSON & JOHNSON MEDICAL LTD,0002129859,1179.05,
Department of Health,East Sussex Hospitals NHS Trust,05/03/2014,CONT.MAIN-MED & SURG EQUIP,Commercial,STRYKER UK,0002129876,2040.00,
Department of Health,East Sussex Hospitals NHS Trust,05/03/2014,M&S GENERAL SUPPLIES-OTHER,Planned Care,STRYKER UK,0002129877,1555.20,
Department of Health,East Sussex Hospitals NHS Trust,05/03/2014,SURGICAL INSTRUMENTS,Planned Care,STRYKER UK,0002129877,345.60,
Department of Health,East Sussex Hospitals NHS Trust,05/03/2014,M&S GENERAL SUPPLIES-OTHER,Planned Care,STRYKER UK,0002129878,108.00,
Department of Health,East Sussex Hospitals NHS Trust,05/03/2014,PROSTHESES-HIP,Planned Care,STRYKER UK,0002129878,1524.10,
Department of Health,East Sussex Hospitals NHS Trust,05/03/2014,CATARACT CONSUMABLES,Planned Care,ALCON EYE CARE UK LTD,0002129879,2501.52,
Department of Health,East Sussex Hospitals NHS Trust,05/03/2014,BILIARY STENTS,Integrated Care,AQUILANT INTERVENTIONAL,0002129880,720.00,
Department of Health,East Sussex Hospitals NHS Trust,05/03/2014,POSTAGE,Integrated Care,AQUILANT INTERVENTIONAL,0002129880,24.00,
Department of Health,East Sussex Hospitals NHS Trust,05/03/2014,IMMUNE STOCKS,Integrated Care,LEICA MICROSYSTEMS (UK) LTD,0002129881,610.40,
Department of Health,East Sussex Hospitals NHS Trust,05/03/2014,PROSTHESES-KNEES,Planned Care,BIOMET UK HEALTHCARE LTD,0002129882,2421.41,
Department of Health,East Sussex Hospitals NHS Trust,05/03/2014,PROSTHESIS - SPINAL,Planned Care,ZIMMER LTD,0002129883,2101.68,
Department of Health,East Sussex Hospitals NHS Trust,05/03/2014,PROSTHESES-HIP,Planned Care,JOHNSON & JOHNSON MEDICAL LTD,0002129884,589.52,
Department of Health,East Sussex Hospitals NHS Trust,05/03/2014,M&S GENERAL SUPPLIES-OTHER,Integrated Care,JOHNSON & JOHNSON MEDICAL LTD,0002129886,669.91,
Department of Health,East Sussex Hospitals NHS Trust,05/03/2014,PROSTHESES-HIP,Planned Care,JOHNSON & JOHNSON MEDICAL LTD,0002129890,711.28,
Department of Health,East Sussex Hospitals NHS Trust,05/03/2014,PROSTHESES-HIP,Planned Care,JOHNSON & JOHNSON MEDICAL LTD,0002129891,711.28,
Department of Health,East Sussex Hospitals NHS Trust,05/03/2014,PROSTHESES-OTHER,Planned Care,JOHNSON & JOHNSON MEDICAL LTD,0002129891,370.80,
Department of Health,East Sussex Hospitals NHS Trust,05/03/2014,COLPOSCOPY CONSUMABLES,Planned Care,JOHNSON & JOHNSON MEDICAL LTD,0002129892,1927.80,
Department of Health,East Sussex Hospitals NHS Trust,05/03/2014,LAB MATERIALS - OXOID,Integrated Care,OXOID LIMITED,0002129897,956.64,
Department of Health,East Sussex Hospitals NHS Trust,05/03/2014,M&S GENERAL SUPPLIES-OTHER,Planned Care,SMITH & NEPHEW ADVANCED SURGICAL DEVICES,0002129898,53.30,
Department of Health,East Sussex Hospitals NHS Trust,05/03/2014,SURGICAL INSTRUMENTS,Planned Care,SMITH & NEPHEW ADVANCED SURGICAL DEVICES,0002129898,69.11,
Department of Health,East Sussex Hospitals NHS Trust,05/03/2014,PROSTHESES-OTHER,Planned Care,SMITH & NEPHEW ADVANCED SURGICAL DEVICES,0002129898,1618.62,
Department of Health,East Sussex Hospitals NHS Trust,05/03/2014,ARTHROSCOPY INSTRUMENTS,Planned Care,SMITH & NEPHEW ADVANCED SURGICAL DEVICES,0002129899,581.54,
Department of Health,East Sussex Hospitals NHS Trust,05/03/2014,M&S GENERAL SUPPLIES-OTHER,Planned Care,DELTEX MEDICAL,0002129901,1400.40,
Department of Health,East Sussex Hospitals NHS Trust,05/03/2014,PROSTHESIS - LENS,Planned Care,ALCON EYE CARE UK LTD,0002129902,744.00,
Department of Health,East Sussex Hospitals NHS Trust,05/03/2014,M&S GENERAL SUPPLIES-OTHER,Commercial,KIMAL PLC (FOR ORDERS),0002129904,804.00,
Department of Health,East Sussex Hospitals NHS Trust,05/03/2014,GENERAL LAB. CONSUMABLES,Integrated Care,INSTRUMENTATION LABORATORIES UK LTD,0002129915,4769.60,
Department of Health,East Sussex Hospitals NHS Trust,05/03/2014,LAPARASCOPIC EQUIP-GYNAECOLOGY,Planned Care,PELICAN FEMININE HEALTHCARE (EUROPE) LTD,0002129917,744.00,
Department of Health,East Sussex Hospitals NHS Trust,05/03/2014,M&S GENERAL SUPPLIES-OTHER,Planned Care,SMITHS MEDICAL INTERNATIONAL,0002129918,513.60,
Department of Health,East Sussex Hospitals NHS Trust,05/03/2014,M&S EQUIPMENT - OTHER,Planned Care,AMBU LIMITED,0002129927,1207.14,
Department of Health,East Sussex Hospitals NHS Trust,05/03/2014,BLOOD PRODUCTS - BPL,Integrated Care,BIO PRODUCTS LABORATORY,0002129932,3237.00,
Department of Health,East Sussex Hospitals NHS Trust,05/03/2014,STAPLING DEVICES,Planned Care,TPS HEALTHCARE,0002129934,1268.06,
Department of Health,East Sussex Hospitals NHS Trust,05/03/2014,PROCEDURE PACKS,Planned Care,SMITH & NEPHEW ADVANCED SURGICAL DEVICES,0002129941,650.56,
Department of Health,East Sussex Hospitals NHS Trust,05/03/2014,PROSTHESES-OTHER,Planned Care,SMITH & NEPHEW ADVANCED SURGICAL DEVICES,0002129942,1155.42,
Department of Health,East Sussex Hospitals NHS Trust,05/03/2014,M&S GENERAL SUPPLIES-OTHER,Planned Care,REMSERVE MEDICAL SUPPLIES LIMITED,0002129946,1098.00,
Department of Health,East Sussex Hospitals NHS Trust,05/03/2014,COMPUTER HARDWARE,Planned Care,QC SUPPLIES LTD,0002129949,860.40,
Department of Health,East Sussex Hospitals NHS Trust,05/03/2014,PROSTHESES-KNEES,Planned Care,BIOMET UK HEALTHCARE LTD,0002129950,1031.40,
Department of Health,East Sussex Hospitals NHS Trust,05/03/2014,PROSTHESES-HIP,Planned Care,BIOMET UK HEALTHCARE LTD,0002129953,5337.36,
Department of Health,East Sussex Hospitals NHS Trust,05/03/2014,PROSTHESES-OTHER,Planned Care,BIOMET UK HEALTHCARE LTD,0002129953,385.20,
Department of Health,East Sussex Hospitals NHS Trust,05/03/2014,INTERVENTIONAL DISPOSABLES,Urgent Care,MERIT MEDICAL SYSTEMS,0002129955,612.00,
Department of Health,East Sussex Hospitals NHS Trust,05/03/2014,M&S GENERAL SUPPLIES-OTHER,Urgent Care,ST JUDE MEDICAL UK LIMITED,0002129956,999.36,
Department of Health,East Sussex Hospitals NHS Trust,05/03/2014,M&S GENERAL SUPPLIES-OTHER,Planned Care,JOHNSON & JOHNSON MEDICAL LTD,0002129971,56.57,
Department of Health,East Sussex Hospitals NHS Trust,05/03/2014,SURGICAL INSTRUMENTS,Planned Care,JOHNSON & JOHNSON MEDICAL LTD,0002129971,31.21,
Department of Health,East Sussex Hospitals NHS Trust,05/03/2014,PROSTHESES-OTHER,Planned Care,JOHNSON & JOHNSON MEDICAL LTD,0002129971,736.37,
Department of Health,East Sussex Hospitals NHS Trust,05/03/2014,LASER/LAPARASCOPIC EQUIPMENT,Planned Care,PURPLE SURGICAL UK LTD,0002129978,3648.00,
Department of Health,East Sussex Hospitals NHS Trust,05/03/2014,GENERAL LAB. CONSUMABLES,Integrated Care,ALERE LTD,0002129979,1028.64,
Department of Health,East Sussex Hospitals NHS Trust,05/03/2014,PROSTHESIS - LENS,Planned Care,ALCON EYE CARE UK LTD,0002129980,2232.00,
Department of Health,East Sussex Hospitals NHS Trust,05/03/2014,STAPLING DEVICES,Planned Care,COVIDIEN (UK) COMMERCIAL LTD,0002129981,1605.60,
Department of Health,East Sussex Hospitals NHS Trust,05/03/2014,PROSTHESES-HIP,Planned Care,STRYKER UK,0002129982,362.88,
Department of Health,East Sussex Hospitals NHS Trust,05/03/2014,PROSTHESES-OTHER,Planned Care,STRYKER UK,0002129982,316.80,
Department of Health,East Sussex Hospitals NHS Trust,05/03/2014,M&S GENERAL SUPPLIES-OTHER,Integrated Care,UK MEDICAL LTD,0002129983,1011.00,
Department of Health,East Sussex Hospitals NHS Trust,05/03/2014,"BOOKS, JOURNALS & SUBCRIPTIONS",Corporate Services,BLACKWELLS,0002130074,575.28,
Department of Health,East Sussex Hospitals NHS Trust,05/03/2014,M&S GENERAL SUPPLIES-OTHER,Commercial,KIMAL PLC (FOR ORDERS),0002130108,756.00,
Department of Health,East Sussex Hospitals NHS Trust,05/03/2014,M&S GENERAL SUPPLIES-OTHER,Integrated Care,BARD LTD,0002130119,1020.00,
Department of Health,East Sussex Hospitals NHS Trust,05/03/2014,CATARACT CONSUMABLES,Planned Care,ALCON EYE CARE UK LTD,0002130121,2501.52,
Department of Health,East Sussex Hospitals NHS Trust,05/03/2014,M&S GENERAL SUPPLIES-OTHER,Planned Care,STRYKER UK,0002130126,777.60,
Department of Health,East Sussex Hospitals NHS Trust,05/03/2014,SURGICAL INSTRUMENTS,Planned Care,STRYKER UK,0002130126,345.60,
Department of Health,East Sussex Hospitals NHS Trust,05/03/2014,COMPUTER HARDWARE,Urgent Care,CISILION LTD,0002130130,562.80,
Department of Health,East Sussex Hospitals NHS Trust,05/03/2014,SUTURES,Planned Care,SMITH & NEPHEW ADVANCED SURGICAL DEVICES,0002130139,532.66,
Department of Health,East Sussex Hospitals NHS Trust,05/03/2014,SURGICAL INSTRUMENTS,Planned Care,SMITH & NEPHEW ADVANCED SURGICAL DEVICES,0002130139,86.89,
Department of Health,East Sussex Hospitals NHS Trust,05/03/2014,PROSTHESES-HIP,Planned Care,JOHNSON & JOHNSON MEDICAL LTD,0002130142,1179.05,
Department of Health,East Sussex Hospitals NHS Trust,05/03/2014,STAPLING DEVICES,Planned Care,JOHNSON & JOHNSON MEDICAL LTD,0002130143,1716.00,
Department of Health,East Sussex Hospitals NHS Trust,05/03/2014,OESOPHAGEAL (UPPER GI) STENTS,Integrated Care,AQUILANT INTERVENTIONAL,0002130150,744.00,
Department of Health,East Sussex Hospitals NHS Trust,05/03/2014,M&S GENERAL SUPPLIES-OTHER,Planned Care,BAXTER HEALTHCARE (BERKSHIRE)LTD,0002130152,517.20,
Department of Health,East Sussex Hospitals NHS Trust,05/03/2014,DRESSINGS-OTHER,Planned Care,BAXTER HEALTHCARE (BERKSHIRE)LTD,0002130153,1267.20,
Department of Health,East Sussex Hospitals NHS Trust,05/03/2014,PROSTHESES-HIP,Planned Care,JOINT REPLACEMENT INSTRUMENTATION  LTD,0002130155,613.20,
Department of Health,East Sussex Hospitals NHS Trust,05/03/2014,PROSTHESES-HIP,Planned Care,JOINT REPLACEMENT INSTRUMENTATION  LTD,0002130156,613.20,
Department of Health,East Sussex Hospitals NHS Trust,05/03/2014,PROSTHESES-HIP,Planned Care,JOINT REPLACEMENT INSTRUMENTATION  LTD,0002130157,739.20,
Department of Health,East Sussex Hospitals NHS Trust,05/03/2014,CONTRACT VEHICLE MAINTENANCE,Commercial,DH DENT REMOVAL,0002130258,508.25,
Department of Health,East Sussex Hospitals NHS Trust,05/03/2014,GENERAL CHEMICALS,Integrated Care,BIO-RAD LABORATORIES LTD,0002130268,518.11,
Department of Health,East Sussex Hospitals NHS Trust,05/03/2014,BUILDING MATERIALS,Commercial,SWAIN BROTHERS,0002226223,850.00,
Department of Health,East Sussex Hospitals NHS Trust,05/03/2014,CARDIOLOGY CATHETERS,Urgent Care,JOHNSON & JOHNSON MEDICAL LTD,0002226227,2160.00,
Department of Health,East Sussex Hospitals NHS Trust,05/03/2014,CARDIOLOGY CATHETERS,Urgent Care,JOHNSON & JOHNSON MEDICAL LTD,0002226234,2160.00,
Department of Health,East Sussex Hospitals NHS Trust,05/03/2014,M&S EQUIPMENT - OTHER,Urgent Care,BENMOR MEDICAL LTD,0002226237,137.40,
Department of Health,East Sussex Hospitals NHS Trust,05/03/2014,M&S GENERAL SUPPLIES-OTHER,Urgent Care,BENMOR MEDICAL LTD,0002226237,412.20,
Department of Health,East Sussex Hospitals NHS Trust,05/03/2014,LAPARASCOPIC EQUIP-UROLOGICAL,Planned Care,DAAX LTD,0002226251,1902.00,
Department of Health,East Sussex Hospitals NHS Trust,05/03/2014,CARDIOLOGY CATHETERS,Urgent Care,MEDTRONIC LTD,0002226253,1080.00,
Department of Health,East Sussex Hospitals NHS Trust,05/03/2014,CARDIOLOGY STENTS,Urgent Care,MEDTRONIC LTD,0002226258,696.00,
Department of Health,East Sussex Hospitals NHS Trust,05/03/2014,CARDIOLOGY STENTS,Urgent Care,MEDTRONIC LTD,0002226260,1392.00,
Department of Health,East Sussex Hospitals NHS Trust,05/03/2014,CARDIOLOGY CATHETERS,Urgent Care,ABBOTT VASCULAR,0002226261,384.00,
Department of Health,East Sussex Hospitals NHS Trust,05/03/2014,CARDIOLOGY STENTS,Urgent Care,ABBOTT VASCULAR,0002226261,972.00,
Department of Health,East Sussex Hospitals NHS Trust,05/03/2014,OTHER STATIONERY,Integrated Care,COLLECTOR SET PRINTERS,0002226264,467.16,
Department of Health,East Sussex Hospitals NHS Trust,05/03/2014,CARDIOLOGY CATHETERS,Urgent Care,BARD LTD,0002226272,954.00,
Department of Health,East Sussex Hospitals NHS Trust,05/03/2014,CARDIOLOGY CATHETERS,Urgent Care,BARD LTD,0002226273,2400.00,
Department of Health,East Sussex Hospitals NHS Trust,05/03/2014,LAB MATERIALS - ALERE,Integrated Care,ALERE LTD,0002226278,669.17,
Department of Health,East Sussex Hospitals NHS Trust,05/03/2014,CARDIOLOGY CATHETERS,Urgent Care,BOSTON SCIENTIFIC LTD,0002226279,1710.00,
Department of Health,East Sussex Hospitals NHS Trust,05/03/2014,M&S GENERAL SUPPLIES-OTHER,Commercial,CLINIPAK LTD,0002226294,687.84,
Department of Health,East Sussex Hospitals NHS Trust,05/03/2014,DIAMED CONSUMABLES,Integrated Care,DIAMED-GB LTD,0002226302,6342.88,
Department of Health,East Sussex Hospitals NHS Trust,05/03/2014,PROCEDURE PACKS,Commercial,MEDLINE INDUSTRIES LIMITED,0002226306,802.46,
Department of Health,East Sussex Hospitals NHS Trust,05/03/2014,M&S GENERAL SUPPLIES-OTHER,Integrated Care,BRACCO UK LTD,0002226307,1848.00,
Department of Health,East Sussex Hospitals NHS Trust,05/03/2014,CLEANING MATERIALS,Commercial,SERCHEM LTD,0002226308,2148.14,
Department of Health,East Sussex Hospitals NHS Trust,05/03/2014,M&S GENERAL SUPPLIES-OTHER,Commercial,LINA MEDICAL UK LTD,0002226321,900.00,
Department of Health,East Sussex Hospitals NHS Trust,05/03/2014,PROCEDURE PACKS,Commercial,MEDLINE INDUSTRIES LIMITED,0002226335,2658.38,
Department of Health,East Sussex Hospitals NHS Trust,05/03/2014,SURGICAL INSTRUMENTS,Planned Care,ARTHROCARE UK LIMITED,0002226341,8415.00,
Department of Health,East Sussex Hospitals NHS Trust,05/03/2014,CAPITAL EXPENDITURE,Other Central,ARTHROCARE UK LIMITED,0002226341,5250.00,
Department of Health,East Sussex Hospitals NHS Trust,05/03/2014,LAB MATERIALS - ALERE,Integrated Care,ALERE LTD,0002226345,1071.72,
Department of Health,East Sussex Hospitals NHS Trust,05/03/2014,M&S GENERAL SUPPLIES-OTHER,Urgent Care,ST JUDE MEDICAL UK LIMITED,0002226346,2998.08,
Department of Health,East Sussex Hospitals NHS Trust,05/03/2014,CARDIOLOGY CATHETERS,Urgent Care,ABBOTT VASCULAR,0002226373,58.80,
Department of Health,East Sussex Hospitals NHS Trust,05/03/2014,CARDIOLOGY STENTS,Urgent Care,ABBOTT VASCULAR,0002226373,486.00,
Department of Health,East Sussex Hospitals NHS Trust,05/03/2014,IMMUNONOLOGY REAGENTS,Integrated Care,INSTRUMENTATION LABORATORIES UK LTD,0002226404,2968.80,
Department of Health,East Sussex Hospitals NHS Trust,05/03/2014,STOCK-ASCRIBE EDGH,Pharmacy Stock,ROCHE PRODUCTS LTD,0013014713,6844.32,
Department of Health,East Sussex Hospitals NHS Trust,05/03/2014,STOCK-ASCRIBE EDGH,Pharmacy Stock,HEALTHCARE AT HOME LTD,0013014714,1363.72,
Department of Health,East Sussex Hospitals NHS Trust,05/03/2014,STOCK-ASCRIBE EDGH,Pharmacy Stock,HEALTHCARE AT HOME LTD,0013014715,1363.72,
Department of Health,East Sussex Hospitals NHS Trust,05/03/2014,STOCK-ASCRIBE EDGH,Pharmacy Stock,HEALTHCARE AT HOME LTD,0013014716,1262.45,
Department of Health,East Sussex Hospitals NHS Trust,05/03/2014,STOCK-ASCRIBE EDGH,Pharmacy Stock,HEALTHCARE AT HOME LTD,0013014721,746.95,
Department of Health,East Sussex Hospitals NHS Trust,05/03/2014,STOCK-ASCRIBE EDGH,Pharmacy Stock,HEALTHCARE AT HOME LTD,0013014723,715.00,
Department of Health,East Sussex Hospitals NHS Trust,05/03/2014,STOCK-ASCRIBE EDGH,Pharmacy Stock,HEALTHCARE AT HOME LTD,0013014724,715.00,
Department of Health,East Sussex Hospitals NHS Trust,05/03/2014,STOCK-ASCRIBE EDGH,Pharmacy Stock,HEALTHCARE AT HOME LTD,0013014725,715.00,
Department of Health,East Sussex Hospitals NHS Trust,05/03/2014,STOCK-ASCRIBE EDGH,Pharmacy Stock,HEALTHCARE AT HOME LTD,0013014726,746.95,
Department of Health,East Sussex Hospitals NHS Trust,05/03/2014,STOCK-ASCRIBE EDGH,Pharmacy Stock,HEALTHCARE AT HOME LTD,0013014727,715.00,
Department of Health,East Sussex Hospitals NHS Trust,05/03/2014,STOCK-ASCRIBE EDGH,Pharmacy Stock,HEALTHCARE AT HOME LTD,0013014728,704.28,
Department of Health,East Sussex Hospitals NHS Trust,05/03/2014,STOCK-ASCRIBE EDGH,Pharmacy Stock,HEALTHCARE AT HOME LTD,0013014729,715.00,
Department of Health,East Sussex Hospitals NHS Trust,05/03/2014,STOCK-ASCRIBE EDGH,Pharmacy Stock,HEALTHCARE AT HOME LTD,0013014730,746.95,
Department of Health,East Sussex Hospitals NHS Trust,05/03/2014,STOCK-ASCRIBE EDGH,Pharmacy Stock,HEALTHCARE AT HOME LTD,0013014731,704.28,
Department of Health,East Sussex Hospitals NHS Trust,05/03/2014,STOCK-ASCRIBE EDGH,Pharmacy Stock,HEALTHCARE AT HOME LTD,0013014732,1408.56,
Department of Health,East Sussex Hospitals NHS Trust,05/03/2014,STOCK-ASCRIBE EDGH,Pharmacy Stock,HEALTHCARE AT HOME LTD,0013014733,704.28,
Department of Health,East Sussex Hospitals NHS Trust,05/03/2014,STOCK-ASCRIBE EDGH,Pharmacy Stock,HEALTHCARE AT HOME LTD,0013014735,746.95,
Department of Health,East Sussex Hospitals NHS Trust,05/03/2014,STOCK-ASCRIBE EDGH,Pharmacy Stock,HEALTHCARE AT HOME LTD,0013014737,715.00,
Department of Health,East Sussex Hospitals NHS Trust,05/03/2014,STOCK-ASCRIBE EDGH,Pharmacy Stock,HEALTHCARE AT HOME LTD,0013014738,1408.56,
Department of Health,East Sussex Hospitals NHS Trust,05/03/2014,STOCK-ASCRIBE EDGH,Pharmacy Stock,HEALTHCARE AT HOME LTD,0013014741,715.00,
Department of Health,East Sussex Hospitals NHS Trust,05/03/2014,STOCK-ASCRIBE EDGH,Pharmacy Stock,HEALTHCARE AT HOME LTD,0013014742,715.00,
Department of Health,East Sussex Hospitals NHS Trust,05/03/2014,STOCK-ASCRIBE EDGH,Pharmacy Stock,HEALTHCARE AT HOME LTD,0013014743,704.28,
Department of Health,East Sussex Hospitals NHS Trust,05/03/2014,STOCK-ASCRIBE EDGH,Pharmacy Stock,HEALTHCARE AT HOME LTD,0013014744,1467.20,
Department of Health,East Sussex Hospitals NHS Trust,05/03/2014,STOCK-ASCRIBE EDGH,Pharmacy Stock,HEALTHCARE AT HOME LTD,0013014745,1467.20,
Department of Health,East Sussex Hospitals NHS Trust,05/03/2014,STOCK-ASCRIBE EDGH,Pharmacy Stock,HEALTHCARE AT HOME LTD,0013014746,1408.56,
Department of Health,East Sussex Hospitals NHS Trust,05/03/2014,STOCK-ASCRIBE EDGH,Pharmacy Stock,HEALTHCARE AT HOME LTD,0013014747,746.95,
Department of Health,East Sussex Hospitals NHS Trust,05/03/2014,STOCK-ASCRIBE EDGH,Pharmacy Stock,ALCURA UK LTD,0013014748,775.16,
Department of Health,East Sussex Hospitals NHS Trust,05/03/2014,STOCK-ASCRIBE EDGH,Pharmacy Stock,HOSPIRA UK LIMITED,0013014752,648.00,
Department of Health,East Sussex Hospitals NHS Trust,05/03/2014,STOCK-ASCRIBE EDGH,Pharmacy Stock,ROCHE PRODUCTS LTD,0013014756,9628.93,
Department of Health,East Sussex Hospitals NHS Trust,05/03/2014,STOCK-ASCRIBE EDGH,Pharmacy Stock,BAXTER HEALTHCARE (BERKSHIRE)LTD,0013014758,2941.74,
Department of Health,East Sussex Hospitals NHS Trust,05/03/2014,STOCK-ASCRIBE EDGH,Pharmacy Stock,BAXTER HEALTHCARE (BERKSHIRE)LTD,0013014759,630.00,
Department of Health,East Sussex Hospitals NHS Trust,05/03/2014,STOCK-ASCRIBE EDGH,Pharmacy Stock,ROCHE PRODUCTS LTD,0013014768,5396.76,
Department of Health,East Sussex Hospitals NHS Trust,05/03/2014,STOCK-ASCRIBE EDGH,Pharmacy Stock,ROCHE PRODUCTS LTD,0013014769,40364.88,
Department of Health,East Sussex Hospitals NHS Trust,05/03/2014,STOCK-ASCRIBE EDGH,Pharmacy Stock,NORGINE PHARMACEUTICALS LTD,0013014770,641.28,
Department of Health,East Sussex Hospitals NHS Trust,05/03/2014,STOCK-ASCRIBE EDGH,Pharmacy Stock,ALLIANCE HEALTHCARE (DISTRIBUTION) LTD,0013014772,14227.47,
Department of Health,East Sussex Hospitals NHS Trust,05/03/2014,STOCK-ASCRIBE EDGH,Pharmacy Stock,ALLIANCE HEALTHCARE (DISTRIBUTION) LTD,0013014775,2463.38,
Department of Health,East Sussex Hospitals NHS Trust,05/03/2014,STOCK-ASCRIBE EDGH,Pharmacy Stock,ALLIANCE HEALTHCARE (DISTRIBUTION) LTD,0013014776,7440.00,
Department of Health,East Sussex Hospitals NHS Trust,05/03/2014,STOCK-ASCRIBE EDGH,Pharmacy Stock,UNIDRUG DISTRIBUTION GROUP LTD,0013014779,8100.00,
Department of Health,East Sussex Hospitals NHS Trust,05/03/2014,STOCK-ASCRIBE EDGH,Pharmacy Stock,BAXTER HEALTHCARE (BERKSHIRE)LTD,0013014781,4738.86,
Department of Health,East Sussex Hospitals NHS Trust,05/03/2014,STOCK-ASCRIBE EDGH,Pharmacy Stock,AMGEN LTD,0013014855,2640.00,
Department of Health,East Sussex Hospitals NHS Trust,05/03/2014,STOCK-ASCRIBE EDGH,Pharmacy Stock,HEALTHCARE AT HOME LTD,0013014856,715.00,
Department of Health,East Sussex Hospitals NHS Trust,05/03/2014,STOCK-ASCRIBE EDGH,Pharmacy Stock,HEALTHCARE AT HOME LTD,0013014857,1408.56,
Department of Health,East Sussex Hospitals NHS Trust,05/03/2014,STOCK-ASCRIBE EDGH,Pharmacy Stock,HEALTHCARE AT HOME LTD,0013014858,596.63,
Department of Health,East Sussex Hospitals NHS Trust,05/03/2014,STOCK-ASCRIBE EDGH,Pharmacy Stock,HEALTHCARE AT HOME LTD,0013014859,715.00,
Department of Health,East Sussex Hospitals NHS Trust,05/03/2014,STOCK-ASCRIBE EDGH,Pharmacy Stock,HEALTHCARE AT HOME LTD,0013014860,1408.56,
Department of Health,East Sussex Hospitals NHS Trust,05/03/2014,STOCK-ASCRIBE EDGH,Pharmacy Stock,HEALTHCARE AT HOME LTD,0013014861,715.00,
Department of Health,East Sussex Hospitals NHS Trust,05/03/2014,STOCK-ASCRIBE EDGH,Pharmacy Stock,HEALTHCARE AT HOME LTD,0013014862,715.00,
Department of Health,East Sussex Hospitals NHS Trust,05/03/2014,STOCK-ASCRIBE EDGH,Pharmacy Stock,HEALTHCARE AT HOME LTD,0013014863,715.00,
Department of Health,East Sussex Hospitals NHS Trust,05/03/2014,STOCK-ASCRIBE EDGH,Pharmacy Stock,HEALTHCARE AT HOME LTD,0013014864,715.00,
Department of Health,East Sussex Hospitals NHS Trust,05/03/2014,STOCK-ASCRIBE EDGH,Pharmacy Stock,HEALTHCARE AT HOME LTD,0013014865,715.00,
Department of Health,East Sussex Hospitals NHS Trust,05/03/2014,STOCK-ASCRIBE EDGH,Pharmacy Stock,HEALTHCARE AT HOME LTD,0013014866,704.28,
Department of Health,East Sussex Hospitals NHS Trust,05/03/2014,STOCK-ASCRIBE EDGH,Pharmacy Stock,HEALTHCARE AT HOME LTD,0013014868,746.95,
Department of Health,East Sussex Hospitals NHS Trust,05/03/2014,STOCK-ASCRIBE EDGH,Pharmacy Stock,HEALTHCARE AT HOME LTD,0013014872,746.95,
Department of Health,East Sussex Hospitals NHS Trust,05/03/2014,STOCK-ASCRIBE EDGH,Pharmacy Stock,HEALTHCARE AT HOME LTD,0013014875,2112.84,
Department of Health,East Sussex Hospitals NHS Trust,05/03/2014,STOCK-ASCRIBE EDGH,Pharmacy Stock,ALCURA UK LTD,0013014880,704.28,
Department of Health,East Sussex Hospitals NHS Trust,05/03/2014,STOCK-ASCRIBE EDGH,Pharmacy Stock,HEALTHCARE AT HOME LTD,0013014882,1408.56,
Department of Health,East Sussex Hospitals NHS Trust,05/03/2014,STOCK-ASCRIBE EDGH,Pharmacy Stock,HEALTHCARE AT HOME LTD,0013014884,715.00,
Department of Health,East Sussex Hospitals NHS Trust,05/03/2014,STOCK-ASCRIBE EDGH,Pharmacy Stock,HEALTHCARE AT HOME LTD,0013014885,704.28,
Department of Health,East Sussex Hospitals NHS Trust,05/03/2014,STOCK-ASCRIBE EDGH,Pharmacy Stock,HEALTHCARE AT HOME LTD,0013014886,704.28,
Department of Health,East Sussex Hospitals NHS Trust,05/03/2014,STOCK-ASCRIBE EDGH,Pharmacy Stock,HEALTHCARE AT HOME LTD,0013014887,704.28,
Department of Health,East Sussex Hospitals NHS Trust,05/03/2014,STOCK-ASCRIBE EDGH,Pharmacy Stock,HEALTHCARE AT HOME LTD,0013014889,815.64,
Department of Health,East Sussex Hospitals NHS Trust,05/03/2014,STOCK-ASCRIBE EDGH,Pharmacy Stock,HEALTHCARE AT HOME LTD,0013014890,704.28,
Department of Health,East Sussex Hospitals NHS Trust,05/03/2014,STOCK-ASCRIBE EDGH,Pharmacy Stock,HEALTHCARE AT HOME LTD,0013014892,704.28,
Department of Health,East Sussex Hospitals NHS Trust,05/03/2014,STOCK-ASCRIBE EDGH,Pharmacy Stock,HEALTHCARE AT HOME LTD,0013014893,715.00,
Department of Health,East Sussex Hospitals NHS Trust,05/03/2014,STOCK-ASCRIBE EDGH,Pharmacy Stock,HEALTHCARE AT HOME LTD,0013014897,715.00,
Department of Health,East Sussex Hospitals NHS Trust,05/03/2014,STOCK-ASCRIBE EDGH,Pharmacy Stock,HEALTHCARE AT HOME LTD,0013014898,715.00,
Department of Health,East Sussex Hospitals NHS Trust,05/03/2014,STOCK-ASCRIBE EDGH,Pharmacy Stock,HEALTHCARE AT HOME LTD,0013014899,715.00,
Department of Health,East Sussex Hospitals NHS Trust,05/03/2014,STOCK-ASCRIBE EDGH,Pharmacy Stock,HEALTHCARE AT HOME LTD,0013014900,704.28,
Department of Health,East Sussex Hospitals NHS Trust,05/03/2014,STOCK-ASCRIBE EDGH,Pharmacy Stock,HEALTHCARE AT HOME LTD,0013014901,704.28,
Department of Health,East Sussex Hospitals NHS Trust,05/03/2014,STOCK-ASCRIBE EDGH,Pharmacy Stock,HEALTHCARE AT HOME LTD,0013014902,715.00,
Department of Health,East Sussex Hospitals NHS Trust,05/03/2014,STOCK-ASCRIBE EDGH,Pharmacy Stock,HEALTHCARE AT HOME LTD,0013014903,715.00,
Department of Health,East Sussex Hospitals NHS Trust,05/03/2014,STOCK-ASCRIBE EDGH,Pharmacy Stock,HEALTHCARE AT HOME LTD,0013014904,704.28,
Department of Health,East Sussex Hospitals NHS Trust,05/03/2014,STOCK-ASCRIBE EDGH,Pharmacy Stock,HEALTHCARE AT HOME LTD,0013014905,704.28,
Department of Health,East Sussex Hospitals NHS Trust,05/03/2014,STOCK-ASCRIBE EDGH,Pharmacy Stock,HEALTHCARE AT HOME LTD,0013014906,1408.56,
Department of Health,East Sussex Hospitals NHS Trust,05/03/2014,STOCK-ASCRIBE EDGH,Pharmacy Stock,HEALTHCARE AT HOME LTD,0013014907,1430.00,
Department of Health,East Sussex Hospitals NHS Trust,05/03/2014,STOCK-ASCRIBE EDGH,Pharmacy Stock,HEALTHCARE AT HOME LTD,0013014908,715.00,
Department of Health,East Sussex Hospitals NHS Trust,05/03/2014,STOCK-ASCRIBE EDGH,Pharmacy Stock,HEALTHCARE AT HOME LTD,0013014909,715.00,
Department of Health,East Sussex Hospitals NHS Trust,05/03/2014,STOCK-ASCRIBE EDGH,Pharmacy Stock,FRESENIUS LTD,0013014915,882.43,
Department of Health,East Sussex Hospitals NHS Trust,05/03/2014,STOCK-ASCRIBE EDGH,Pharmacy Stock,HEALTHCARE AT HOME LTD,0013014917,704.28,
Department of Health,East Sussex Hospitals NHS Trust,05/03/2014,STOCK-ASCRIBE EDGH,Pharmacy Stock,HEALTHCARE AT HOME LTD,0013014918,715.00,
Department of Health,East Sussex Hospitals NHS Trust,05/03/2014,STOCK-ASCRIBE EDGH,Pharmacy Stock,HEALTHCARE AT HOME LTD,0013014919,704.28,
Department of Health,East Sussex Hospitals NHS Trust,05/03/2014,STOCK-ASCRIBE EDGH,Pharmacy Stock,HEALTHCARE AT HOME LTD,0013014920,715.00,
Department of Health,East Sussex Hospitals NHS Trust,05/03/2014,STOCK-ASCRIBE EDGH,Pharmacy Stock,HEALTHCARE AT HOME LTD,0013014921,715.00,
Department of Health,East Sussex Hospitals NHS Trust,05/03/2014,STOCK-ASCRIBE EDGH,Pharmacy Stock,HEALTHCARE AT HOME LTD,0013014922,1408.56,
Department of Health,East Sussex Hospitals NHS Trust,05/03/2014,STOCK-ASCRIBE EDGH,Pharmacy Stock,HEALTHCARE AT HOME LTD,0013014923,704.28,
Department of Health,East Sussex Hospitals NHS Trust,05/03/2014,STOCK-ASCRIBE EDGH,Pharmacy Stock,HEALTHCARE AT HOME LTD,0013014924,715.00,
Department of Health,East Sussex Hospitals NHS Trust,05/03/2014,STOCK-ASCRIBE EDGH,Pharmacy Stock,HEALTHCARE AT HOME LTD,0013014925,715.00,
Department of Health,East Sussex Hospitals NHS Trust,05/03/2014,STOCK-ASCRIBE EDGH,Pharmacy Stock,HEALTHCARE AT HOME LTD,0013014926,715.00,
Department of Health,East Sussex Hospitals NHS Trust,05/03/2014,STOCK-ASCRIBE EDGH,Pharmacy Stock,HEALTHCARE AT HOME LTD,0013014927,746.95,
Department of Health,East Sussex Hospitals NHS Trust,05/03/2014,STOCK-ASCRIBE EDGH,Pharmacy Stock,HEALTHCARE AT HOME LTD,0013014928,704.28,
Department of Health,East Sussex Hospitals NHS Trust,05/03/2014,STOCK-ASCRIBE EDGH,Pharmacy Stock,HEALTHCARE AT HOME LTD,0013014929,715.00,
Department of Health,East Sussex Hospitals NHS Trust,05/03/2014,STOCK-ASCRIBE EDGH,Pharmacy Stock,HEALTHCARE AT HOME LTD,0013014930,704.28,
Department of Health,East Sussex Hospitals NHS Trust,05/03/2014,STOCK-ASCRIBE EDGH,Pharmacy Stock,HEALTHCARE AT HOME LTD,0013014931,704.28,
Department of Health,East Sussex Hospitals NHS Trust,05/03/2014,STOCK-ASCRIBE EDGH,Pharmacy Stock,HEALTHCARE AT HOME LTD,0013014933,715.00,
Department of Health,East Sussex Hospitals NHS Trust,05/03/2014,STOCK-ASCRIBE EDGH,Pharmacy Stock,HEALTHCARE AT HOME LTD,0013014934,715.00,
Department of Health,East Sussex Hospitals NHS Trust,05/03/2014,STOCK-ASCRIBE EDGH,Pharmacy Stock,HEALTHCARE AT HOME LTD,0013014935,715.00,
Department of Health,East Sussex Hospitals NHS Trust,05/03/2014,STOCK-ASCRIBE EDGH,Pharmacy Stock,HEALTHCARE AT HOME LTD,0013014937,715.00,
Department of Health,East Sussex Hospitals NHS Trust,05/03/2014,STOCK-ASCRIBE EDGH,Pharmacy Stock,HEALTHCARE AT HOME LTD,0013014938,704.28,
Department of Health,East Sussex Hospitals NHS Trust,05/03/2014,STOCK-ASCRIBE EDGH,Pharmacy Stock,ALCURA UK LTD,0013014945,4868.04,
Department of Health,East Sussex Hospitals NHS Trust,05/03/2014,STOCK-ASCRIBE EDGH,Pharmacy Stock,ALCURA UK LTD,0013014946,4007.58,
Department of Health,East Sussex Hospitals NHS Trust,05/03/2014,STOCK-ASCRIBE EDGH,Pharmacy Stock,ALCURA UK LTD,0013014948,4049.51,
Department of Health,East Sussex Hospitals NHS Trust,05/03/2014,STOCK-ASCRIBE EDGH,Pharmacy Stock,ALCURA UK LTD,0013014949,3827.02,
Department of Health,East Sussex Hospitals NHS Trust,05/03/2014,STOCK-ASCRIBE EDGH,Pharmacy Stock,ALCON EYE CARE UK LTD,0013014950,878.40,
Department of Health,East Sussex Hospitals NHS Trust,05/03/2014,STOCK-ASCRIBE EDGH,Pharmacy Stock,HEALTHCARE AT HOME LTD,0013014957,1363.72,
Department of Health,East Sussex Hospitals NHS Trust,05/03/2014,STOCK-ASCRIBE EDGH,Pharmacy Stock,UNIDRUG DISTRIBUTION GROUP LTD,0013014978,945.46,
Department of Health,East Sussex Hospitals NHS Trust,05/03/2014,STOCK-ASCRIBE EDGH,Pharmacy Stock,AAH PHARMACEUTICALS LTD,0013014983,690.77,
Department of Health,East Sussex Hospitals NHS Trust,05/03/2014,STOCK-ASCRIBE EDGH,Pharmacy Stock,AAH PHARMACEUTICALS LTD,0013015001,856.80,
Department of Health,East Sussex Hospitals NHS Trust,05/03/2014,STOCK-ASCRIBE EDGH,Pharmacy Stock,AAH PHARMACEUTICALS LTD,0013015007,2942.64,
Department of Health,East Sussex Hospitals NHS Trust,05/03/2014,STOCK-ASCRIBE EDGH,Pharmacy Stock,AAH PHARMACEUTICALS LTD,0013015030,690.77,
Department of Health,East Sussex Hospitals NHS Trust,05/03/2014,STOCK-ASCRIBE EDGH,Pharmacy Stock,AAH PHARMACEUTICALS LTD,0013015037,856.80,
Department of Health,East Sussex Hospitals NHS Trust,05/03/2014,STOCK-ASCRIBE EDGH,Pharmacy Stock,ALLIANCE HEALTHCARE (DISTRIBUTION) LTD,0013015047,7440.00,
Department of Health,East Sussex Hospitals NHS Trust,05/03/2014,STOCK-ASCRIBE EDGH,Pharmacy Stock,ALLIANCE HEALTHCARE (DISTRIBUTION) LTD,0013015049,2136.00,
Department of Health,East Sussex Hospitals NHS Trust,05/03/2014,STOCK-ASCRIBE EDGH,Pharmacy Stock,ALLIANCE HEALTHCARE (DISTRIBUTION) LTD,0013015050,13400.64,
Department of Health,East Sussex Hospitals NHS Trust,05/03/2014,STOCK-ASCRIBE EDGH,Pharmacy Stock,ALLIANCE HEALTHCARE (DISTRIBUTION) LTD,0013015052,1759.56,
Department of Health,East Sussex Hospitals NHS Trust,05/03/2014,STOCK-ASCRIBE EDGH,Pharmacy Stock,JOHNSON & JOHNSON MEDICAL LTD,0013015062,4123.90,
Department of Health,East Sussex Hospitals NHS Trust,05/03/2014,STAPLING DEVICES,Planned Care,TPS HEALTHCARE,0080003458,1160.53,
Department of Health,East Sussex Hospitals NHS Trust,05/03/2014,M&S GENERAL SUPPLIES-OTHER,Planned Care,BIOMET UK HEALTHCARE LTD,0080003459,1396.27,
Department of Health,East Sussex Hospitals NHS Trust,05/03/2014,PROSTHESES-KNEES,Planned Care,BIOMET UK HEALTHCARE LTD,0080003460,3246.74,
Department of Health,East Sussex Hospitals NHS Trust,05/03/2014,PROSTHESES-OTHER,Planned Care,BIOMET UK HEALTHCARE LTD,0080003460,72.00,
Department of Health,East Sussex Hospitals NHS Trust,05/03/2014,M&S GENERAL SUPPLIES-OTHER,Planned Care,ARTHROCARE UK LIMITED,0080003466,705.01,
Department of Health,East Sussex Hospitals NHS Trust,05/03/2014,M&S GENERAL SUPPLIES-OTHER,Planned Care,ARTHROCARE UK LIMITED,0080003473,705.01,
Department of Health,East Sussex Hospitals NHS Trust,05/03/2014,PROSTHESES-KNEES,Planned Care,BIOMET UK HEALTHCARE LTD,0080003479,9022.72,
Department of Health,East Sussex Hospitals NHS Trust,05/03/2014,PROSTHESES-HIP,Planned Care,JOHNSON & JOHNSON MEDICAL LTD,0080003486,2654.55,
Department of Health,East Sussex Hospitals NHS Trust,05/03/2014,PROSTHESES-HIP,Planned Care,JOHNSON & JOHNSON MEDICAL LTD,0080003487,711.28,
Department of Health,East Sussex Hospitals NHS Trust,05/03/2014,PROSTHESES-OTHER,Planned Care,JOHNSON & JOHNSON MEDICAL LTD,0080003489,813.18,
Department of Health,East Sussex Hospitals NHS Trust,05/03/2014,PROSTHESIS - LENS,Planned Care,ALCON EYE CARE UK LTD,0080003490,595.20,
Department of Health,East Sussex Hospitals NHS Trust,05/03/2014,LOANER KITS - HIRE CHARGE,Planned Care,BIOMET UK HEALTHCARE LTD,0080003505,540.00,
Department of Health,East Sussex Hospitals NHS Trust,05/03/2014,PROSTHESES-HIP,Planned Care,JOHNSON & JOHNSON MEDICAL LTD,0080003506,1549.02,
Department of Health,East Sussex Hospitals NHS Trust,05/03/2014,PROSTHESES-HIP,Planned Care,JOHNSON & JOHNSON MEDICAL LTD,0080003508,711.28,
Department of Health,East Sussex Hospitals NHS Trust,05/03/2014,CARDIOLOGY CATHETERS,Urgent Care,JOHNSON & JOHNSON MEDICAL LTD,0080003509,789.60,
Department of Health,East Sussex Hospitals NHS Trust,05/03/2014,PROSTHESIS - LENS,Planned Care,ALCON EYE CARE UK LTD,0080003517,595.20,
Department of Health,East Sussex Hospitals NHS Trust,05/03/2014,PROSTHESES-OTHER,Planned Care,STRYKER UK,0080003518,982.80,
Department of Health,East Sussex Hospitals NHS Trust,05/03/2014,M&S GENERAL SUPPLIES-OTHER,Planned Care,STRYKER UK,0080003519,32.40,
Department of Health,East Sussex Hospitals NHS Trust,05/03/2014,PROSTHESES-HIP,Planned Care,STRYKER UK,0080003519,2354.21,
Department of Health,East Sussex Hospitals NHS Trust,05/03/2014,PROSTHESES-HIP,Planned Care,JOINT REPLACEMENT INSTRUMENTATION  LTD,0080003523,571.20,
Department of Health,East Sussex Hospitals NHS Trust,05/03/2014,CATARACT CONSUMABLES,Planned Care,ALTOMED LTD,0080003528,200.40,
Department of Health,East Sussex Hospitals NHS Trust,05/03/2014,SURGICAL INSTRUMENTS,Planned Care,ALTOMED LTD,0080003528,540.00,
Department of Health,East Sussex Hospitals NHS Trust,05/03/2014,PROSTHESIS - LENS,Planned Care,ALCON EYE CARE UK LTD,0080003529,1190.40,
Department of Health,East Sussex Hospitals NHS Trust,05/03/2014,M&S GENERAL SUPPLIES-OTHER,Planned Care,ALCON EYE CARE UK LTD,0080003530,7872.00,
Department of Health,East Sussex Hospitals NHS Trust,05/03/2014,"PATS APPL - NECK, ARM, HAND",Planned Care,DACEY LIMITED (ORTHOTIX),0080003534,65.40,
Department of Health,East Sussex Hospitals NHS Trust,05/03/2014,PATS APPL - LEG SUPPORTS,Planned Care,DACEY LIMITED (ORTHOTIX),0080003534,362.04,
Department of Health,East Sussex Hospitals NHS Trust,05/03/2014,PATS APPL - FOOTWARE,Planned Care,DACEY LIMITED (ORTHOTIX),0080003534,98.88,
Department of Health,East Sussex Hospitals NHS Trust,05/03/2014,SURGICAL INSTRUMENTS,Planned Care,LINA MEDICAL UK LTD,0080003544,485.76,
Department of Health,East Sussex Hospitals NHS Trust,05/03/2014,VAGINAL/HYSTERECT REPAIR INSTR,Planned Care,LINA MEDICAL UK LTD,0080003544,540.00,
Department of Health,East Sussex Hospitals NHS Trust,05/03/2014,PROSTHESES-HIP,Planned Care,JOINT REPLACEMENT INSTRUMENTATION  LTD,0080003550,928.80,
Department of Health,East Sussex Hospitals NHS Trust,05/03/2014,PROSTHESES-HIP,Planned Care,JOINT REPLACEMENT INSTRUMENTATION  LTD,0080003551,571.20,
Department of Health,East Sussex Hospitals NHS Trust,05/03/2014,PROSTHESES-HIP,Planned Care,JOINT REPLACEMENT INSTRUMENTATION  LTD,0080003552,571.20,
Department of Health,East Sussex Hospitals NHS Trust,05/03/2014,PROSTHESES-HIP,Planned Care,JOHNSON & JOHNSON MEDICAL LTD,0080003562,4334.31,
Department of Health,East Sussex Hospitals NHS Trust,05/03/2014,NATIONAL JOINT REGISTRY LEVY,Planned Care,JOHNSON & JOHNSON MEDICAL LTD,0080003562,20.00,
Department of Health,East Sussex Hospitals NHS Trust,05/03/2014,PROSTHESES-HIP,Planned Care,JOHNSON & JOHNSON MEDICAL LTD,0080003564,898.86,
Department of Health,East Sussex Hospitals NHS Trust,05/03/2014,PROSTHESES-HIP,Planned Care,JOHNSON & JOHNSON MEDICAL LTD,0080003565,589.52,
Department of Health,East Sussex Hospitals NHS Trust,05/03/2014,PROCEDURE PACKS,Planned Care,KIMAL PLC (FOR ORDERS),0080003574,841.13,
Department of Health,East Sussex Hospitals NHS Trust,05/03/2014,SUTURES,Planned Care,ARTHREX LTD,0080003583,3088.80,
Department of Health,East Sussex Hospitals NHS Trust,05/03/2014,M&S GENERAL SUPPLIES-OTHER,Planned Care,ARTHREX LTD,0080003583,258.00,
Department of Health,East Sussex Hospitals NHS Trust,05/03/2014,M&S GENERAL SUPPLIES-OTHER,Planned Care,STRYKER UK,0080003586,777.60,
Department of Health,East Sussex Hospitals NHS Trust,05/03/2014,M&S GENERAL SUPPLIES-OTHER,Integrated Care,MEDICAL IMAGING SYSTEMS,0080003711,877.20,
Department of Health,East Sussex Hospitals NHS Trust,10/03/2014,AGENCY TECHNICIAN,Planned Care,YOUR WORLD RECRUITMENT LTD,0000295986,1440.90,
Department of Health,East Sussex Hospitals NHS Trust,10/03/2014,AGENCY ANCILLARY,Commercial,TEMPORARY & PERMANENT REC SERVICES LTD,0000296015,1286.30,
Department of Health,East Sussex Hospitals NHS Trust,10/03/2014,AGENCY ANCILLARY,Commercial,TEMPORARY & PERMANENT REC SERVICES LTD,0000296023,6383.44,
Department of Health,East Sussex Hospitals NHS Trust,10/03/2014,AGENCY SPECIALIST REG,Urgent Care,TOTAL ASSIST RECRUITMENT LTD,0000296032,1259.10,
Department of Health,East Sussex Hospitals NHS Trust,10/03/2014,AGENCY SPECIALIST REG,Urgent Care,TOTAL ASSIST RECRUITMENT LTD,0000296033,797.44,
Department of Health,East Sussex Hospitals NHS Trust,10/03/2014,AGENCY SPECIALIST REG,Urgent Care,TOTAL ASSIST RECRUITMENT LTD,0000296034,1366.20,
Department of Health,East Sussex Hospitals NHS Trust,10/03/2014,AGENCY CONSULTANT,Planned Care,TLC - THE LOCUM CONSULTANCY,0000296038,4506.90,
Department of Health,East Sussex Hospitals NHS Trust,10/03/2014,AGENCY RADIOGRAPHY STAFF,Integrated Care,JENNIE REEVES RADIOGRAPHERS AGENCY LTD,0000296039,1578.19,
Department of Health,East Sussex Hospitals NHS Trust,10/03/2014,AGENCY RADIOGRAPHY STAFF,Integrated Care,JENNIE REEVES RADIOGRAPHERS AGENCY LTD,0000296040,2057.29,
Department of Health,East Sussex Hospitals NHS Trust,10/03/2014,AGENCY MLSO,Integrated Care,LABMED,0000296044,1078.20,
Department of Health,East Sussex Hospitals NHS Trust,10/03/2014,AGENCY NURSE - QUALIFIED,Planned Care,MAYDAY HEALTHCARE PLC,0000296056,1734.88,
Department of Health,East Sussex Hospitals NHS Trust,10/03/2014,AGENCY NURSE - QUALIFIED,Integrated Care,MAYDAY HEALTHCARE PLC,0000296067,1648.72,
Department of Health,East Sussex Hospitals NHS Trust,10/03/2014,AGENCY RADIOGRAPHY STAFF,Integrated Care,JENNIE REEVES RADIOGRAPHERS AGENCY LTD,0000296078,1972.74,
Department of Health,East Sussex Hospitals NHS Trust,10/03/2014,AGENCY SPECIALIST REG,Urgent Care,NATIONAL LOCUMS,0000296081,3150.00,
Department of Health,East Sussex Hospitals NHS Trust,10/03/2014,AGENCY SPECIALIST REG,Urgent Care,THE ACCIDENT & EMERGENCY AGENCY LTD,0000296086,780.00,
Department of Health,East Sussex Hospitals NHS Trust,10/03/2014,AGENCY NURSE - QUALIFIED,Integrated Care,TEAM24 LTD,0000296087,541.69,
Department of Health,East Sussex Hospitals NHS Trust,10/03/2014,AGENCY ADMIN & CLERICAL,Corporate Services,VENN GROUP LTD,0000296107,1457.85,
Department of Health,East Sussex Hospitals NHS Trust,10/03/2014,ENGINEERING MATERIALS,Commercial,ARJO HUNTLEIGH (ARJO MED AB LTD),0000363684,591.38,
Department of Health,East Sussex Hospitals NHS Trust,10/03/2014,ENGINEERING MATERIALS,Commercial,KARCHER (UK) LTD,0000363698,600.48,
Department of Health,East Sussex Hospitals NHS Trust,10/03/2014,PROFESSIONAL FEES,Commercial,JOHN HARRATT,0000363746,2000.00,
Department of Health,East Sussex Hospitals NHS Trust,10/03/2014,STOCK-ASCRIBE CONQUEST,Pharmacy Stock,GUERBET LABORATORIES,0001226690,768.00,
Department of Health,East Sussex Hospitals NHS Trust,10/03/2014,STOCK-ASCRIBE CONQUEST,Pharmacy Stock,BRACCO UK LTD,0001226708,856.80,
Department of Health,East Sussex Hospitals NHS Trust,10/03/2014,STOCK-ASCRIBE CONQUEST,Pharmacy Stock,HOSPIRA ASEPTIC SERVICES LIMITED,0001226719,13165.44,
Department of Health,East Sussex Hospitals NHS Trust,10/03/2014,STOCK-ASCRIBE CONQUEST,Pharmacy Stock,BAXTER HEALTHCARE (BERKSHIRE)LTD,0001226725,2703.14,
Department of Health,East Sussex Hospitals NHS Trust,10/03/2014,STOCK-ASCRIBE CONQUEST,Pharmacy Stock,UNIDRUG DISTRIBUTION GROUP LTD,0001226770,2168.38,
Department of Health,East Sussex Hospitals NHS Trust,10/03/2014,STOCK-ASCRIBE CONQUEST,Pharmacy Stock,JANSSEN-CILAG LTD,0001226774,4770.00,
Department of Health,East Sussex Hospitals NHS Trust,10/03/2014,STOCK-ASCRIBE CONQUEST,Pharmacy Stock,BRISTOL-MYERS SQUIBB PHARMACEUTICAL,0001226776,4064.16,
Department of Health,East Sussex Hospitals NHS Trust,10/03/2014,STOCK-ASCRIBE CONQUEST,Pharmacy Stock,GAMBRO LUNDIA AB,0001226778,1260.00,
Department of Health,East Sussex Hospitals NHS Trust,10/03/2014,STOCK-ASCRIBE CONQUEST,Pharmacy Stock,SOUTH DEVON HEALTHCARE NHS (TORBAY PMU),0001226780,599.00,
Department of Health,East Sussex Hospitals NHS Trust,10/03/2014,STOCK-ASCRIBE CONQUEST,Pharmacy Stock,BOEHRINGER INGELHEIM LTD,0001226788,2160.00,
Department of Health,East Sussex Hospitals NHS Trust,10/03/2014,STOCK-ASCRIBE CONQUEST,Pharmacy Stock,HOSPIRA UK LIMITED,0001226802,2160.00,
Department of Health,East Sussex Hospitals NHS Trust,10/03/2014,STOCK-ASCRIBE CONQUEST,Pharmacy Stock,HOSPIRA UK LIMITED,0001226805,954.00,
Department of Health,East Sussex Hospitals NHS Trust,10/03/2014,STOCK-ASCRIBE CONQUEST,Pharmacy Stock,AMGEN LTD,0001226807,5280.00,
Department of Health,East Sussex Hospitals NHS Trust,10/03/2014,STOCK-ASCRIBE CONQUEST,Pharmacy Stock,HEALTHCARE PRODUCT SERVICES,0001226859,1299.60,
Department of Health,East Sussex Hospitals NHS Trust,10/03/2014,STOCK-ASCRIBE CONQUEST,Pharmacy Stock,BAXTER HEALTHCARE (BERKSHIRE)LTD,0001226861,19530.00,
Department of Health,East Sussex Hospitals NHS Trust,10/03/2014,STOCK-ASCRIBE CONQUEST,Pharmacy Stock,BAXTER HEALTHCARE (BERKSHIRE)LTD,0001226862,3056.89,
Department of Health,East Sussex Hospitals NHS Trust,10/03/2014,STOCK-ASCRIBE CONQUEST,Pharmacy Stock,JANSSEN-CILAG LTD,0001226864,2593.66,
Department of Health,East Sussex Hospitals NHS Trust,10/03/2014,STOCK-ASCRIBE CONQUEST,Pharmacy Stock,ABBOTT LABORATORIES LTD,0001227178,3355.20,
Department of Health,East Sussex Hospitals NHS Trust,10/03/2014,CARDIOLOGY STENTS,Urgent Care,MEDTRONIC LTD,0001423913,708.00,
Department of Health,East Sussex Hospitals NHS Trust,10/03/2014,TRAINING FEES - NURSE CONT ED,Corporate Services,ROYAL COLLEGE OF PHYSICIANS,0001424015,580.00,
Department of Health,East Sussex Hospitals NHS Trust,10/03/2014,TRAINING FEES - NURSE CONT ED,Corporate Services,THE NATIONAL COUNCIL FOR PALLIATIVE CARE,0001424018,2450.00,
Department of Health,East Sussex Hospitals NHS Trust,10/03/2014,CONTRACTED-OUT H.CARE SERVICES,Urgent Care,BUPA CROMWELL HOSPITAL,0001424023,1545.00,
Department of Health,East Sussex Hospitals NHS Trust,10/03/2014,ELECTRICITY,Commercial,BRITISH GAS,0001534007,636.07,
Department of Health,East Sussex Hospitals NHS Trust,10/03/2014,INTERNAL AUDIT,Corporate Services,TIAA LTD,0001534019,32948.40,
Department of Health,East Sussex Hospitals NHS Trust,10/03/2014,CONTRACT-SECURITY,Commercial,CARDINAL SECURITY LTD,0001534153,1973.72,
Department of Health,East Sussex Hospitals NHS Trust,10/03/2014,CONTRACT-SECURITY,Commercial,CARDINAL SECURITY LTD,0001534154,1896.72,
Department of Health,East Sussex Hospitals NHS Trust,10/03/2014,POSTAGE - FRANKING MACHINE,Commercial,PURCHASE POWER,0001534186,864.81,
Department of Health,East Sussex Hospitals NHS Trust,10/03/2014,COURIER SERVICES,Commercial,STREETWISE COURIERS SUSSEX LTD,0001534191,606.47,
Department of Health,East Sussex Hospitals NHS Trust,10/03/2014,CONTRACTED-OUT H.CARE SERVICES,Integrated Care,INHEALTH LIMITED,0001534194,2400.00,
Department of Health,East Sussex Hospitals NHS Trust,10/03/2014,CONTRACTED-OUT H.CARE SERVICES,Integrated Care,INHEALTH LIMITED,0001534195,2400.00,
Department of Health,East Sussex Hospitals NHS Trust,10/03/2014,CONTRACTED-OUT H.CARE SERVICES,Integrated Care,INHEALTH LIMITED,0001534196,2400.00,
Department of Health,East Sussex Hospitals NHS Trust,10/03/2014,TRAINING COURSE FEES-OTHER,Corporate Services,BPP PROFESSIONAL EDUCATION,0001534197,468.48,
Department of Health,East Sussex Hospitals NHS Trust,10/03/2014,POSTAGE - FRANKING MACHINE,Commercial,NEOPOST LTD,0001534230,18000.00,
Department of Health,East Sussex Hospitals NHS Trust,10/03/2014,INTEREST PAYABLE LATE PAYMENTS,Other Central,NEOPOST LTD,0001534230,1023.29,
Department of Health,East Sussex Hospitals NHS Trust,10/03/2014,POSTAGE - FRANKING MACHINE,Commercial,NEOPOST LTD,0001534231,19000.00,
Department of Health,East Sussex Hospitals NHS Trust,10/03/2014,INTEREST PAYABLE LATE PAYMENTS,Other Central,NEOPOST LTD,0001534231,413.28,
Department of Health,East Sussex Hospitals NHS Trust,10/03/2014,TRAINING COURSE FEES-OTHER,Urgent Care,HOSPICE IN THE WEALD,0001534277,479.17,
Department of Health,East Sussex Hospitals NHS Trust,10/03/2014,PHOTOCOPIER HIRE,Corporate Services,RICOH UK LTD,0001706179,1218.11,
Department of Health,East Sussex Hospitals NHS Trust,10/03/2014,TELEPHONES-RENTAL&CALLS,Commercial,BRITISH TELECOM,0001706289,905.14,
Department of Health,East Sussex Hospitals NHS Trust,10/03/2014,PROCEDURE PACKS,Planned Care,UNISURGE INTERNATIONAL LTD,0001817995,992.88,
Department of Health,East Sussex Hospitals NHS Trust,10/03/2014,ARTHROSCOPY INSTRUMENTS,Planned Care,SMITH & NEPHEW ADVANCED SURGICAL DEVICES,0001817999,1177.49,
Department of Health,East Sussex Hospitals NHS Trust,10/03/2014,M&S GENERAL SUPPLIES-OTHER,Planned Care,SMITH & NEPHEW ADVANCED SURGICAL DEVICES,0001818000,1492.56,
Department of Health,East Sussex Hospitals NHS Trust,10/03/2014,ARTHROSCOPY INSTRUMENTS,Planned Care,SMITH & NEPHEW ADVANCED SURGICAL DEVICES,0001818000,14.40,
Department of Health,East Sussex Hospitals NHS Trust,10/03/2014,PRINTING/PRINTED MATERIALS,Integrated Care,GL EDUCATION GROUP LTD,0001818046,1270.20,
Department of Health,East Sussex Hospitals NHS Trust,10/03/2014,PRINTING/PRINTED MATERIALS,Planned Care,COLLECTOR SET PRINTERS,0001818070,2201.96,
Department of Health,East Sussex Hospitals NHS Trust,10/03/2014,M&S GENERAL SUPPLIES-OTHER,Planned Care,BIOMET UK HEALTHCARE LTD,0001818076,69.60,
Department of Health,East Sussex Hospitals NHS Trust,10/03/2014,PROSTHESES-OTHER,Planned Care,BIOMET UK HEALTHCARE LTD,0001818076,492.00,
Department of Health,East Sussex Hospitals NHS Trust,10/03/2014,WHEELCHAIR,Integrated Care,REHABILITATION MANUFACTURING SRVS. LTD,0001818077,1035.60,
Department of Health,East Sussex Hospitals NHS Trust,10/03/2014,PROVISIONS,Commercial,ANCHOR CATERING LTD,0001909014,828.46,
Department of Health,East Sussex Hospitals NHS Trust,10/03/2014,M&S GENERAL SUPPLIES-OTHER,Integrated Care,UK MEDICAL LTD,0002129992,525.12,
Department of Health,East Sussex Hospitals NHS Trust,10/03/2014,GENERAL LAB. CONSUMABLES,Integrated Care,UK MEDICAL LTD,0002129994,828.00,
Department of Health,East Sussex Hospitals NHS Trust,10/03/2014,CAPITAL EXPENDITURE,Other Central,BYTES SOFTWARE SERVICES LTD,0002129997,17065.70,
Department of Health,East Sussex Hospitals NHS Trust,10/03/2014,ENDOSCOPY CONSUMABLES,Planned Care,DIAGMED HEALTHCARE LTD,0002130004,630.00,
Department of Health,East Sussex Hospitals NHS Trust,10/03/2014,PROSTHESIS - UROLOGICAL,Planned Care,AMERICAN MEDICAL SYSTEMS UK LTD,0002130020,5670.00,
Department of Health,East Sussex Hospitals NHS Trust,10/03/2014,LAB MATERIALS - LAUNCH,Integrated Care,LAUNCH DIAGNOSTICS LTD,0002130027,2773.70,
Department of Health,East Sussex Hospitals NHS Trust,10/03/2014,GENERAL CHEMICALS,Integrated Care,LAUNCH DIAGNOSTICS LTD,0002130027,324.48,
Department of Health,East Sussex Hospitals NHS Trust,10/03/2014,CARDIOLOGY CATHETERS,Urgent Care,BOSTON SCIENTIFIC LTD,0002130032,1159.20,
Department of Health,East Sussex Hospitals NHS Trust,10/03/2014,CARDIOLOGY STENTS,Urgent Care,BOSTON SCIENTIFIC LTD,0002130032,840.00,
Department of Health,East Sussex Hospitals NHS Trust,10/03/2014,BILIARY STENTS,Planned Care,BOSTON SCIENTIFIC LTD,0002130033,1020.00,
Department of Health,East Sussex Hospitals NHS Trust,10/03/2014,M&S EQUIPMENT - OTHER,Planned Care,LEONHARD LANG UK LTD,0002130034,782.40,
Department of Health,East Sussex Hospitals NHS Trust,10/03/2014,DISPOSABLE DRAPES,Planned Care,LEONHARD LANG UK LTD,0002130034,31.92,
Department of Health,East Sussex Hospitals NHS Trust,10/03/2014,M&S GENERAL SUPPLIES-OTHER,Urgent Care,ST JUDE MEDICAL UK LIMITED,0002130035,999.36,
Department of Health,East Sussex Hospitals NHS Trust,10/03/2014,M&S GENERAL SUPPLIES-OTHER,Planned Care,STRYKER UK,0002130040,108.00,
Department of Health,East Sussex Hospitals NHS Trust,10/03/2014,PROSTHESES-HIP,Planned Care,STRYKER UK,0002130040,898.13,
Department of Health,East Sussex Hospitals NHS Trust,10/03/2014,"BOOKS, JOURNALS & SUBCRIPTIONS",Corporate Services,BMJ PUBLISHING GROUP LIMITED,0002130060,1455.64,
Department of Health,East Sussex Hospitals NHS Trust,10/03/2014,M&S EQUIPMENT - OTHER,Planned Care,REMSERVE MEDICAL SUPPLIES LIMITED,0002130082,126.00,
Department of Health,East Sussex Hospitals NHS Trust,10/03/2014,M&S GENERAL SUPPLIES-OTHER,Planned Care,REMSERVE MEDICAL SUPPLIES LIMITED,0002130082,540.00,
Department of Health,East Sussex Hospitals NHS Trust,10/03/2014,LAB MATERIALS - CEPHEID,Integrated Care,CEPHEID UK LTD,0002130085,1088.15,
Department of Health,East Sussex Hospitals NHS Trust,10/03/2014,GENERAL CHEMICALS,Integrated Care,CEPHEID UK LTD,0002130085,928.37,
Department of Health,East Sussex Hospitals NHS Trust,10/03/2014,VIDAS REAGENTS,Integrated Care,CEPHEID UK LTD,0002130085,1227.07,
Department of Health,East Sussex Hospitals NHS Trust,10/03/2014,M&S GENERAL SUPPLIES-OTHER,Planned Care,LOCAMED LIMITED,0002130089,952.20,
Department of Health,East Sussex Hospitals NHS Trust,10/03/2014,M&S GENERAL SUPPLIES-OTHER,Planned Care,STRYKER UK,0002130094,777.60,
Department of Health,East Sussex Hospitals NHS Trust,10/03/2014,SURGICAL INSTRUMENTS,Planned Care,STRYKER UK,0002130094,345.60,
Department of Health,East Sussex Hospitals NHS Trust,10/03/2014,LEASE CARS,Cross Site,AUTOMOTIVE LEASING LTD,0002130100,1539.65,
Department of Health,East Sussex Hospitals NHS Trust,10/03/2014,PROSTHESES-HIP,Planned Care,JOINT REPLACEMENT INSTRUMENTATION  LTD,0002130101,613.20,
Department of Health,East Sussex Hospitals NHS Trust,10/03/2014,LAB MATERIALS - MAST,Integrated Care,MAST DIAGNOSTICS LIMITED,0002130103,529.62,
Department of Health,East Sussex Hospitals NHS Trust,10/03/2014,M&S GENERAL SUPPLIES-OTHER,Integrated Care,COOK (UK) LTD,0002130163,1590.96,
Department of Health,East Sussex Hospitals NHS Trust,10/03/2014,INTERVENTIONAL DISPOSABLES,Integrated Care,COOK (UK) LTD,0002130163,50.40,
Department of Health,East Sussex Hospitals NHS Trust,10/03/2014,X-RAY - EQUIPMENT,Integrated Care,COOK (UK) LTD,0002130163,498.00,
Department of Health,East Sussex Hospitals NHS Trust,10/03/2014,M&S GENERAL SUPPLIES-OTHER,Integrated Care,COOK (UK) LTD,0002130164,438.00,
Department of Health,East Sussex Hospitals NHS Trust,10/03/2014,INTERVENTIONAL DISPOSABLES,Integrated Care,COOK (UK) LTD,0002130164,420.00,
Department of Health,East Sussex Hospitals NHS Trust,10/03/2014,CARDIOLOGY CATHETERS,Integrated Care,COOK (UK) LTD,0002130164,242.40,
Department of Health,East Sussex Hospitals NHS Trust,10/03/2014,BILIARY STENTS,Integrated Care,COOK (UK) LTD,0002130164,1212.00,
Department of Health,East Sussex Hospitals NHS Trust,10/03/2014,X-RAY - EQUIPMENT,Integrated Care,COOK (UK) LTD,0002130164,60.00,
Department of Health,East Sussex Hospitals NHS Trust,10/03/2014,M&S GENERAL SUPPLIES-OTHER,Integrated Care,COOK (UK) LTD,0002130165,1007.40,
Department of Health,East Sussex Hospitals NHS Trust,10/03/2014,PROSTHESES-OTHER,Planned Care,JOHNSON & JOHNSON MEDICAL LTD,0002130170,1171.27,
Department of Health,East Sussex Hospitals NHS Trust,10/03/2014,PROSTHESIS - SPINAL,Planned Care,ZIMMER LTD,0002130173,3246.48,
Department of Health,East Sussex Hospitals NHS Trust,10/03/2014,ARTHROSCOPY INSTRUMENTS,Planned Care,SMITH & NEPHEW ADVANCED SURGICAL DEVICES,0002130181,1744.63,
Department of Health,East Sussex Hospitals NHS Trust,10/03/2014,SURGICAL INSTRUMENTS,Planned Care,SMITH & NEPHEW ADVANCED SURGICAL DEVICES,0002130182,595.94,
Department of Health,East Sussex Hospitals NHS Trust,10/03/2014,PROSTHESES-HIP,Planned Care,JOHNSON & JOHNSON MEDICAL LTD,0002130187,2543.34,
Department of Health,East Sussex Hospitals NHS Trust,10/03/2014,PROSTHESES-OTHER,Planned Care,JOHNSON & JOHNSON MEDICAL LTD,0002130187,247.20,
Department of Health,East Sussex Hospitals NHS Trust,10/03/2014,INTERVASCULAR STENTS,Planned Care,MEDTRONIC LTD,0002130189,7800.00,
Department of Health,East Sussex Hospitals NHS Trust,10/03/2014,CARDIOLOGY STENTS,Urgent Care,MEDTRONIC LTD,0002130190,5112.00,
Department of Health,East Sussex Hospitals NHS Trust,10/03/2014,STAPLING DEVICES,Planned Care,TPS HEALTHCARE,0002130197,5000.15,
Department of Health,East Sussex Hospitals NHS Trust,10/03/2014,CARDIOLOGY STENTS,Urgent Care,MEDTRONIC LTD,0002130218,3480.00,
Department of Health,East Sussex Hospitals NHS Trust,10/03/2014,M&S GENERAL SUPPLIES-OTHER,Planned Care,ARTHROCARE UK LIMITED,0002130226,567.00,
Department of Health,East Sussex Hospitals NHS Trust,10/03/2014,CARDIOLOGY CATHETERS,Urgent Care,BIOTRONIK UK LTD,0002130229,1152.00,
Department of Health,East Sussex Hospitals NHS Trust,10/03/2014,ENDOSCOPY CONSUMABLES,Planned Care,DIAGMED HEALTHCARE LTD,0002130230,630.00,
Department of Health,East Sussex Hospitals NHS Trust,10/03/2014,M&S GENERAL SUPPLIES-OTHER,Planned Care,RESMED (UK) LTD,0002130231,1158.96,
Department of Health,East Sussex Hospitals NHS Trust,10/03/2014,CPAP VENTILATOR,Planned Care,RESMED (UK) LTD,0002130232,4416.00,
Department of Health,East Sussex Hospitals NHS Trust,10/03/2014,M&S GENERAL SUPPLIES-OTHER,Planned Care,RESMED (UK) LTD,0002130232,432.00,
Department of Health,East Sussex Hospitals NHS Trust,10/03/2014,CPAP VENTILATOR,Planned Care,RESMED (UK) LTD,0002130233,3312.00,
Department of Health,East Sussex Hospitals NHS Trust,10/03/2014,M&S GENERAL SUPPLIES-OTHER,Planned Care,RESMED (UK) LTD,0002130233,324.00,
Department of Health,East Sussex Hospitals NHS Trust,10/03/2014,M&S EQUIPMENT - OTHER,Planned Care,RESMED (UK) LTD,0002130234,548.64,
Department of Health,East Sussex Hospitals NHS Trust,10/03/2014,SURGICAL INSTRUMENTS,Planned Care,SMITH & NEPHEW ADVANCED SURGICAL DEVICES,0002130236,34.37,
Department of Health,East Sussex Hospitals NHS Trust,10/03/2014,PROSTHESES-OTHER,Planned Care,SMITH & NEPHEW ADVANCED SURGICAL DEVICES,0002130236,522.65,
Department of Health,East Sussex Hospitals NHS Trust,10/03/2014,ARTHROSCOPY INSTRUMENTS,Planned Care,SMITH & NEPHEW ADVANCED SURGICAL DEVICES,0002130237,581.54,
Department of Health,East Sussex Hospitals NHS Trust,10/03/2014,M&S GENERAL SUPPLIES-OTHER,Planned Care,BIOMET UK HEALTHCARE LTD,0002130242,960.00,
Department of Health,East Sussex Hospitals NHS Trust,10/03/2014,PROSTHESES-KNEES,Planned Care,BIOMET UK HEALTHCARE LTD,0002130245,579.60,
Department of Health,East Sussex Hospitals NHS Trust,10/03/2014,PROSTHESES-OTHER,Planned Care,BIOMET UK HEALTHCARE LTD,0002130245,392.40,
Department of Health,East Sussex Hospitals NHS Trust,10/03/2014,LAB MATERIALS - OXOID,Integrated Care,OXOID LIMITED,0002130246,1006.69,
Department of Health,East Sussex Hospitals NHS Trust,10/03/2014,CARDIOLOGY CATHETERS,Urgent Care,BOSTON SCIENTIFIC LTD,0002130247,172.80,
Department of Health,East Sussex Hospitals NHS Trust,10/03/2014,CARDIOLOGY STENTS,Urgent Care,BOSTON SCIENTIFIC LTD,0002130247,840.00,
Department of Health,East Sussex Hospitals NHS Trust,10/03/2014,ENDOSCOPY CONSUMABLES,Planned Care,BOSTON SCIENTIFIC LTD,0002130248,804.00,
Department of Health,East Sussex Hospitals NHS Trust,10/03/2014,M&S GENERAL SUPPLIES-OTHER,Planned Care,BOSTON SCIENTIFIC LTD,0002130248,222.00,
Department of Health,East Sussex Hospitals NHS Trust,10/03/2014,BILIARY STENTS,Planned Care,BOSTON SCIENTIFIC LTD,0002130248,36.00,
Department of Health,East Sussex Hospitals NHS Trust,10/03/2014,M&S GENERAL SUPPLIES-OTHER,Planned Care,BIOMET UK HEALTHCARE LTD,0002130250,46.80,
Department of Health,East Sussex Hospitals NHS Trust,10/03/2014,SURGICAL INSTRUMENTS,Planned Care,BIOMET UK HEALTHCARE LTD,0002130250,45.60,
Department of Health,East Sussex Hospitals NHS Trust,10/03/2014,PROSTHESES-HIP,Planned Care,BIOMET UK HEALTHCARE LTD,0002130250,9240.96,
Department of Health,East Sussex Hospitals NHS Trust,10/03/2014,PROSTHESES-OTHER,Planned Care,BIOMET UK HEALTHCARE LTD,0002130250,676.20,
Department of Health,East Sussex Hospitals NHS Trust,10/03/2014,M&S EQUIPMENT - OTHER,Planned Care,ARTHROCARE UK LIMITED,0002130280,760.20,
Department of Health,East Sussex Hospitals NHS Trust,10/03/2014,M&S GENERAL SUPPLIES-OTHER,Planned Care,ARTHROCARE UK LIMITED,0002130280,276.00,
Department of Health,East Sussex Hospitals NHS Trust,10/03/2014,HAEMAGLOBINOPATHY REAGENTS,Integrated Care,MENARINI DIAGNOSTICS,0002130282,2239.27,
Department of Health,East Sussex Hospitals NHS Trust,10/03/2014,PROSTHESES-KNEES,Planned Care,BIOMET UK HEALTHCARE LTD,0002130284,3367.10,
Department of Health,East Sussex Hospitals NHS Trust,10/03/2014,PROSTHESES-KNEES,Planned Care,BIOMET UK HEALTHCARE LTD,0002130285,1461.80,
Department of Health,East Sussex Hospitals NHS Trust,10/03/2014,M&S GENERAL SUPPLIES-OTHER,Planned Care,BIOMET UK HEALTHCARE LTD,0002130286,1382.74,
Department of Health,East Sussex Hospitals NHS Trust,10/03/2014,PROSTHESES-HIP,Planned Care,JOHNSON & JOHNSON MEDICAL LTD,0002130288,4246.10,
Department of Health,East Sussex Hospitals NHS Trust,10/03/2014,PROSTHESES-OTHER,Planned Care,JOHNSON & JOHNSON MEDICAL LTD,0002130288,123.60,
Department of Health,East Sussex Hospitals NHS Trust,10/03/2014,M&S GENERAL SUPPLIES-OTHER,Planned Care,JOHNSON & JOHNSON MEDICAL LTD,0002130289,506.88,
Department of Health,East Sussex Hospitals NHS Trust,10/03/2014,SURGICAL INSTRUMENTS,Planned Care,JOHNSON & JOHNSON MEDICAL LTD,0002130289,506.88,
Department of Health,East Sussex Hospitals NHS Trust,10/03/2014,PROSTHESES-HIP,Planned Care,JOHNSON & JOHNSON MEDICAL LTD,0002130290,589.52,
Department of Health,East Sussex Hospitals NHS Trust,10/03/2014,LAB MATERIALS - OXOID,Integrated Care,OXOID LIMITED,0002130293,919.61,
Department of Health,East Sussex Hospitals NHS Trust,10/03/2014,PROSTHESES-OTHER,Planned Care,ZIMMER LTD,0002130294,3324.24,
Department of Health,East Sussex Hospitals NHS Trust,10/03/2014,M&S GENERAL SUPPLIES-OTHER,Planned Care,STRYKER UK,0002130296,777.60,
Department of Health,East Sussex Hospitals NHS Trust,10/03/2014,SURGICAL INSTRUMENTS,Planned Care,STRYKER UK,0002130296,345.60,
Department of Health,East Sussex Hospitals NHS Trust,10/03/2014,PROSTHESIS - LENS,Planned Care,ALCON EYE CARE UK LTD,0002130299,2157.60,
Department of Health,East Sussex Hospitals NHS Trust,10/03/2014,GENERAL LAB. CONSUMABLES,Integrated Care,SIEMENS HEALTHCARE DIAGNOSTICS LTD,0002130301,35.98,
Department of Health,East Sussex Hospitals NHS Trust,10/03/2014,LAB MATERIALS - SIEMENS HEALTH,Integrated Care,SIEMENS HEALTHCARE DIAGNOSTICS LTD,0002130301,523.47,
Department of Health,East Sussex Hospitals NHS Trust,10/03/2014,M&S GENERAL SUPPLIES-OTHER,Planned Care,LOCAMED LIMITED,0002130308,706.20,
Department of Health,East Sussex Hospitals NHS Trust,10/03/2014,M&S GENERAL SUPPLIES-OTHER,Integrated Care,BRACCO UK LTD,0002130312,1728.00,
Department of Health,East Sussex Hospitals NHS Trust,10/03/2014,GENERAL CHEMICALS,Integrated Care,CSL BEHRING,0002130314,1400.00,
Department of Health,East Sussex Hospitals NHS Trust,10/03/2014,PROSTHESES-HIP,Planned Care,JOINT REPLACEMENT INSTRUMENTATION  LTD,0002130317,655.20,
Department of Health,East Sussex Hospitals NHS Trust,10/03/2014,PROSTHESES-HIP,Planned Care,JOINT REPLACEMENT INSTRUMENTATION  LTD,0002130318,571.20,
Department of Health,East Sussex Hospitals NHS Trust,10/03/2014,M&S GENERAL SUPPLIES-OTHER,Urgent Care,ST JUDE MEDICAL UK LIMITED,0002130341,750.00,
Department of Health,East Sussex Hospitals NHS Trust,10/03/2014,CLINICAL WASTE DISPOSAL,Commercial,SRCL LTD,0002225167,6757.28,
Department of Health,East Sussex Hospitals NHS Trust,10/03/2014,CLINICAL WASTE DISPOSAL,Commercial,SRCL LTD,0002225168,2030.66,
Department of Health,East Sussex Hospitals NHS Trust,10/03/2014,CLINICAL WASTE DISPOSAL,Commercial,SRCL LTD,0002225169,1606.68,
Department of Health,East Sussex Hospitals NHS Trust,10/03/2014,CAPITAL EXPENDITURE,Other Central,ETECH OFFICE SOLUTIONS LTD,0002226309,954.72,
Department of Health,East Sussex Hospitals NHS Trust,10/03/2014,CAPITAL EXPENDITURE,Other Central,ARJO HUNTLEIGH (ARJO MED AB LTD),0002226349,1452.00,
Department of Health,East Sussex Hospitals NHS Trust,10/03/2014,LAPARASCOPIC EQUIP-UROLOGICAL,Planned Care,TPS HEALTHCARE,0002226392,6480.00,
Department of Health,East Sussex Hospitals NHS Trust,10/03/2014,LAB MATERIALS - CEPHEID,Integrated Care,CEPHEID UK LTD,0002226400,995.41,
Department of Health,East Sussex Hospitals NHS Trust,10/03/2014,GENERAL CHEMICALS,Integrated Care,CEPHEID UK LTD,0002226400,618.91,
Department of Health,East Sussex Hospitals NHS Trust,10/03/2014,PROSTHESIS -BREAST IMPLANTS,Planned Care,JOHNSON & JOHNSON MEDICAL LTD,0002226401,919.64,
Department of Health,East Sussex Hospitals NHS Trust,10/03/2014,CARDIOLOGY CATHETERS,Urgent Care,JOHNSON & JOHNSON MEDICAL LTD,0002226402,5880.00,
Department of Health,East Sussex Hospitals NHS Trust,10/03/2014,M&S GENERAL SUPPLIES-OTHER,Commercial,UNISURGE INTERNATIONAL LTD,0002226407,1314.31,
Department of Health,East Sussex Hospitals NHS Trust,10/03/2014,PRE-STERILE COMMERCIAL PACKS,Commercial,UNISURGE INTERNATIONAL LTD,0002226407,436.80,
Department of Health,East Sussex Hospitals NHS Trust,10/03/2014,CARDIOLOGY STENTS,Urgent Care,MEDTRONIC LTD,0002226418,1740.00,
Department of Health,East Sussex Hospitals NHS Trust,10/03/2014,CARDIOLOGY STENTS,Urgent Care,MEDTRONIC LTD,0002226421,1392.00,
Department of Health,East Sussex Hospitals NHS Trust,10/03/2014,M&S GENERAL SUPPLIES-OTHER,Commercial,FIELDSKILL CONQUEST LTD,0002226422,325.03,
Department of Health,East Sussex Hospitals NHS Trust,10/03/2014,STAFF UNIFORMS,Commercial,FIELDSKILL CONQUEST LTD,0002226422,404.68,
Department of Health,East Sussex Hospitals NHS Trust,10/03/2014,TSSU INSTRUMENTATION,Commercial,ALCON EYE CARE UK LTD,0002226425,1440.00,
Department of Health,East Sussex Hospitals NHS Trust,10/03/2014,M&S GENERAL SUPPLIES-OTHER,Urgent Care,BARD LTD,0002226426,660.00,
Department of Health,East Sussex Hospitals NHS Trust,10/03/2014,PRE-STERILE COMMERCIAL PACKS,Commercial,GUARDIAN,0002226428,1109.34,
Department of Health,East Sussex Hospitals NHS Trust,10/03/2014,ENDOSCOPY CONSUMABLES,Planned Care,BOSTON SCIENTIFIC LTD,0002226435,1080.00,
Department of Health,East Sussex Hospitals NHS Trust,10/03/2014,M&S GENERAL SUPPLIES-OTHER,Planned Care,BOSTON SCIENTIFIC LTD,0002226435,522.00,
Department of Health,East Sussex Hospitals NHS Trust,10/03/2014,SURGICAL INSTRUMENTS,Planned Care,BOSTON SCIENTIFIC LTD,0002226435,62.40,
Department of Health,East Sussex Hospitals NHS Trust,10/03/2014,LAB MATERIALS - OXOID,Integrated Care,OXOID LIMITED,0002226436,1383.40,
Department of Health,East Sussex Hospitals NHS Trust,10/03/2014,M&S GENERAL SUPPLIES-OTHER,Planned Care,SMITH & NEPHEW ADVANCED SURGICAL DEVICES,0002226437,963.14,
Department of Health,East Sussex Hospitals NHS Trust,10/03/2014,SURGICAL INSTRUMENTS,Planned Care,SMITH & NEPHEW ADVANCED SURGICAL DEVICES,0002226437,82.24,
Department of Health,East Sussex Hospitals NHS Trust,10/03/2014,M&S GENERAL SUPPLIES-OTHER,Urgent Care,KIMAL PLC (FOR ORDERS),0002226439,1240.50,
Department of Health,East Sussex Hospitals NHS Trust,10/03/2014,ENDOSCOPY CONSUMABLES,Planned Care,PENNAMED LTD,0002226440,736.80,
Department of Health,East Sussex Hospitals NHS Trust,10/03/2014,ENDOSCOPY CONSUMABLES,Planned Care,MEDLINE INDUSTRIES LIMITED,0002226441,-0.43,
Department of Health,East Sussex Hospitals NHS Trust,10/03/2014,PROCEDURE PACKS,Commercial,MEDLINE INDUSTRIES LIMITED,0002226441,5282.18,
Department of Health,East Sussex Hospitals NHS Trust,10/03/2014,PRE-STERILE COMMERCIAL PACKS,Commercial,FULL SUPPORT HEALTHCARE LTD,0002226443,4186.61,
Department of Health,East Sussex Hospitals NHS Trust,10/03/2014,DISPOSABLE DRAPES,Commercial,FULL SUPPORT HEALTHCARE LTD,0002226443,126.22,
Department of Health,East Sussex Hospitals NHS Trust,10/03/2014,PRE-STERILE COMMERCIAL PACKS,Commercial,RICHARDSON HEALTHCARE,0002226445,983.04,
Department of Health,East Sussex Hospitals NHS Trust,10/03/2014,M&S GENERAL SUPPLIES-OTHER,Commercial,CLINIPAK LTD,0002226446,790.56,
Department of Health,East Sussex Hospitals NHS Trust,10/03/2014,PROSTHESES-OTHER,Planned Care,KLS MARTIN UK LIMITED,0002226448,908.33,
Department of Health,East Sussex Hospitals NHS Trust,10/03/2014,BLOOD PRODUCTS - BPL,Integrated Care,BIO PRODUCTS LABORATORY,0002226452,2898.00,
Department of Health,East Sussex Hospitals NHS Trust,10/03/2014,LAB MATERIALS - ABBOTT,Integrated Care,ABBOTT LABORATORIES LTD,0002226461,3145.93,
Department of Health,East Sussex Hospitals NHS Trust,10/03/2014,LAB MATERIALS - ABBOTT,Integrated Care,ABBOTT LABORATORIES LTD,0002226462,4826.44,
Department of Health,East Sussex Hospitals NHS Trust,10/03/2014,CAPITAL EXPENDITURE,Other Central,ARJOHUNTLEIGH UK (BEDS),0002226463,768.00,
Department of Health,East Sussex Hospitals NHS Trust,10/03/2014,BILIARY STENTS,Integrated Care,AQUILANT INTERVENTIONAL,0002226470,1795.20,
Department of Health,East Sussex Hospitals NHS Trust,10/03/2014,CAPITAL EXPENDITURE,Other Central,BYTES SOFTWARE SERVICES LTD,0002226595,4388.16,
Department of Health,East Sussex Hospitals NHS Trust,10/03/2014,CAPITAL EXPENDITURE,Other Central,BYTES SOFTWARE SERVICES LTD,0002226596,2632.90,
Department of Health,East Sussex Hospitals NHS Trust,10/03/2014,M&S EQUIPMENT - OTHER,Planned Care,BIOVENTUS COOPERATIEF UA,0002226600,2562.00,
Department of Health,East Sussex Hospitals NHS Trust,10/03/2014,LAB MATERIALS - MAIN ANALYSER,Integrated Care,ORTHO-CLINICAL DIAGNOSTICS,0002226601,927.94,
Department of Health,East Sussex Hospitals NHS Trust,10/03/2014,M&S GENERAL SUPPLIES-OTHER,Commercial,ORTHO-CLINICAL DIAGNOSTICS,0002226601,26.85,
Department of Health,East Sussex Hospitals NHS Trust,10/03/2014,CARDIOLOGY CATHETERS,Urgent Care,ST JUDE MEDICAL UK LIMITED,0002226602,6000.00,
Department of Health,East Sussex Hospitals NHS Trust,10/03/2014,M & S EQUIP REPAIR MATERIALS,Planned Care,MAQUET LIMITED,0002226603,762.08,
Department of Health,East Sussex Hospitals NHS Trust,10/03/2014,WASTE DISPOSAL SERVICES,Commercial,ANACO SMITH LTD,0002226608,9504.00,
Department of Health,East Sussex Hospitals NHS Trust,10/03/2014,CARDIOLOGY CATHETERS,Urgent Care,BARD LTD,0002226609,1200.00,
Department of Health,East Sussex Hospitals NHS Trust,10/03/2014,M&S GENERAL SUPPLIES-OTHER,Urgent Care,KIMAL PLC (FOR ORDERS),0002226610,1273.92,
Department of Health,East Sussex Hospitals NHS Trust,10/03/2014,M&S GENERAL SUPPLIES-OTHER,Urgent Care,INTERSURGICAL LTD,0002226620,660.00,
Department of Health,East Sussex Hospitals NHS Trust,10/03/2014,CARDIOLOGY CATHETERS,Urgent Care,ACROSTAK-UK,0002226626,960.00,
Department of Health,East Sussex Hospitals NHS Trust,10/03/2014,STOCK-ASCRIBE EDGH,Pharmacy Stock,ALLERGAN LTD,0013014851,4176.00,
Department of Health,East Sussex Hospitals NHS Trust,10/03/2014,STOCK-ASCRIBE EDGH,Pharmacy Stock,GE HEALTHCARE LTD,0013014853,1045.44,
Department of Health,East Sussex Hospitals NHS Trust,10/03/2014,STOCK-ASCRIBE EDGH,Pharmacy Stock,GAMBRO LUNDIA AB,0013014911,1260.00,
Department of Health,East Sussex Hospitals NHS Trust,10/03/2014,STOCK-ASCRIBE EDGH,Pharmacy Stock,BAXTER HEALTHCARE (BERKSHIRE)LTD,0013014939,3586.44,
Department of Health,East Sussex Hospitals NHS Trust,10/03/2014,STOCK-ASCRIBE EDGH,Pharmacy Stock,ALCON EYE CARE UK LTD,0013014960,1350.00,
Department of Health,East Sussex Hospitals NHS Trust,10/03/2014,STOCK-ASCRIBE EDGH,Pharmacy Stock,JANSSEN-CILAG LTD,0013015041,7950.00,
Department of Health,East Sussex Hospitals NHS Trust,10/03/2014,STOCK-ASCRIBE EDGH,Pharmacy Stock,BAXTER HEALTHCARE (BERKSHIRE)LTD,0013015042,1562.40,
Department of Health,East Sussex Hospitals NHS Trust,10/03/2014,STOCK-ASCRIBE EDGH,Pharmacy Stock,HOSPIRA UK LIMITED,0013015053,648.00,
Department of Health,East Sussex Hospitals NHS Trust,10/03/2014,STOCK-ASCRIBE EDGH,Pharmacy Stock,ROCHE PRODUCTS LTD,0013015054,14186.93,
Department of Health,East Sussex Hospitals NHS Trust,10/03/2014,STOCK-ASCRIBE EDGH,Pharmacy Stock,ROCHE PRODUCTS LTD,0013015055,4191.00,
Department of Health,East Sussex Hospitals NHS Trust,10/03/2014,PROSTHESIS - LENS,Planned Care,ALCON EYE CARE UK LTD,0080003598,595.20,
Department of Health,East Sussex Hospitals NHS Trust,10/03/2014,PROSTHESES-HIP,Planned Care,JOHNSON & JOHNSON MEDICAL LTD,0080003601,1735.68,
Department of Health,East Sussex Hospitals NHS Trust,10/03/2014,NATIONAL JOINT REGISTRY LEVY,Planned Care,JOHNSON & JOHNSON MEDICAL LTD,0080003601,20.00,
Department of Health,East Sussex Hospitals NHS Trust,10/03/2014,SURGICAL INSTRUMENTS,Planned Care,SMITH & NEPHEW HEALTHCARE LTD,0080003630,852.41,
Department of Health,East Sussex Hospitals NHS Trust,10/03/2014,PROSTHESES-OTHER,Planned Care,SMITH & NEPHEW ADVANCED SURGICAL DEVICES,0080003631,871.37,
Department of Health,East Sussex Hospitals NHS Trust,10/03/2014,M&S GENERAL SUPPLIES-OTHER,Planned Care,DELTEX MEDICAL,0080003636,512.40,
Department of Health,East Sussex Hospitals NHS Trust,10/03/2014,PROSTHESES-HIP,Planned Care,BIOMET UK HEALTHCARE LTD,0080003640,1532.00,
Department of Health,East Sussex Hospitals NHS Trust,10/03/2014,PROSTHESES-KNEES,Planned Care,BIOMET UK HEALTHCARE LTD,0080003640,1204.20,
Department of Health,East Sussex Hospitals NHS Trust,10/03/2014,PROSTHESIS - LENS,Planned Care,ALCON EYE CARE UK LTD,0080003641,1785.60,
Department of Health,East Sussex Hospitals NHS Trust,10/03/2014,M&S GENERAL SUPPLIES-OTHER,Planned Care,ALCON EYE CARE UK LTD,0080003642,6297.60,
Department of Health,East Sussex Hospitals NHS Trust,10/03/2014,SURGICAL INSTRUMENTS,Planned Care,MEDTRONIC LTD,0080003644,582.00,
Department of Health,East Sussex Hospitals NHS Trust,10/03/2014,SURGICAL INSTRUMENTS,Planned Care,MEDTRONIC LTD,0080003651,704.40,
Department of Health,East Sussex Hospitals NHS Trust,10/03/2014,M&S GENERAL SUPPLIES-OTHER,Planned Care,BIOMET UK HEALTHCARE LTD,0080003654,938.14,
Department of Health,East Sussex Hospitals NHS Trust,10/03/2014,PROSTHESES-HIP,Planned Care,BIOMET UK HEALTHCARE LTD,0080003655,231.37,
Department of Health,East Sussex Hospitals NHS Trust,10/03/2014,PROSTHESES-KNEES,Planned Care,BIOMET UK HEALTHCARE LTD,0080003655,11426.58,
Department of Health,East Sussex Hospitals NHS Trust,10/03/2014,PROSTHESES-OTHER,Planned Care,BIOMET UK HEALTHCARE LTD,0080003655,144.00,
Department of Health,East Sussex Hospitals NHS Trust,10/03/2014,PROSTHESES-HIP,Planned Care,JOHNSON & JOHNSON MEDICAL LTD,0080003658,2311.96,
Department of Health,East Sussex Hospitals NHS Trust,10/03/2014,LASER/LAPARASCOPIC EQUIPMENT,Planned Care,JOHNSON & JOHNSON MEDICAL LTD,0080003659,6307.37,
Department of Health,East Sussex Hospitals NHS Trust,10/03/2014,CARDIOLOGY CATHETERS,Urgent Care,JOHNSON & JOHNSON MEDICAL LTD,0080003660,1579.20,
Department of Health,East Sussex Hospitals NHS Trust,10/03/2014,M&S GENERAL SUPPLIES-OTHER,Planned Care,JOHNSON & JOHNSON MEDICAL LTD,0080003661,1962.32,
Department of Health,East Sussex Hospitals NHS Trust,10/03/2014,M&S GENERAL SUPPLIES-OTHER,Planned Care,SMITH & NEPHEW ADVANCED SURGICAL DEVICES,0080003665,26.65,
Department of Health,East Sussex Hospitals NHS Trust,10/03/2014,SURGICAL INSTRUMENTS,Planned Care,SMITH & NEPHEW ADVANCED SURGICAL DEVICES,0080003665,56.50,
Department of Health,East Sussex Hospitals NHS Trust,10/03/2014,PROSTHESES-OTHER,Planned Care,SMITH & NEPHEW ADVANCED SURGICAL DEVICES,0080003665,554.11,
Department of Health,East Sussex Hospitals NHS Trust,10/03/2014,SURGICAL INSTRUMENTS,Planned Care,JOHNSON & JOHNSON MEDICAL LTD,0080003666,285.26,
Department of Health,East Sussex Hospitals NHS Trust,10/03/2014,PROSTHESES-OTHER,Planned Care,JOHNSON & JOHNSON MEDICAL LTD,0080003666,454.20,
Department of Health,East Sussex Hospitals NHS Trust,10/03/2014,PROSTHESES-KNEES,Planned Care,BIOMET UK HEALTHCARE LTD,0080003670,410.40,
Department of Health,East Sussex Hospitals NHS Trust,10/03/2014,PROSTHESES-OTHER,Planned Care,BIOMET UK HEALTHCARE LTD,0080003670,144.00,
Department of Health,East Sussex Hospitals NHS Trust,10/03/2014,BONE BANK,Planned Care,HOSPITAL INNOVATIONS LTD,0080003679,1280.00,
Department of Health,East Sussex Hospitals NHS Trust,11/03/2014,SR KINGS COLL,Integrated Care,KING'S COLLEGE HOSP NHS FOUNDATION TRUST,0000139328,6464.70,
Department of Health,East Sussex Hospitals NHS Trust,11/03/2014,EAST KENT UNI FOUNDATION TRUST,Integrated Care,EAST KENT HOSPITALS UNIVERSITY NHS FT,0000139345,695.85,
Department of Health,East Sussex Hospitals NHS Trust,11/03/2014,AGENCY SHO,Urgent Care,MEDACS HEALTHCARE SERVICES LTD,0000295600,792.00,
Department of Health,East Sussex Hospitals NHS Trust,11/03/2014,AGENCY SHO,Urgent Care,MEDACS HEALTHCARE SERVICES LTD,0000295710,1607.29,
Department of Health,East Sussex Hospitals NHS Trust,11/03/2014,AGENCY SHO,Planned Care,THE ACCIDENT & EMERGENCY AGENCY LTD,0000296085,3459.00,
Department of Health,East Sussex Hospitals NHS Trust,11/03/2014,AGENCY CONSULTANT,Integrated Care,MEDACS HEALTHCARE SERVICES LTD,0000296088,6612.00,
Department of Health,East Sussex Hospitals NHS Trust,11/03/2014,AGENCY SHO,Urgent Care,MEDACS HEALTHCARE SERVICES LTD,0000296105,992.95,
Department of Health,East Sussex Hospitals NHS Trust,11/03/2014,AGENCY SHO,Planned Care,MEDACS HEALTHCARE SERVICES LTD,0000296228,750.02,
Department of Health,East Sussex Hospitals NHS Trust,11/03/2014,AGENCY SHO,Planned Care,MEDACS HEALTHCARE SERVICES LTD,0000296229,750.02,
Department of Health,East Sussex Hospitals NHS Trust,11/03/2014,AGENCY SHO,Planned Care,MEDACS HEALTHCARE SERVICES LTD,0000296230,2139.20,
Department of Health,East Sussex Hospitals NHS Trust,11/03/2014,AGENCY SHO,Planned Care,MEDACS HEALTHCARE SERVICES LTD,0000296231,8266.07,
Department of Health,East Sussex Hospitals NHS Trust,11/03/2014,AGENCY SHO,Planned Care,MEDACS HEALTHCARE SERVICES LTD,0000296232,1038.46,
Department of Health,East Sussex Hospitals NHS Trust,11/03/2014,AGENCY SHO,Planned Care,MEDACS HEALTHCARE SERVICES LTD,0000296233,8058.37,
Department of Health,East Sussex Hospitals NHS Trust,11/03/2014,AGENCY SHO,Planned Care,MEDACS HEALTHCARE SERVICES LTD,0000296234,540.00,
Department of Health,East Sussex Hospitals NHS Trust,11/03/2014,AGENCY SHO,Planned Care,MEDACS HEALTHCARE SERVICES LTD,0000296235,5628.40,
Department of Health,East Sussex Hospitals NHS Trust,11/03/2014,CONT.MAIN-MED & SURG EQUIP,Planned Care,ECLIPSE DENTAL,0000363673,964.86,
Department of Health,East Sussex Hospitals NHS Trust,11/03/2014,CONTRACT ENGINEERING MAINT,Commercial,BEACON WATER TREATMENT LTD,0000363686,320.00,
Department of Health,East Sussex Hospitals NHS Trust,11/03/2014,CONTRACT ENGINEERING MAINT,Commercial,BEACON WATER TREATMENT LTD,0000363686,320.00,
Department of Health,East Sussex Hospitals NHS Trust,11/03/2014,CAPITAL EXPENDITURE,Other Central,ARCOOL LTD,0000623952,649.00,
Department of Health,East Sussex Hospitals NHS Trust,11/03/2014,STOCK-ASCRIBE CONQUEST,Pharmacy Stock,MAWDSLEYS,0001227039,720.00,
Department of Health,East Sussex Hospitals NHS Trust,11/03/2014,STOCK-ASCRIBE CONQUEST,Pharmacy Stock,OXFORD HEALTH NHS FOUNDATION TRUST,0001227113,744.06,
Department of Health,East Sussex Hospitals NHS Trust,11/03/2014,STOCK-ASCRIBE CONQUEST,Pharmacy Stock,UNIDRUG DISTRIBUTION GROUP LTD,0001227116,567.47,
Department of Health,East Sussex Hospitals NHS Trust,11/03/2014,STOCK-ASCRIBE CONQUEST,Pharmacy Stock,UNIDRUG DISTRIBUTION GROUP LTD,0001227143,1443.00,
Department of Health,East Sussex Hospitals NHS Trust,11/03/2014,STOCK-ASCRIBE CONQUEST,Pharmacy Stock,ROCHE PRODUCTS LTD,0001227146,1112.28,
Department of Health,East Sussex Hospitals NHS Trust,11/03/2014,STOCK-ASCRIBE CONQUEST,Pharmacy Stock,ROCHE PRODUCTS LTD,0001227147,2411.52,
Department of Health,East Sussex Hospitals NHS Trust,11/03/2014,STOCK-ASCRIBE CONQUEST,Pharmacy Stock,JANSSEN-CILAG LTD,0001227150,4770.00,
Department of Health,East Sussex Hospitals NHS Trust,11/03/2014,STOCK-ASCRIBE CONQUEST,Pharmacy Stock,SOUTH DEVON HEALTHCARE NHS (TORBAY PMU),0001227153,659.80,
Department of Health,East Sussex Hospitals NHS Trust,11/03/2014,POSTAGE - FRANKING MACHINE,Commercial,NEOPOST LTD,0001423910,524.96,
Department of Health,East Sussex Hospitals NHS Trust,11/03/2014,CAPITAL EXPENDITURE,Other Central,COLOURS DECORATING LTD,0001424021,1832.40,
Department of Health,East Sussex Hospitals NHS Trust,11/03/2014,"BOOKS, JOURNALS & SUBCRIPTIONS",Commercial,PERFORMING RIGHTS SOCIETY LTD,0001424085,1642.46,
Department of Health,East Sussex Hospitals NHS Trust,11/03/2014,COUNCIL TAX PAYMENTS,Commercial,EASTBOURNE BOROUGH COUNCIL,0001424086,10045.01,
Department of Health,East Sussex Hospitals NHS Trust,11/03/2014,TRAINING FEES - NURSE CONT ED,Corporate Services,MTTS,0001424109,500.00,
Department of Health,East Sussex Hospitals NHS Trust,11/03/2014,TRAINING FEES - NURSE CONT ED,Corporate Services,COURSE FEES,0001424110,3950.00,
Department of Health,East Sussex Hospitals NHS Trust,11/03/2014,ELECTRICITY,Commercial,EDF ENERGY,0001424116,57437.36,
Department of Health,East Sussex Hospitals NHS Trust,11/03/2014,AGENCY ANCILLARY,Commercial,PAPERWORK COURIERS LTD,0001534037,562.96,
Department of Health,East Sussex Hospitals NHS Trust,11/03/2014,TESTS SENT TO ANTHONY NOLAN,Integrated Care,ANTHONY NOLAN,0001534192,750.00,
Department of Health,East Sussex Hospitals NHS Trust,11/03/2014,TELEPHONES-RENTAL&CALLS,Commercial,MAINTEL VOICE & DATA LTD,0001706272,1440.37,
Department of Health,East Sussex Hospitals NHS Trust,11/03/2014,LAB MATS IL CONSUMABLES,Integrated Care,INSTRUMENTATION LABORATORIES UK LTD,0002127538,7304.94,
Department of Health,East Sussex Hospitals NHS Trust,11/03/2014,CARDIOLOGY STENTS,Urgent Care,MEDTRONIC LTD,0002127586,2088.00,
Department of Health,East Sussex Hospitals NHS Trust,11/03/2014,LOANER KITS - HIRE CHARGE,Planned Care,ZIMMER LTD,0002128915,660.00,
Department of Health,East Sussex Hospitals NHS Trust,11/03/2014,PROSTHESES-OTHER,Planned Care,ZIMMER LTD,0002128915,3404.16,
Department of Health,East Sussex Hospitals NHS Trust,11/03/2014,GENERAL LAB. CONSUMABLES,Integrated Care,GLEN DIMPLEX HOME APPLIANCES LTD,0002129759,678.00,
Department of Health,East Sussex Hospitals NHS Trust,11/03/2014,PROSTHESIS - SPINAL,Planned Care,ZIMMER LTD,0002130174,1406.16,
Department of Health,East Sussex Hospitals NHS Trust,11/03/2014,PROSTHESES-OTHER,Planned Care,ZIMMER LTD,0002130344,703.08,
Department of Health,East Sussex Hospitals NHS Trust,11/03/2014,CARDIOLOGY CATHETERS,Urgent Care,MEDTRONIC LTD,0002130401,930.00,
Department of Health,East Sussex Hospitals NHS Trust,11/03/2014,M&S GENERAL SUPPLIES-OTHER,Planned Care,FRESENIUS LTD,0002130404,635.04,
Department of Health,East Sussex Hospitals NHS Trust,11/03/2014,LAPARASCOPIC EQUIP-UROLOGICAL,Planned Care,PURPLE SURGICAL UK LTD,0002130429,3456.00,
Department of Health,East Sussex Hospitals NHS Trust,11/03/2014,LAPARASCOPIC EQUIP-UROLOGICAL,Planned Care,PURPLE SURGICAL UK LTD,0002130459,3456.00,
Department of Health,East Sussex Hospitals NHS Trust,11/03/2014,M&S EQUIPMENT - OTHER,Planned Care,BIOVENTUS COOPERATIEF UA,0002226138,2562.00,
Department of Health,East Sussex Hospitals NHS Trust,11/03/2014,LAB MATERIALS - ABBOTT,Integrated Care,ABBOTT LABORATORIES LTD,0002226478,1596.86,
Department of Health,East Sussex Hospitals NHS Trust,11/03/2014,INTERVASCULAR STENTS,Planned Care,MEDTRONIC LTD,0002226544,7800.00,
Department of Health,East Sussex Hospitals NHS Trust,11/03/2014,M&S GENERAL SUPPLIES-OTHER,Urgent Care,MEDTRONIC LTD,0002226545,554.40,
Department of Health,East Sussex Hospitals NHS Trust,11/03/2014,M&S GENERAL SUPPLIES-OTHER,Commercial,UNISURGE INTERNATIONAL LTD,0002226568,838.59,
Department of Health,East Sussex Hospitals NHS Trust,11/03/2014,SURGICAL INSTRUMENTS,Commercial,UNISURGE INTERNATIONAL LTD,0002226568,268.80,
Department of Health,East Sussex Hospitals NHS Trust,11/03/2014,PRE-STERILE COMMERCIAL PACKS,Commercial,UNISURGE INTERNATIONAL LTD,0002226568,1121.26,
Department of Health,East Sussex Hospitals NHS Trust,11/03/2014,STOCK-ASCRIBE EDGH,Pharmacy Stock,FRESENIUS LTD,0013015057,715.58,
Department of Health,East Sussex Hospitals NHS Trust,11/03/2014,STOCK-ASCRIBE EDGH,Pharmacy Stock,ROCHE PRODUCTS LTD,0013015061,31433.40,
Department of Health,East Sussex Hospitals NHS Trust,18/03/2014,POSTAGE - FRANKING MACHINE,Commercial,NEOPOST LIMITED (CREDIFON DEPT),0001423911,29665.77,
Department of Health,East Sussex Hospitals NHS Trust,18/03/2014,PURCHASING CARDS,Cross Site,LLOYDS TSB CORPORATE MARKETS,0001424164,18459.97,
Department of Health,East Sussex Hospitals NHS Trust,18/03/2014,CONTRACT-VEHICLE LEASING,Commercial,PROHIRE PLC UK,0001424165,3259.00,
Department of Health,East Sussex Hospitals NHS Trust,20/03/2014,AGENCY CONSULTANT,Urgent Care,MYLOCUM LTD,0000294364,-4147.20,
Department of Health,East Sussex Hospitals NHS Trust,20/03/2014,AGENCY SHO,Urgent Care,MYLOCUM LTD,0000294897,990.00,
Department of Health,East Sussex Hospitals NHS Trust,20/03/2014,AGENCY SHO,Planned Care,MYLOCUM LTD,0000294898,1122.00,
Department of Health,East Sussex Hospitals NHS Trust,20/03/2014,AGENCY SHO,Planned Care,MYLOCUM LTD,0000295257,1551.00,
Department of Health,East Sussex Hospitals NHS Trust,20/03/2014,AGENCY SPECIALIST REG,Planned Care,RIG LOCUMS LIMITED,0000295757,6757.18,
Department of Health,East Sussex Hospitals NHS Trust,20/03/2014,AGENCY SPECIALIST REG,Urgent Care,PERTEMPS NETWORK MEDICAL LIMITED,0000295822,2730.00,
Department of Health,East Sussex Hospitals NHS Trust,20/03/2014,AGENCY RADIOGRAPHY STAFF,Integrated Care,RIG LOCUMS LIMITED,0000296200,3198.00,
Department of Health,East Sussex Hospitals NHS Trust,20/03/2014,AGENCY SPECIALIST REG,Planned Care,MYLOCUM LTD,0000296309,3550.34,
Department of Health,East Sussex Hospitals NHS Trust,20/03/2014,BUILDING CONTRACT - CONT SERV,Commercial,THOMAS DOOR & WINDOW CONTROLS,0000362852,1050.00,
Department of Health,East Sussex Hospitals NHS Trust,20/03/2014,CONTRACT ENGINEERING MAINT,Commercial,THOMAS DOOR & WINDOW CONTROLS,0000362852,280.00,
Department of Health,East Sussex Hospitals NHS Trust,20/03/2014,CONTRACT ENGINEERING MAINT,Commercial,THOMAS DOOR & WINDOW CONTROLS,0000362852,35.00,
Department of Health,East Sussex Hospitals NHS Trust,20/03/2014,CONTRACT BUILDING MAINTENANCE,Commercial,THOMAS DOOR & WINDOW CONTROLS,0000362852,630.00,
Department of Health,East Sussex Hospitals NHS Trust,20/03/2014,MINOR WORKS - BUILDING,Integrated Care,PD HARRIS LTD (ALAN HARRIS),0000363790,1129.81,
Department of Health,East Sussex Hospitals NHS Trust,20/03/2014,MINOR WORKS - BUILDING,Planned Care,PD HARRIS LTD (ALAN HARRIS),0000363804,2846.39,
Department of Health,East Sussex Hospitals NHS Trust,20/03/2014,PROFESSIONAL FEES,Commercial,INGRID GILLESPIE,0000363806,1746.00,
Department of Health,East Sussex Hospitals NHS Trust,20/03/2014,CONT.MAIN-MED & SURG EQUIP,Integrated Care,VERATHON MEDICAL,0000623628,595.00,
Department of Health,East Sussex Hospitals NHS Trust,20/03/2014,CONT.MAIN-MED & SURG EQUIP,Urgent Care,VERATHON MEDICAL,0000623628,595.00,
Department of Health,East Sussex Hospitals NHS Trust,20/03/2014,CONT.MAIN-MED & SURG EQUIP,Planned Care,VERATHON MEDICAL,0000623628,595.00,
Department of Health,East Sussex Hospitals NHS Trust,20/03/2014,CONT.MAIN-MED & SURG EQUIP,Planned Care,VERATHON MEDICAL,0000623628,2408.33,
Department of Health,East Sussex Hospitals NHS Trust,20/03/2014,INCOME - EME MATERIALS,Commercial,VERATHON MEDICAL,0000623628,481.67,
Department of Health,East Sussex Hospitals NHS Trust,20/03/2014,STOCK-ASCRIBE CONQUEST,Pharmacy Stock,ALLIANCE HEALTHCARE (DISTRIBUTION) LTD,0001226850,-3720.00,
Department of Health,East Sussex Hospitals NHS Trust,20/03/2014,STOCK-ASCRIBE CONQUEST,Pharmacy Stock,ALLIANCE HEALTHCARE (DISTRIBUTION) LTD,0001227254,827.01,
Department of Health,East Sussex Hospitals NHS Trust,20/03/2014,STOCK-ASCRIBE CONQUEST,Pharmacy Stock,ALLIANCE HEALTHCARE (DISTRIBUTION) LTD,0001227258,699.06,
Department of Health,East Sussex Hospitals NHS Trust,20/03/2014,STOCK-ASCRIBE CONQUEST,Pharmacy Stock,ALLIANCE HEALTHCARE (DISTRIBUTION) LTD,0001227259,904.01,
Department of Health,East Sussex Hospitals NHS Trust,20/03/2014,STOCK-ASCRIBE CONQUEST,Pharmacy Stock,ALLIANCE HEALTHCARE (DISTRIBUTION) LTD,0001227260,956.41,
Department of Health,East Sussex Hospitals NHS Trust,20/03/2014,STOCK-ASCRIBE CONQUEST,Pharmacy Stock,ALLIANCE HEALTHCARE (DISTRIBUTION) LTD,0001227261,827.11,
Department of Health,East Sussex Hospitals NHS Trust,20/03/2014,STOCK-ASCRIBE CONQUEST,Pharmacy Stock,ALLIANCE HEALTHCARE (DISTRIBUTION) LTD,0001227262,777.60,
Department of Health,East Sussex Hospitals NHS Trust,20/03/2014,STOCK-ASCRIBE CONQUEST,Pharmacy Stock,BAXTER HEALTHCARE (BERKSHIRE)LTD,0001227284,4233.84,
Department of Health,East Sussex Hospitals NHS Trust,20/03/2014,STOCK-ASCRIBE CONQUEST,Pharmacy Stock,GE HEALTHCARE LTD,0001227287,611.28,
Department of Health,East Sussex Hospitals NHS Trust,20/03/2014,STOCK-ASCRIBE CONQUEST,Pharmacy Stock,BAXTER HEALTHCARE (BERKSHIRE)LTD,0001227312,802.80,
Department of Health,East Sussex Hospitals NHS Trust,20/03/2014,STOCK-ASCRIBE CONQUEST,Pharmacy Stock,BAXTER HEALTHCARE (BERKSHIRE)LTD,0001227743,3971.07,
Department of Health,East Sussex Hospitals NHS Trust,20/03/2014,STOCK-ASCRIBE CONQUEST,Pharmacy Stock,BAXTER HEALTHCARE (BERKSHIRE)LTD,0001227784,1050.00,
Department of Health,East Sussex Hospitals NHS Trust,20/03/2014,CROYDON MRI-SERVICES RECD,Urgent Care,BMI HEALTHCARE COLLECTIONS,0001423588,6700.00,
Department of Health,East Sussex Hospitals NHS Trust,20/03/2014,SUSPENSE(ACCRUALS NOT ACCRUED),Corporate Services,WYBORNS PHARMACY,0001423992,2536.91,
Department of Health,East Sussex Hospitals NHS Trust,20/03/2014,SUSPENSE(ACCRUALS NOT ACCRUED),Corporate Services,WYBORNS PHARMACY,0001423993,3541.89,
Department of Health,East Sussex Hospitals NHS Trust,20/03/2014,SUSPENSE(ACCRUALS NOT ACCRUED),Corporate Services,WYBORNS PHARMACY,0001423994,3079.72,
Department of Health,East Sussex Hospitals NHS Trust,20/03/2014,SUSPENSE(ACCRUALS NOT ACCRUED),Corporate Services,WYBORNS PHARMACY,0001423995,3726.76,
Department of Health,East Sussex Hospitals NHS Trust,20/03/2014,SUSPENSE(ACCRUALS NOT ACCRUED),Corporate Services,WYBORNS PHARMACY,0001423996,2387.56,
Department of Health,East Sussex Hospitals NHS Trust,20/03/2014,SUSPENSE(ACCRUALS NOT ACCRUED),Corporate Services,WYBORNS PHARMACY,0001423997,2536.97,
Department of Health,East Sussex Hospitals NHS Trust,20/03/2014,SUSPENSE(ACCRUALS NOT ACCRUED),Corporate Services,WYBORNS PHARMACY,0001423998,4008.64,
Department of Health,East Sussex Hospitals NHS Trust,20/03/2014,DRUGS-OTHER,Urgent Care,WYBORNS PHARMACY,0001423999,3818.11,
Department of Health,East Sussex Hospitals NHS Trust,20/03/2014,DRUGS-OTHER,Urgent Care,WYBORNS PHARMACY,0001423999,89.26,
Department of Health,East Sussex Hospitals NHS Trust,20/03/2014,DRUGS-OTHER,Urgent Care,WYBORNS PHARMACY,0001424000,190.18,
Department of Health,East Sussex Hospitals NHS Trust,20/03/2014,DRUGS-OTHER,Urgent Care,WYBORNS PHARMACY,0001424000,3449.08,
Department of Health,East Sussex Hospitals NHS Trust,20/03/2014,DRUGS-OTHER,Urgent Care,WYBORNS PHARMACY,0001424000,210.82,
Department of Health,East Sussex Hospitals NHS Trust,20/03/2014,DRUGS-OTHER,Urgent Care,WYBORNS PHARMACY,0001424001,3948.10,
Department of Health,East Sussex Hospitals NHS Trust,20/03/2014,DRUGS-OTHER,Urgent Care,WYBORNS PHARMACY,0001424001,250.48,
Department of Health,East Sussex Hospitals NHS Trust,20/03/2014,DRUGS-OTHER,Urgent Care,WYBORNS PHARMACY,0001424002,2546.86,
Department of Health,East Sussex Hospitals NHS Trust,20/03/2014,DRUGS-OTHER,Urgent Care,WYBORNS PHARMACY,0001424002,438.29,
Department of Health,East Sussex Hospitals NHS Trust,20/03/2014,DRUGS-OTHER,Urgent Care,WYBORNS PHARMACY,0001424003,189.14,
Department of Health,East Sussex Hospitals NHS Trust,20/03/2014,DRUGS-OTHER,Urgent Care,WYBORNS PHARMACY,0001424003,3923.82,
Department of Health,East Sussex Hospitals NHS Trust,20/03/2014,DRUGS-OTHER,Urgent Care,WYBORNS PHARMACY,0001424003,217.12,
Department of Health,East Sussex Hospitals NHS Trust,20/03/2014,DRUGS-OTHER,Urgent Care,WYBORNS PHARMACY,0001424004,139.78,
Department of Health,East Sussex Hospitals NHS Trust,20/03/2014,DRUGS-OTHER,Urgent Care,WYBORNS PHARMACY,0001424004,1611.69,
Department of Health,East Sussex Hospitals NHS Trust,20/03/2014,DRUGS-OTHER,Urgent Care,WYBORNS PHARMACY,0001424004,208.94,
Department of Health,East Sussex Hospitals NHS Trust,20/03/2014,DRUGS-OTHER,Urgent Care,WYBORNS PHARMACY,0001424005,2145.74,
Department of Health,East Sussex Hospitals NHS Trust,20/03/2014,DRUGS-OTHER,Urgent Care,WYBORNS PHARMACY,0001424005,224.70,
Department of Health,East Sussex Hospitals NHS Trust,20/03/2014,ELECTRICITY,Commercial,EDF ENERGY,0001424111,61887.32,
Department of Health,East Sussex Hospitals NHS Trust,20/03/2014,ELECTRICITY,Commercial,EDF ENERGY,0001424112,1956.85,
Department of Health,East Sussex Hospitals NHS Trust,20/03/2014,ELECTRICITY,Commercial,EDF ENERGY,0001424113,4092.51,
Department of Health,East Sussex Hospitals NHS Trust,20/03/2014,ELECTRICITY,Commercial,EDF ENERGY,0001424114,3420.11,
Department of Health,East Sussex Hospitals NHS Trust,20/03/2014,ELECTRICITY,Commercial,EDF ENERGY,0001424115,3602.83,
Department of Health,East Sussex Hospitals NHS Trust,20/03/2014,LECTURE FEES,Corporate Services,MISCELLANEOUS ONE-OFF PAYMENTS,0001424121,855.36,
Department of Health,East Sussex Hospitals NHS Trust,20/03/2014,PATIENTLINE RENTAL,Commercial,HOSPEDIA LIMITED,0001424126,1750.00,
Department of Health,East Sussex Hospitals NHS Trust,20/03/2014,LECTURE FEES,Corporate Services,DR MARY SEABROOK,0001424136,1000.00,
Department of Health,East Sussex Hospitals NHS Trust,20/03/2014,LECTURE FEES,Corporate Services,DR MARY SEABROOK,0001424137,750.00,
Department of Health,East Sussex Hospitals NHS Trust,20/03/2014,LECTURE FEES,Corporate Services,MARY E BLAIN,0001424138,750.00,
Department of Health,East Sussex Hospitals NHS Trust,20/03/2014,SEWERAGE - RATES & METERED,Commercial,SOUTHERN WATER SERVICES LTD,0001424139,11150.09,
Department of Health,East Sussex Hospitals NHS Trust,20/03/2014,REGISTRATION FEES CRECHE,Corporate Services,EDENRED,0001424140,120.11,
Department of Health,East Sussex Hospitals NHS Trust,20/03/2014,REGISTRATION FEES CRECHE,Corporate Services,EDENRED,0001424140,120.11,
Department of Health,East Sussex Hospitals NHS Trust,20/03/2014,WATER-RATES & METERED,Commercial,SOUTH EAST WATER LTD,0001424146,7464.63,
Department of Health,East Sussex Hospitals NHS Trust,20/03/2014,WATER & SEWERAGE,Commercial,SOUTH EAST WATER LTD,0001424148,1192.68,
Department of Health,East Sussex Hospitals NHS Trust,20/03/2014,STOCK-ASCRIBE EDGH,Pharmacy Stock,ALLIANCE HEALTHCARE (DISTRIBUTION) LTD,0001424155,-2232.00,
Department of Health,East Sussex Hospitals NHS Trust,20/03/2014,PROFESSIONAL FEES,Corporate Services,THE DEARDEN PARTNERSHIP,0001424158,10000.00,
Department of Health,East Sussex Hospitals NHS Trust,20/03/2014,ELECTRICITY,Commercial,EDF ENERGY,0001424159,4949.01,
Department of Health,East Sussex Hospitals NHS Trust,20/03/2014,CARDIOLOGY STENTS,Urgent Care,ABBOTT VASCULAR,0001424166,534.00,
Department of Health,East Sussex Hospitals NHS Trust,20/03/2014,CARDIOLOGY STENTS,Urgent Care,ABBOTT VASCULAR,0001424167,924.00,
Department of Health,East Sussex Hospitals NHS Trust,20/03/2014,CARDIOLOGY STENTS,Urgent Care,ABBOTT VASCULAR,0001424168,924.00,
Department of Health,East Sussex Hospitals NHS Trust,20/03/2014,INTERVENTIONAL DISPOSABLES,Urgent Care,ABBOTT VASCULAR,0001424169,540.00,
Department of Health,East Sussex Hospitals NHS Trust,20/03/2014,CARDIOLOGY CATHETERS,Urgent Care,ABBOTT VASCULAR,0001424169,216.00,
Department of Health,East Sussex Hospitals NHS Trust,20/03/2014,CARDIOLOGY STENTS,Urgent Care,ABBOTT VASCULAR,0001424170,828.00,
Department of Health,East Sussex Hospitals NHS Trust,20/03/2014,CARDIOLOGY STENTS,Urgent Care,ABBOTT VASCULAR,0001424172,1656.00,
Department of Health,East Sussex Hospitals NHS Trust,20/03/2014,CARDIOLOGY STENTS,Urgent Care,ABBOTT VASCULAR,0001424176,2070.00,
Department of Health,East Sussex Hospitals NHS Trust,20/03/2014,CARDIOLOGY STENTS,Urgent Care,ABBOTT VASCULAR,0001424178,1656.00,
Department of Health,East Sussex Hospitals NHS Trust,20/03/2014,CARDIOLOGY STENTS,Urgent Care,ABBOTT VASCULAR,0001424180,1242.00,
Department of Health,East Sussex Hospitals NHS Trust,20/03/2014,INTERVENTIONAL DISPOSABLES,Urgent Care,ABBOTT VASCULAR,0001424188,810.00,
Department of Health,East Sussex Hospitals NHS Trust,20/03/2014,CARDIOLOGY STENTS,Urgent Care,ABBOTT VASCULAR,0001424191,1656.00,
Department of Health,East Sussex Hospitals NHS Trust,20/03/2014,INTERVENTIONAL DISPOSABLES,Urgent Care,ABBOTT VASCULAR,0001424195,540.00,
Department of Health,East Sussex Hospitals NHS Trust,20/03/2014,INTERVENTIONAL DISPOSABLES,Urgent Care,ABBOTT VASCULAR,0001424201,124.80,
Department of Health,East Sussex Hospitals NHS Trust,20/03/2014,CARDIOLOGY CATHETERS,Urgent Care,ABBOTT VASCULAR,0001424201,792.00,
Department of Health,East Sussex Hospitals NHS Trust,20/03/2014,INTERVENTIONAL DISPOSABLES,Urgent Care,ABBOTT VASCULAR,0001424205,810.00,
Department of Health,East Sussex Hospitals NHS Trust,20/03/2014,CARDIOLOGY STENTS,Urgent Care,ABBOTT VASCULAR,0001424207,828.00,
Department of Health,East Sussex Hospitals NHS Trust,20/03/2014,INTERVENTIONAL DISPOSABLES,Urgent Care,ABBOTT VASCULAR,0001424210,270.00,
Department of Health,East Sussex Hospitals NHS Trust,20/03/2014,CARDIOLOGY CATHETERS,Urgent Care,ABBOTT VASCULAR,0001424210,529.20,
Department of Health,East Sussex Hospitals NHS Trust,20/03/2014,CARDIOLOGY STENTS,Urgent Care,ABBOTT VASCULAR,0001424211,3726.00,
Department of Health,East Sussex Hospitals NHS Trust,20/03/2014,PROFESSIONAL FEES,Planned Care,EUROPEAN SLEEP SCHOOL,0001424218,780.00,
Department of Health,East Sussex Hospitals NHS Trust,20/03/2014,ELECTRICITY,Commercial,BRITISH GAS,0001424237,803.15,
Department of Health,East Sussex Hospitals NHS Trust,20/03/2014,ELECTRICITY,Commercial,BRITISH GAS,0001424238,1216.31,
Department of Health,East Sussex Hospitals NHS Trust,20/03/2014,TRAINING FEES - NURSE CONT ED,Corporate Services,OMNIPLEX (GROUP) LTD,0001424247,4000.00,
Department of Health,East Sussex Hospitals NHS Trust,20/03/2014,PATS.APPL.-DENTAL,Planned Care,SOUTH EASTERN ORTHODONTICS,0001424249,2441.08,
Department of Health,East Sussex Hospitals NHS Trust,20/03/2014,PATS.APPL.-DENTAL,Planned Care,SOUTHERN ORTHO SERVICE,0001424250,1708.00,
Department of Health,East Sussex Hospitals NHS Trust,20/03/2014,ELECTRICITY,Commercial,BRITISH GAS,0001424251,-1234.15,
Department of Health,East Sussex Hospitals NHS Trust,20/03/2014,STOCK-ASCRIBE CONQUEST,Pharmacy Stock,CSL BEHRING,0001424260,19530.00,
Department of Health,East Sussex Hospitals NHS Trust,20/03/2014,STOCK-ASCRIBE CONQUEST,Pharmacy Stock,BAXTER HEALTHCARE (BERKSHIRE)LTD,0001424261,-19530.00,
Department of Health,East Sussex Hospitals NHS Trust,20/03/2014,WATER & SEWERAGE,Commercial,SOUTHERN WATER SERVICES LTD,0001424263,740.10,
Department of Health,East Sussex Hospitals NHS Trust,20/03/2014,WATER & SEWERAGE,Commercial,SOUTHERN WATER SERVICES LTD,0001424264,644.09,
Department of Health,East Sussex Hospitals NHS Trust,20/03/2014,WATER & SEWERAGE,Commercial,SOUTHERN WATER SERVICES LTD,0001424265,14155.92,
Department of Health,East Sussex Hospitals NHS Trust,20/03/2014,POSTAGE - FRANKING MACHINE,Commercial,PITNEY BOWES FINANCE PLC,0001532957,456.90,
Department of Health,East Sussex Hospitals NHS Trust,20/03/2014,TRAINING COURSE FEES-OTHER,Commercial,LITS,0001533836,680.60,
Department of Health,East Sussex Hospitals NHS Trust,20/03/2014,PROFESSIONAL FEES,Corporate Services,THE HAYGROUP MANAGEMENT LIMITED,0001534165,2190.28,
Department of Health,East Sussex Hospitals NHS Trust,20/03/2014,PROFESSIONAL FEES,Corporate Services,THE DEARDEN PARTNERSHIP,0001534467,4062.50,
Department of Health,East Sussex Hospitals NHS Trust,20/03/2014,CONSULTANCY FEES,Corporate Services,MAPLEHURST HEALTH CONSULTANCY LTD,0001534476,875.00,
Department of Health,East Sussex Hospitals NHS Trust,20/03/2014,PHOTOCOPIER HIRE,Integrated Care,RICOH UK LTD,0001706074,433.17,
Department of Health,East Sussex Hospitals NHS Trust,20/03/2014,PHOTOCOPIER HIRE,Integrated Care,RICOH UK LTD,0001706204,733.92,
Department of Health,East Sussex Hospitals NHS Trust,20/03/2014,EAR MOULD MANUFACTURE,Planned Care,ARLINGTON LABORATORIES LTD,0001706296,634.74,
Department of Health,East Sussex Hospitals NHS Trust,20/03/2014,EAR MOULD MANUFACTURE,Planned Care,ARLINGTON LABORATORIES LTD,0001706297,1020.47,
Department of Health,East Sussex Hospitals NHS Trust,20/03/2014,EAR MOULD MANUFACTURE,Planned Care,ARLINGTON LABORATORIES LTD,0001706298,817.98,
Department of Health,East Sussex Hospitals NHS Trust,20/03/2014,EAR MOULD MANUFACTURE,Planned Care,ARLINGTON LABORATORIES LTD,0001706299,1127.93,
Department of Health,East Sussex Hospitals NHS Trust,20/03/2014,EAR MOULD MANUFACTURE,Planned Care,ARLINGTON LABORATORIES LTD,0001706300,2066.23,
Department of Health,East Sussex Hospitals NHS Trust,20/03/2014,EAR MOULD MANUFACTURE,Planned Care,ARLINGTON LABORATORIES LTD,0001706301,595.36,
Department of Health,East Sussex Hospitals NHS Trust,20/03/2014,EAR MOULD MANUFACTURE,Planned Care,ARLINGTON LABORATORIES LTD,0001706302,613.70,
Department of Health,East Sussex Hospitals NHS Trust,20/03/2014,EAR MOULD MANUFACTURE,Planned Care,ARLINGTON LABORATORIES LTD,0001706304,2118.98,
Department of Health,East Sussex Hospitals NHS Trust,20/03/2014,EAR MOULD MANUFACTURE,Planned Care,ARLINGTON LABORATORIES LTD,0001706306,1268.22,
Department of Health,East Sussex Hospitals NHS Trust,20/03/2014,RADIOPAGERS - RENTAL,Commercial,PAGEONE COMMUNICATIONS LTD,0001706321,6104.50,
Department of Health,East Sussex Hospitals NHS Trust,20/03/2014,WHEELCHAIR REPAIRS,Integrated Care,AJ MOBILITY LTD,0001817796,1380.58,
Department of Health,East Sussex Hospitals NHS Trust,20/03/2014,CLEANING CONTRACT,Commercial,CLEAN FOR SUSSEX,0001817874,585.26,
Department of Health,East Sussex Hospitals NHS Trust,20/03/2014,PROVISIONS,Commercial,BRAKE BROS (FROZEN FOODS) LTD,0001908899,561.43,
Department of Health,East Sussex Hospitals NHS Trust,20/03/2014,PROVISIONS,Commercial,BRAKE BROS (FROZEN FOODS) LTD,0001909034,545.36,
Department of Health,East Sussex Hospitals NHS Trust,20/03/2014,PROVISIONS,Commercial,BRAKE BROS (FROZEN FOODS) LTD,0001909134,621.10,
Department of Health,East Sussex Hospitals NHS Trust,20/03/2014,PROVISIONS,Commercial,BRAKE BROS (FROZEN FOODS) LTD,0001909135,663.81,
Department of Health,East Sussex Hospitals NHS Trust,20/03/2014,PROVISIONS,Commercial,BRAKE BROS (FROZEN FOODS) LTD,0001909136,621.55,
Department of Health,East Sussex Hospitals NHS Trust,20/03/2014,PROVISIONS,Commercial,BRAKE BROS (FROZEN FOODS) LTD,0001909138,1109.86,
Department of Health,East Sussex Hospitals NHS Trust,20/03/2014,PROVISIONS,Commercial,BRAKE BROS (FROZEN FOODS) LTD,0001909140,1086.65,
Department of Health,East Sussex Hospitals NHS Trust,20/03/2014,PROVISIONS,Commercial,BRAKE BROS (FROZEN FOODS) LTD,0001909143,503.38,
Department of Health,East Sussex Hospitals NHS Trust,20/03/2014,PROVISIONS,Commercial,BRAKE BROS (FROZEN FOODS) LTD,0001909149,1109.86,
Department of Health,East Sussex Hospitals NHS Trust,20/03/2014,PROVISIONS,Commercial,BRAKE BROS (FROZEN FOODS) LTD,0001909151,1109.86,
Department of Health,East Sussex Hospitals NHS Trust,20/03/2014,PROVISIONS,Commercial,BRAKE BROS (FROZEN FOODS) LTD,0001909246,521.33,
Department of Health,East Sussex Hospitals NHS Trust,20/03/2014,HIRE OF TRANSPORT,Commercial,EURO SELF DRIVE LTD,0002128093,450.00,
Department of Health,East Sussex Hospitals NHS Trust,20/03/2014,LAB MATERIALS - LAUNCH,Integrated Care,LAUNCH DIAGNOSTICS LTD,0002128960,1946.88,
Department of Health,East Sussex Hospitals NHS Trust,20/03/2014,CLEANING MATERIALS,Commercial,PHS GROUP PLC,0002129203,1451.72,
Department of Health,East Sussex Hospitals NHS Trust,20/03/2014,CARDIOLOGY CATHETERS,Urgent Care,BOSTON SCIENTIFIC LTD,0002130567,1044.00,
Department of Health,East Sussex Hospitals NHS Trust,20/03/2014,CARDIOLOGY STENTS,Urgent Care,BOSTON SCIENTIFIC LTD,0002130567,1680.00,
Department of Health,East Sussex Hospitals NHS Trust,20/03/2014,M&S GENERAL SUPPLIES-OTHER,Urgent Care,BOSTON SCIENTIFIC LTD,0002130568,540.00,
Department of Health,East Sussex Hospitals NHS Trust,20/03/2014,CARDIOLOGY CATHETERS,Urgent Care,BOSTON SCIENTIFIC LTD,0002130568,990.00,
Department of Health,East Sussex Hospitals NHS Trust,20/03/2014,M&S GENERAL SUPPLIES-OTHER,Planned Care,BAXTER HEALTHCARE (BERKSHIRE)LTD,0002130583,517.20,
Department of Health,East Sussex Hospitals NHS Trust,20/03/2014,DRESSINGS-OTHER,Planned Care,BAXTER HEALTHCARE (BERKSHIRE)LTD,0002130584,1267.20,
Department of Health,East Sussex Hospitals NHS Trust,20/03/2014,M&S GENERAL SUPPLIES-OTHER,Planned Care,BAXTER HEALTHCARE (BERKSHIRE)LTD,0002130585,517.20,
Department of Health,East Sussex Hospitals NHS Trust,20/03/2014,ENDOSCOPY CONSUMABLES,Planned Care,BOSTON SCIENTIFIC LTD,0002130591,384.00,
Department of Health,East Sussex Hospitals NHS Trust,20/03/2014,M&S GENERAL SUPPLIES-OTHER,Planned Care,BOSTON SCIENTIFIC LTD,0002130591,720.00,
Department of Health,East Sussex Hospitals NHS Trust,20/03/2014,SURGICAL INSTRUMENTS,Planned Care,BOSTON SCIENTIFIC LTD,0002130591,1497.60,
Department of Health,East Sussex Hospitals NHS Trust,20/03/2014,HIRE WATER COOLERS,Urgent Care,PHS GROUP PLC,0002220657,146.88,
Department of Health,East Sussex Hospitals NHS Trust,20/03/2014,HIRE WATER COOLERS,Urgent Care,PHS GROUP PLC,0002220657,73.44,
Department of Health,East Sussex Hospitals NHS Trust,20/03/2014,HIRE WATER COOLERS,Urgent Care,PHS GROUP PLC,0002220657,73.44,
Department of Health,East Sussex Hospitals NHS Trust,20/03/2014,HIRE WATER COOLERS,Urgent Care,PHS GROUP PLC,0002220657,73.44,
Department of Health,East Sussex Hospitals NHS Trust,20/03/2014,HIRE WATER COOLERS,Urgent Care,PHS GROUP PLC,0002220657,73.44,
Department of Health,East Sussex Hospitals NHS Trust,20/03/2014,HIRE WATER COOLERS,Planned Care,PHS GROUP PLC,0002220657,73.44,
Department of Health,East Sussex Hospitals NHS Trust,20/03/2014,HIRE WATER COOLERS,Urgent Care,PHS GROUP PLC,0002220657,73.44,
Department of Health,East Sussex Hospitals NHS Trust,20/03/2014,HIRE WATER COOLERS,Urgent Care,PHS GROUP PLC,0002220657,73.44,
Department of Health,East Sussex Hospitals NHS Trust,20/03/2014,HIRE WATER COOLERS,Planned Care,PHS GROUP PLC,0002220657,256.60,
Department of Health,East Sussex Hospitals NHS Trust,20/03/2014,HIRE WATER COOLERS,Planned Care,PHS GROUP PLC,0002220657,73.44,
Department of Health,East Sussex Hospitals NHS Trust,20/03/2014,HIRE WATER COOLERS,Planned Care,PHS GROUP PLC,0002220657,146.88,
Department of Health,East Sussex Hospitals NHS Trust,20/03/2014,HIRE WATER COOLERS,Integrated Care,PHS GROUP PLC,0002220657,73.44,
Department of Health,East Sussex Hospitals NHS Trust,20/03/2014,HIRE WATER COOLERS,Urgent Care,PHS GROUP PLC,0002220657,146.88,
Department of Health,East Sussex Hospitals NHS Trust,20/03/2014,HIRE WATER COOLERS,Planned Care,PHS GROUP PLC,0002220657,73.44,
Department of Health,East Sussex Hospitals NHS Trust,20/03/2014,HIRE WATER COOLERS,Planned Care,PHS GROUP PLC,0002220657,146.88,
Department of Health,East Sussex Hospitals NHS Trust,20/03/2014,HIRE WATER COOLERS,Commercial,PHS GROUP PLC,0002220657,146.88,
Department of Health,East Sussex Hospitals NHS Trust,20/03/2014,HIRE WATER COOLERS,Planned Care,PHS GROUP PLC,0002220657,73.44,
Department of Health,East Sussex Hospitals NHS Trust,20/03/2014,HIRE WATER COOLERS,Planned Care,PHS GROUP PLC,0002220657,73.44,
Department of Health,East Sussex Hospitals NHS Trust,20/03/2014,HIRE WATER COOLERS,Urgent Care,PHS GROUP PLC,0002220657,73.44,
Department of Health,East Sussex Hospitals NHS Trust,20/03/2014,HIRE WATER COOLERS,Urgent Care,PHS GROUP PLC,0002220657,73.44,
Department of Health,East Sussex Hospitals NHS Trust,20/03/2014,HIRE WATER COOLERS,Integrated Care,PHS GROUP PLC,0002220657,73.44,
Department of Health,East Sussex Hospitals NHS Trust,20/03/2014,HIRE WATER COOLERS,Integrated Care,PHS GROUP PLC,0002220657,73.44,
Department of Health,East Sussex Hospitals NHS Trust,20/03/2014,HIRE WATER COOLERS,Planned Care,PHS GROUP PLC,0002220657,73.44,
Department of Health,East Sussex Hospitals NHS Trust,20/03/2014,HIRE WATER COOLERS,Planned Care,PHS GROUP PLC,0002220657,73.44,
Department of Health,East Sussex Hospitals NHS Trust,20/03/2014,HIRE WATER COOLERS,Planned Care,PHS GROUP PLC,0002220657,73.44,
Department of Health,East Sussex Hospitals NHS Trust,20/03/2014,HIRE WATER COOLERS,Planned Care,PHS GROUP PLC,0002220657,146.88,
Department of Health,East Sussex Hospitals NHS Trust,20/03/2014,HIRE WATER COOLERS,Urgent Care,PHS GROUP PLC,0002220657,73.44,
Department of Health,East Sussex Hospitals NHS Trust,20/03/2014,HIRE WATER COOLERS,Planned Care,PHS GROUP PLC,0002220657,220.32,
Department of Health,East Sussex Hospitals NHS Trust,20/03/2014,HIRE WATER COOLERS,Planned Care,PHS GROUP PLC,0002220657,73.44,
Department of Health,East Sussex Hospitals NHS Trust,20/03/2014,HIRE WATER COOLERS,Integrated Care,PHS GROUP PLC,0002220657,73.44,
Department of Health,East Sussex Hospitals NHS Trust,20/03/2014,HIRE WATER COOLERS,Planned Care,PHS GROUP PLC,0002220657,73.44,
Department of Health,East Sussex Hospitals NHS Trust,20/03/2014,HIRE WATER COOLERS,Planned Care,PHS GROUP PLC,0002220657,73.44,
Department of Health,East Sussex Hospitals NHS Trust,20/03/2014,HIRE WATER COOLERS,Planned Care,PHS GROUP PLC,0002220657,220.32,
Department of Health,East Sussex Hospitals NHS Trust,20/03/2014,HIRE WATER COOLERS,Planned Care,PHS GROUP PLC,0002220657,73.44,
Department of Health,East Sussex Hospitals NHS Trust,20/03/2014,HIRE WATER COOLERS,Integrated Care,PHS GROUP PLC,0002220657,73.44,
Department of Health,East Sussex Hospitals NHS Trust,20/03/2014,HIRE WATER COOLERS,Integrated Care,PHS GROUP PLC,0002220657,73.44,
Department of Health,East Sussex Hospitals NHS Trust,20/03/2014,HIRE WATER COOLERS,Integrated Care,PHS GROUP PLC,0002220657,146.88,
Department of Health,East Sussex Hospitals NHS Trust,20/03/2014,HIRE WATER COOLERS,Integrated Care,PHS GROUP PLC,0002220657,73.44,
Department of Health,East Sussex Hospitals NHS Trust,20/03/2014,HIRE WATER COOLERS,Urgent Care,PHS GROUP PLC,0002220657,73.44,
Department of Health,East Sussex Hospitals NHS Trust,20/03/2014,HIRE WATER COOLERS,Integrated Care,PHS GROUP PLC,0002220657,146.88,
Department of Health,East Sussex Hospitals NHS Trust,20/03/2014,HIRE WATER COOLERS,Commercial,PHS GROUP PLC,0002220657,73.44,
Department of Health,East Sussex Hospitals NHS Trust,20/03/2014,HIRE WATER COOLERS,Corporate Services,PHS GROUP PLC,0002220657,220.32,
Department of Health,East Sussex Hospitals NHS Trust,20/03/2014,HIRE WATER COOLERS,Corporate Services,PHS GROUP PLC,0002220657,73.44,
Department of Health,East Sussex Hospitals NHS Trust,20/03/2014,IMPLANTABLE DEFIBRILLATOR,Urgent Care,BOSTON SCIENTIFIC LTD,0002224721,14202.00,
Department of Health,East Sussex Hospitals NHS Trust,20/03/2014,STORAGE - EXTERNAL FACILITIES,Commercial,RESTORE PLC,0002225034,840.60,
Department of Health,East Sussex Hospitals NHS Trust,20/03/2014,LAUNDRY EQUIPMENT (BAGS ETC.),Commercial,STEVENAGE PACKAGING LTD,0002225113,7511.40,
Department of Health,East Sussex Hospitals NHS Trust,20/03/2014,LAB MATERIALS - ABBOTT,Integrated Care,ABBOTT LABORATORIES LTD,0002225783,4082.13,
Department of Health,East Sussex Hospitals NHS Trust,20/03/2014,CAPITAL EXPENDITURE,Other Central,OLYMPUS KEYMED,0002226451,67460.34,
Department of Health,East Sussex Hospitals NHS Trust,20/03/2014,SUTURES,Planned Care,BOSTON SCIENTIFIC LTD,0002226779,592.80,
Department of Health,East Sussex Hospitals NHS Trust,20/03/2014,ENDOSCOPY CONSUMABLES,Planned Care,BOSTON SCIENTIFIC LTD,0002226780,168.00,
Department of Health,East Sussex Hospitals NHS Trust,20/03/2014,M&S GENERAL SUPPLIES-OTHER,Planned Care,BOSTON SCIENTIFIC LTD,0002226780,246.00,
Department of Health,East Sussex Hospitals NHS Trust,20/03/2014,INTERVENTIONAL DISPOSABLES,Planned Care,BOSTON SCIENTIFIC LTD,0002226780,1245.60,
Department of Health,East Sussex Hospitals NHS Trust,20/03/2014,SURGICAL INSTRUMENTS,Planned Care,BOSTON SCIENTIFIC LTD,0002226780,62.40,
Department of Health,East Sussex Hospitals NHS Trust,20/03/2014,BILIARY STENTS,Planned Care,BOSTON SCIENTIFIC LTD,0002226780,72.00,
Department of Health,East Sussex Hospitals NHS Trust,20/03/2014,BEDDING & LINEN - BED LINEN,Commercial,INTERWEAVE TEXTILES LTD,0002226872,7728.00,
Department of Health,East Sussex Hospitals NHS Trust,20/03/2014,HIRE WATER COOLERS,Planned Care,PHS GROUP PLC,0002227196,1294.33,
Department of Health,East Sussex Hospitals NHS Trust,20/03/2014,HIRE WATER COOLERS,Planned Care,PHS GROUP PLC,0002227197,-1298.17,
Department of Health,East Sussex Hospitals NHS Trust,20/03/2014,STOCK-ASCRIBE EDGH,Pharmacy Stock,ALLIANCE HEALTHCARE (DISTRIBUTION) LTD,0013015089,1055.74,
Department of Health,East Sussex Hospitals NHS Trust,20/03/2014,STOCK-ASCRIBE EDGH,Pharmacy Stock,BAXTER HEALTHCARE (BERKSHIRE)LTD,0013015090,2305.58,
Department of Health,East Sussex Hospitals NHS Trust,20/03/2014,STOCK-ASCRIBE EDGH,Pharmacy Stock,BAXTER HEALTHCARE (BERKSHIRE)LTD,0013015092,840.00,
Department of Health,East Sussex Hospitals NHS Trust,20/03/2014,STOCK-ASCRIBE EDGH,Pharmacy Stock,BAXTER HEALTHCARE (BERKSHIRE)LTD,0013015094,2463.36,
Department of Health,East Sussex Hospitals NHS Trust,20/03/2014,STOCK-ASCRIBE EDGH,Pharmacy Stock,GE HEALTHCARE LTD,0013015101,611.28,
Department of Health,East Sussex Hospitals NHS Trust,20/03/2014,UTETEROSCOPY CONSUMABLES,Planned Care,BOSTON SCIENTIFIC LTD,0080003807,1800.00,
Department of Health,East Sussex Hospitals NHS Trust,20/03/2014,M&S GENERAL SUPPLIES-OTHER,Planned Care,BOSTON SCIENTIFIC LTD,0080003807,1416.00,
Department of Health,East Sussex Hospitals NHS Trust,20/03/2014,INTERVENTIONAL DISPOSABLES,Planned Care,BOSTON SCIENTIFIC LTD,0080003807,528.00,
Department of Health,East Sussex Hospitals NHS Trust,20/03/2014,RENAL STENTS,Planned Care,BOSTON SCIENTIFIC LTD,0080003807,263.88,
Department of Health,East Sussex Hospitals NHS Trust,24/03/2014,AGENCY NURSE - QUALIFIED,Integrated Care,MAYDAY HEALTHCARE PLC,0000296238,1256.47,
Department of Health,East Sussex Hospitals NHS Trust,24/03/2014,AGENCY NURSE - QUALIFIED,Urgent Care,MAYDAY HEALTHCARE PLC,0000296243,563.85,
Department of Health,East Sussex Hospitals NHS Trust,24/03/2014,AGENCY NURSE - QUALIFIED,Urgent Care,MAYDAY HEALTHCARE PLC,0000296245,537.25,
Department of Health,East Sussex Hospitals NHS Trust,24/03/2014,AGENCY NURSE - QUALIFIED,Urgent Care,MAYDAY HEALTHCARE PLC,0000296249,615.25,
Department of Health,East Sussex Hospitals NHS Trust,24/03/2014,AGENCY NURSE - QUALIFIED,Planned Care,MAYDAY HEALTHCARE PLC,0000296250,811.53,
Department of Health,East Sussex Hospitals NHS Trust,24/03/2014,AGENCY NURSE - QUALIFIED,Integrated Care,MAYDAY HEALTHCARE PLC,0000296253,1152.92,
Department of Health,East Sussex Hospitals NHS Trust,24/03/2014,AGENCY NURSE - QUALIFIED,Integrated Care,MAYDAY HEALTHCARE PLC,0000296254,617.10,
Department of Health,East Sussex Hospitals NHS Trust,24/03/2014,AGENCY NURSE - QUALIFIED,Urgent Care,MAYDAY HEALTHCARE PLC,0000296256,535.73,
Department of Health,East Sussex Hospitals NHS Trust,24/03/2014,AGENCY NURSE - QUALIFIED,Urgent Care,MAYDAY HEALTHCARE PLC,0000296258,535.73,
Department of Health,East Sussex Hospitals NHS Trust,24/03/2014,AGENCY NURSE - QUALIFIED,Urgent Care,MAYDAY HEALTHCARE PLC,0000296261,608.75,
Department of Health,East Sussex Hospitals NHS Trust,24/03/2014,AGENCY NURSE - QUALIFIED,Integrated Care,TEAM24 LTD,0000296286,629.16,
Department of Health,East Sussex Hospitals NHS Trust,24/03/2014,AGENCY NURSE - QUALIFIED,Integrated Care,TEAM24 LTD,0000296287,511.19,
Department of Health,East Sussex Hospitals NHS Trust,24/03/2014,AGENCY NURSE - QUALIFIED,Integrated Care,TEAM24 LTD,0000296288,589.12,
Department of Health,East Sussex Hospitals NHS Trust,24/03/2014,AGENCY NURSE - QUALIFIED,Integrated Care,TEAM24 LTD,0000296290,541.69,
Department of Health,East Sussex Hospitals NHS Trust,24/03/2014,AGENCY NURSE - QUALIFIED,Integrated Care,TEAM24 LTD,0000296291,540.44,
Department of Health,East Sussex Hospitals NHS Trust,24/03/2014,AGENCY NURSE - QUALIFIED,Integrated Care,TEAM24 LTD,0000296293,602.95,
Department of Health,East Sussex Hospitals NHS Trust,24/03/2014,AGENCY ADMIN & CLERICAL,Corporate Services,VENN GROUP LTD,0000296329,1457.85,
Department of Health,East Sussex Hospitals NHS Trust,24/03/2014,AGENCY NURSE - QUALIFIED,Planned Care,MAYDAY HEALTHCARE PLC,0000296370,1566.13,
Department of Health,East Sussex Hospitals NHS Trust,24/03/2014,AGENCY NURSE - QUALIFIED,Urgent Care,MAYDAY HEALTHCARE PLC,0000296371,535.73,
Department of Health,East Sussex Hospitals NHS Trust,24/03/2014,AGENCY NURSE - QUALIFIED,Integrated Care,MAYDAY HEALTHCARE PLC,0000296373,585.34,
Department of Health,East Sussex Hospitals NHS Trust,24/03/2014,AGENCY NURSE - QUALIFIED,Urgent Care,MAYDAY HEALTHCARE PLC,0000296374,537.25,
Department of Health,East Sussex Hospitals NHS Trust,24/03/2014,SC-CONQUEST UNIT WORKS,Commercial,STATIC SYSTEMS GROUP PLC,0000363755,708.39,
Department of Health,East Sussex Hospitals NHS Trust,24/03/2014,CAPITAL EXPENDITURE,Other Central,HOSPEDIA LIMITED,0000363774,495.00,
Department of Health,East Sussex Hospitals NHS Trust,24/03/2014,CONTRACT ENGINEERING MAINT,Commercial,PHS COMPLIANCE,0000363775,815.15,
Department of Health,East Sussex Hospitals NHS Trust,24/03/2014,PROFESSIONAL FEES,Commercial,RICHARD WILES ASSOCIATES LTD,0000363807,2258.75,
Department of Health,East Sussex Hospitals NHS Trust,24/03/2014,CAPITAL EXPENDITURE,Other Central,PD HARRIS LTD (ALAN HARRIS),0000363810,49284.76,
Department of Health,East Sussex Hospitals NHS Trust,24/03/2014,SIEMENS HLTHCARE (INTEGRATED),Integrated Care,SIEMENS HEALTHCARE DIAGNOSTICS LTD,0000363831,815.06,
Department of Health,East Sussex Hospitals NHS Trust,24/03/2014,ENGINEERING MATERIALS,Commercial,B & B SLUICING SOLUTIONS,0000363853,534.00,
Department of Health,East Sussex Hospitals NHS Trust,24/03/2014,ENGINEERING MATERIALS,Commercial,B & B SLUICING SOLUTIONS,0000363853,402.00,
Department of Health,East Sussex Hospitals NHS Trust,24/03/2014,ESCHMANN,Planned Care,ESCHMANN EQUIPMENT,0000363860,864.02,
Department of Health,East Sussex Hospitals NHS Trust,24/03/2014,ENGINEERING MATERIALS,Commercial,BSS (LEWES),0000624021,1208.22,
Department of Health,East Sussex Hospitals NHS Trust,24/03/2014,STOCK-ASCRIBE CONQUEST,Pharmacy Stock,CSL BEHRING,0001227480,1395.00,
Department of Health,East Sussex Hospitals NHS Trust,24/03/2014,STOCK-ASCRIBE CONQUEST,Pharmacy Stock,GAMBRO LUNDIA AB,0001227485,1260.00,
Department of Health,East Sussex Hospitals NHS Trust,24/03/2014,STOCK-ASCRIBE CONQUEST,Pharmacy Stock,CELGENE LTD,0001227492,4536.00,
Department of Health,East Sussex Hospitals NHS Trust,24/03/2014,STOCK-ASCRIBE CONQUEST,Pharmacy Stock,NORGINE PHARMACEUTICALS LTD,0001227494,1282.56,
Department of Health,East Sussex Hospitals NHS Trust,24/03/2014,STOCK-ASCRIBE CONQUEST,Pharmacy Stock,CELGENE LTD,0001227498,10660.80,
Department of Health,East Sussex Hospitals NHS Trust,24/03/2014,STOCK-ASCRIBE CONQUEST,Pharmacy Stock,HEALTHCARE PRODUCT SERVICES LTD,0001227500,2599.20,
Department of Health,East Sussex Hospitals NHS Trust,24/03/2014,STOCK-ASCRIBE CONQUEST,Pharmacy Stock,BAYER PLC,0001227501,744.00,
Department of Health,East Sussex Hospitals NHS Trust,24/03/2014,STOCK-ASCRIBE CONQUEST,Pharmacy Stock,ALLERGAN LTD,0001227502,5220.00,
Department of Health,East Sussex Hospitals NHS Trust,24/03/2014,STOCK-ASCRIBE CONQUEST,Pharmacy Stock,PHARMARAMA INTERNATIONAL LIMITED,0001227504,540.00,
Department of Health,East Sussex Hospitals NHS Trust,24/03/2014,STOCK-ASCRIBE CONQUEST,Pharmacy Stock,BOEHRINGER INGELHEIM LTD,0001227505,2160.00,
Department of Health,East Sussex Hospitals NHS Trust,24/03/2014,STOCK-ASCRIBE CONQUEST,Pharmacy Stock,UNIDRUG DISTRIBUTION GROUP LTD,0001227512,1058.86,
Department of Health,East Sussex Hospitals NHS Trust,24/03/2014,STOCK-ASCRIBE CONQUEST,Pharmacy Stock,NOVARTIS PHARMACEUTICALS UK LTD,0001227729,32095.07,
Department of Health,East Sussex Hospitals NHS Trust,24/03/2014,STOCK-ASCRIBE CONQUEST,Pharmacy Stock,AMGEN LTD,0001227730,16325.28,
Department of Health,East Sussex Hospitals NHS Trust,24/03/2014,STOCK-ASCRIBE CONQUEST,Pharmacy Stock,CELGENE LTD,0001227733,5241.60,
Department of Health,East Sussex Hospitals NHS Trust,24/03/2014,STOCK-ASCRIBE CONQUEST,Pharmacy Stock,ABBOTT LABORATORIES LTD,0001227741,3355.20,
Department of Health,East Sussex Hospitals NHS Trust,24/03/2014,STOCK-ASCRIBE CONQUEST,Pharmacy Stock,PHOENIX HEALTHCARE DISTRIBUTION LTD,0001227742,1842.38,
Department of Health,East Sussex Hospitals NHS Trust,24/03/2014,STOCK-ASCRIBE CONQUEST,Pharmacy Stock,ROCHE PRODUCTS LTD,0001227753,23051.10,
Department of Health,East Sussex Hospitals NHS Trust,24/03/2014,STOCK-ASCRIBE CONQUEST,Pharmacy Stock,ROCHE PRODUCTS LTD,0001227754,5601.89,
Department of Health,East Sussex Hospitals NHS Trust,24/03/2014,STOCK-ASCRIBE CONQUEST,Pharmacy Stock,AMGEN LTD,0001227755,5808.52,
Department of Health,East Sussex Hospitals NHS Trust,24/03/2014,STOCK-ASCRIBE CONQUEST,Pharmacy Stock,HOSPIRA UK LIMITED,0001227757,954.00,
Department of Health,East Sussex Hospitals NHS Trust,24/03/2014,STOCK-ASCRIBE CONQUEST,Pharmacy Stock,ROCHE PRODUCTS LTD,0001227763,17572.69,
Department of Health,East Sussex Hospitals NHS Trust,24/03/2014,STOCK-ASCRIBE CONQUEST,Pharmacy Stock,ALCON EYE CARE UK LTD,0001227765,1152.00,
Department of Health,East Sussex Hospitals NHS Trust,24/03/2014,STOCK-ASCRIBE CONQUEST,Pharmacy Stock,PIERRE FABRE ONCOLOGY,0001227766,1319.52,
Department of Health,East Sussex Hospitals NHS Trust,24/03/2014,STOCK-ASCRIBE CONQUEST,Pharmacy Stock,IDIS LTD,0001227767,1188.00,
Department of Health,East Sussex Hospitals NHS Trust,24/03/2014,STOCK-ASCRIBE CONQUEST,Pharmacy Stock,IDIS LTD,0001227768,1463.76,
Department of Health,East Sussex Hospitals NHS Trust,24/03/2014,STOCK-ASCRIBE CONQUEST,Pharmacy Stock,IDIS LTD,0001227769,2159.46,
Department of Health,East Sussex Hospitals NHS Trust,24/03/2014,STOCK-ASCRIBE CONQUEST,Pharmacy Stock,NOVARTIS PHARMACEUTICALS UK LTD,0001227770,37467.04,
Department of Health,East Sussex Hospitals NHS Trust,24/03/2014,STOCK-ASCRIBE CONQUEST,Pharmacy Stock,FRESENIUS LTD,0001227771,545.09,
Department of Health,East Sussex Hospitals NHS Trust,24/03/2014,STOCK-ASCRIBE CONQUEST,Pharmacy Stock,GE HEALTHCARE LTD,0001227772,2091.26,
Department of Health,East Sussex Hospitals NHS Trust,24/03/2014,STOCK-ASCRIBE CONQUEST,Pharmacy Stock,CELGENE LTD,0001227773,5778.00,
Department of Health,East Sussex Hospitals NHS Trust,24/03/2014,STOCK-ASCRIBE CONQUEST,Pharmacy Stock,ABBVIE LTD,0001227777,4225.68,
Department of Health,East Sussex Hospitals NHS Trust,24/03/2014,STOCK-ASCRIBE CONQUEST,Pharmacy Stock,BRISTOL-MYERS SQUIBB PHARMACEUTICAL,0001227788,5080.20,
Department of Health,East Sussex Hospitals NHS Trust,24/03/2014,STOCK-ASCRIBE CONQUEST,Pharmacy Stock,ALLIANCE HEALTHCARE (DISTRIBUTION) LTD,0001227791,1347.94,
Department of Health,East Sussex Hospitals NHS Trust,24/03/2014,STOCK-ASCRIBE CONQUEST,Pharmacy Stock,ALLIANCE HEALTHCARE (DISTRIBUTION) LTD,0001227793,5268.85,
Department of Health,East Sussex Hospitals NHS Trust,24/03/2014,STOCK-ASCRIBE CONQUEST,Pharmacy Stock,ALLIANCE HEALTHCARE (DISTRIBUTION) LTD,0001227795,870.85,
Department of Health,East Sussex Hospitals NHS Trust,24/03/2014,STOCK-ASCRIBE CONQUEST,Pharmacy Stock,ALLIANCE HEALTHCARE (DISTRIBUTION) LTD,0001227804,1279.89,
Department of Health,East Sussex Hospitals NHS Trust,24/03/2014,STOCK-ASCRIBE CONQUEST,Pharmacy Stock,ALLIANCE HEALTHCARE (DISTRIBUTION) LTD,0001227805,1176.10,
Department of Health,East Sussex Hospitals NHS Trust,24/03/2014,STOCK-ASCRIBE CONQUEST,Pharmacy Stock,ALLIANCE HEALTHCARE (DISTRIBUTION) LTD,0001227808,7336.62,
Department of Health,East Sussex Hospitals NHS Trust,24/03/2014,STOCK-ASCRIBE CONQUEST,Pharmacy Stock,UNIDRUG DISTRIBUTION GROUP LTD,0001227811,1229.27,
Department of Health,East Sussex Hospitals NHS Trust,24/03/2014,STOCK-ASCRIBE CONQUEST,Pharmacy Stock,AAH PHARMACEUTICALS LTD,0001227832,1112.40,
Department of Health,East Sussex Hospitals NHS Trust,24/03/2014,STOCK-ASCRIBE CONQUEST,Pharmacy Stock,AAH PHARMACEUTICALS LTD,0001227839,581.52,
Department of Health,East Sussex Hospitals NHS Trust,24/03/2014,STOCK-ASCRIBE CONQUEST,Pharmacy Stock,AAH PHARMACEUTICALS LTD,0001227841,578.16,
Department of Health,East Sussex Hospitals NHS Trust,24/03/2014,STOCK-ASCRIBE CONQUEST,Pharmacy Stock,AAH PHARMACEUTICALS LTD,0001227844,508.57,
Department of Health,East Sussex Hospitals NHS Trust,24/03/2014,STOCK-ASCRIBE CONQUEST,Pharmacy Stock,AAH PHARMACEUTICALS LTD,0001227847,567.00,
Department of Health,East Sussex Hospitals NHS Trust,24/03/2014,STOCK-ASCRIBE CONQUEST,Pharmacy Stock,AAH PHARMACEUTICALS LTD,0001227851,614.81,
Department of Health,East Sussex Hospitals NHS Trust,24/03/2014,STOCK-ASCRIBE CONQUEST,Pharmacy Stock,AAH PHARMACEUTICALS LTD,0001227856,725.95,
Department of Health,East Sussex Hospitals NHS Trust,24/03/2014,STOCK-ASCRIBE CONQUEST,Pharmacy Stock,AAH PHARMACEUTICALS LTD,0001227858,720.00,
Department of Health,East Sussex Hospitals NHS Trust,24/03/2014,STOCK-ASCRIBE CONQUEST,Pharmacy Stock,AAH PHARMACEUTICALS LTD,0001227875,4914.00,
Department of Health,East Sussex Hospitals NHS Trust,24/03/2014,STOCK-ASCRIBE CONQUEST,Pharmacy Stock,AAH PHARMACEUTICALS LTD,0001227880,1026.34,
Department of Health,East Sussex Hospitals NHS Trust,24/03/2014,STOCK-ASCRIBE CONQUEST,Pharmacy Stock,AAH PHARMACEUTICALS LTD,0001227881,547.44,
Department of Health,East Sussex Hospitals NHS Trust,24/03/2014,STOCK-ASCRIBE CONQUEST,Pharmacy Stock,AAH PHARMACEUTICALS LTD,0001227893,599.18,
Department of Health,East Sussex Hospitals NHS Trust,24/03/2014,STOCK-ASCRIBE CONQUEST,Pharmacy Stock,AAH PHARMACEUTICALS LTD,0001227910,1492.85,
Department of Health,East Sussex Hospitals NHS Trust,24/03/2014,STOCK-ASCRIBE CONQUEST,Pharmacy Stock,AAH PHARMACEUTICALS LTD,0001227911,602.29,
Department of Health,East Sussex Hospitals NHS Trust,24/03/2014,STOCK-ASCRIBE CONQUEST,Pharmacy Stock,AAH PHARMACEUTICALS LTD,0001227924,548.72,
Department of Health,East Sussex Hospitals NHS Trust,24/03/2014,STOCK-ASCRIBE CONQUEST,Pharmacy Stock,AAH PHARMACEUTICALS LTD,0001227925,527.30,
Department of Health,East Sussex Hospitals NHS Trust,24/03/2014,STOCK-ASCRIBE CONQUEST,Pharmacy Stock,AAH PHARMACEUTICALS LTD,0001227926,567.00,
Department of Health,East Sussex Hospitals NHS Trust,24/03/2014,STOCK-ASCRIBE CONQUEST,Pharmacy Stock,AAH PHARMACEUTICALS LTD,0001227929,805.90,
Department of Health,East Sussex Hospitals NHS Trust,24/03/2014,STOCK-ASCRIBE CONQUEST,Pharmacy Stock,AAH PHARMACEUTICALS LTD,0001227934,720.00,
Department of Health,East Sussex Hospitals NHS Trust,24/03/2014,STOCK-ASCRIBE CONQUEST,Pharmacy Stock,AAH PHARMACEUTICALS LTD,0001227946,620.93,
Department of Health,East Sussex Hospitals NHS Trust,24/03/2014,STOCK-ASCRIBE CONQUEST,Pharmacy Stock,AAH PHARMACEUTICALS LTD,0001227947,1044.00,
Department of Health,East Sussex Hospitals NHS Trust,24/03/2014,STOCK-ASCRIBE CONQUEST,Pharmacy Stock,AAH PHARMACEUTICALS LTD,0001227955,530.16,
Department of Health,East Sussex Hospitals NHS Trust,24/03/2014,STOCK-ASCRIBE CONQUEST,Pharmacy Stock,AAH PHARMACEUTICALS LTD,0001227994,775.30,
Department of Health,East Sussex Hospitals NHS Trust,24/03/2014,STOCK-ASCRIBE CONQUEST,Pharmacy Stock,AAH PHARMACEUTICALS LTD,0001227996,684.69,
Department of Health,East Sussex Hospitals NHS Trust,24/03/2014,STOCK-ASCRIBE CONQUEST,Pharmacy Stock,AAH PHARMACEUTICALS LTD,0001227997,621.94,
Department of Health,East Sussex Hospitals NHS Trust,24/03/2014,STOCK-ASCRIBE CONQUEST,Pharmacy Stock,AAH PHARMACEUTICALS LTD,0001228003,924.70,
Department of Health,East Sussex Hospitals NHS Trust,24/03/2014,STOCK-ASCRIBE CONQUEST,Pharmacy Stock,AAH PHARMACEUTICALS LTD,0001228005,537.00,
Department of Health,East Sussex Hospitals NHS Trust,24/03/2014,STOCK-ASCRIBE CONQUEST,Pharmacy Stock,PIERRE FABRE ONCOLOGY,0001228085,791.76,
Department of Health,East Sussex Hospitals NHS Trust,24/03/2014,STOCK-ASCRIBE CONQUEST,Pharmacy Stock,FRESENIUS LTD,0001228090,1521.24,
Department of Health,East Sussex Hospitals NHS Trust,24/03/2014,STOCK-ASCRIBE CONQUEST,Pharmacy Stock,HEALTHCARE PRODUCT SERVICES LTD,0001228091,3898.80,
Department of Health,East Sussex Hospitals NHS Trust,24/03/2014,STOCK-ASCRIBE CONQUEST,Pharmacy Stock,NOVARTIS PHARMACEUTICALS UK LTD,0001228092,32149.79,
Department of Health,East Sussex Hospitals NHS Trust,24/03/2014,STOCK-ASCRIBE CONQUEST,Pharmacy Stock,BAYER PLC,0001228104,26220.00,
Department of Health,East Sussex Hospitals NHS Trust,24/03/2014,STOCK-ASCRIBE CONQUEST,Pharmacy Stock,ZOOBIOTIC LTD T/A BIOMONDE,0001228105,972.00,
Department of Health,East Sussex Hospitals NHS Trust,24/03/2014,STOCK-ASCRIBE CONQUEST,Pharmacy Stock,CSL BEHRING,0001228106,19530.00,
Department of Health,East Sussex Hospitals NHS Trust,24/03/2014,STOCK-ASCRIBE CONQUEST,Pharmacy Stock,PHOENIX HEALTHCARE DISTRIBUTION LTD,0001228117,853.73,
Department of Health,East Sussex Hospitals NHS Trust,24/03/2014,STOCK-ASCRIBE CONQUEST,Pharmacy Stock,ALLIANCE HEALTHCARE (DISTRIBUTION) LTD,0001228125,1251.26,
Department of Health,East Sussex Hospitals NHS Trust,24/03/2014,STOCK-ASCRIBE CONQUEST,Pharmacy Stock,ALLIANCE HEALTHCARE (DISTRIBUTION) LTD,0001228128,1067.13,
Department of Health,East Sussex Hospitals NHS Trust,24/03/2014,STOCK-ASCRIBE CONQUEST,Pharmacy Stock,ALLIANCE HEALTHCARE (DISTRIBUTION) LTD,0001228129,2281.51,
Department of Health,East Sussex Hospitals NHS Trust,24/03/2014,STOCK-ASCRIBE CONQUEST,Pharmacy Stock,ALLIANCE HEALTHCARE (DISTRIBUTION) LTD,0001228131,564.52,
Department of Health,East Sussex Hospitals NHS Trust,24/03/2014,STOCK-ASCRIBE CONQUEST,Pharmacy Stock,ALLIANCE HEALTHCARE (DISTRIBUTION) LTD,0001228136,2329.78,
Department of Health,East Sussex Hospitals NHS Trust,24/03/2014,STOCK-ASCRIBE CONQUEST,Pharmacy Stock,ALLIANCE HEALTHCARE (DISTRIBUTION) LTD,0001228137,5208.00,
Department of Health,East Sussex Hospitals NHS Trust,24/03/2014,STOCK-ASCRIBE CONQUEST,Pharmacy Stock,ALLIANCE HEALTHCARE (DISTRIBUTION) LTD,0001228139,1465.56,
Department of Health,East Sussex Hospitals NHS Trust,24/03/2014,STOCK-ASCRIBE CONQUEST,Pharmacy Stock,ALLIANCE HEALTHCARE (DISTRIBUTION) LTD,0001228140,3809.29,
Department of Health,East Sussex Hospitals NHS Trust,24/03/2014,STOCK-ASCRIBE CONQUEST,Pharmacy Stock,ALLIANCE HEALTHCARE (DISTRIBUTION) LTD,0001228141,714.84,
Department of Health,East Sussex Hospitals NHS Trust,24/03/2014,CAPITAL EXPENDITURE,Other Central,PD HARRIS LTD (ALAN HARRIS),0001424243,13196.57,
Department of Health,East Sussex Hospitals NHS Trust,24/03/2014,CAPITAL EXPENDITURE,Other Central,PD HARRIS LTD (ALAN HARRIS),0001424244,6094.58,
Department of Health,East Sussex Hospitals NHS Trust,24/03/2014,CAPITAL EXPENDITURE,Other Central,PD HARRIS LTD (ALAN HARRIS),0001424245,567.54,
Department of Health,East Sussex Hospitals NHS Trust,24/03/2014,LECTURE FEES,Corporate Services,COURSE FEES,0001424269,1162.45,
Department of Health,East Sussex Hospitals NHS Trust,24/03/2014,PROFESSIONAL FEES,Corporate Services,PROBLEM RESOLUTION LTD,0001424273,2200.00,
Department of Health,East Sussex Hospitals NHS Trust,24/03/2014,MINOR WORKS - BUILDING,Integrated Care,EASTBOURNE ELECTRICAL,0001424275,7299.10,
Department of Health,East Sussex Hospitals NHS Trust,24/03/2014,ADVERTISING COSTS-NON STAFF,Commercial,JOHNSTON PUBLISHING LTD,0001424279,497.50,
Department of Health,East Sussex Hospitals NHS Trust,24/03/2014,TRAINING FEES - NURSE CONT ED,Corporate Services,EDWIN CHANDRAHARAN,0001424285,1060.00,
Department of Health,East Sussex Hospitals NHS Trust,24/03/2014,TRAINING FEES - NURSE CONT ED,Corporate Services,THE POINT OF CARE FOUNDATION,0001424291,8120.00,
Department of Health,East Sussex Hospitals NHS Trust,24/03/2014,GAS,Commercial,CORONA ENERGY,0001424295,57399.01,
Department of Health,East Sussex Hospitals NHS Trust,24/03/2014,TELEPHONES-MAINTENANCE,Commercial,MAINTEL EUROPE LIMITED,0001706318,16975.68,
Department of Health,East Sussex Hospitals NHS Trust,24/03/2014,TELEPHONES-RENTAL&CALLS,Commercial,EDGE TELECOM,0001706320,3234.24,
Department of Health,East Sussex Hospitals NHS Trust,24/03/2014,PROVISIONS,Commercial,BRAEFORGE LTD T/A PENSWORTH DAIRIES,0001909166,1116.02,
Department of Health,East Sussex Hospitals NHS Trust,24/03/2014,PROVISIONS,Commercial,BRAEFORGE LTD T/A PENSWORTH DAIRIES,0001909225,1212.18,
Department of Health,East Sussex Hospitals NHS Trust,24/03/2014,PROVISIONS,Commercial,ANCHOR CATERING LTD,0001909226,606.00,
Department of Health,East Sussex Hospitals NHS Trust,24/03/2014,PROVISIONS,Commercial,BRAEFORGE LTD T/A PENSWORTH DAIRIES,0001909227,1347.38,
Department of Health,East Sussex Hospitals NHS Trust,24/03/2014,PROVISIONS,Commercial,ANCHOR CATERING LTD,0001909231,708.00,
Department of Health,East Sussex Hospitals NHS Trust,24/03/2014,PROVISIONS,Commercial,BRAEFORGE LTD T/A PENSWORTH DAIRIES,0001909237,1309.67,
Department of Health,East Sussex Hospitals NHS Trust,24/03/2014,PRINTING/PRINTED MATERIALS,Integrated Care,LABELS PLUS LTD,0002129424,991.80,
Department of Health,East Sussex Hospitals NHS Trust,24/03/2014,STAPLING DEVICES,Planned Care,TPS HEALTHCARE,0002130030,1074.06,
Department of Health,East Sussex Hospitals NHS Trust,24/03/2014,FINANCE SYSTEMS LICENCE FEES,Corporate Services,CIVICA UK LTD,0002130047,10800.00,
Department of Health,East Sussex Hospitals NHS Trust,24/03/2014,LASER/LAPARASCOPIC EQUIPMENT,Planned Care,PURPLE SURGICAL UK LTD,0002130460,3648.00,
Department of Health,East Sussex Hospitals NHS Trust,24/03/2014,PROSTHESIS - SPINAL,Planned Care,ZIMMER LTD,0002130738,695.52,
Department of Health,East Sussex Hospitals NHS Trust,24/03/2014,PROSTHESIS - LENS,Planned Care,ALCON EYE CARE UK LTD,0002130742,1041.60,
Department of Health,East Sussex Hospitals NHS Trust,24/03/2014,ENDOSCOPY CONSUMABLES,Planned Care,BOSTON SCIENTIFIC LTD,0002130748,624.00,
Department of Health,East Sussex Hospitals NHS Trust,24/03/2014,M&S GENERAL SUPPLIES-OTHER,Planned Care,BOSTON SCIENTIFIC LTD,0002130748,84.00,
Department of Health,East Sussex Hospitals NHS Trust,24/03/2014,INTERVENTIONAL DISPOSABLES,Planned Care,BOSTON SCIENTIFIC LTD,0002130748,156.00,
Department of Health,East Sussex Hospitals NHS Trust,24/03/2014,CAPITAL EXPENDITURE,Other Central,SHEFFMED LTD,0002130749,726.55,
Department of Health,East Sussex Hospitals NHS Trust,24/03/2014,INTERVASCULAR STENTS,Integrated Care,COOK (UK) LTD,0002226855,2376.00,
Department of Health,East Sussex Hospitals NHS Trust,24/03/2014,M&S GENERAL SUPPLIES-OTHER,Integrated Care,COOK (UK) LTD,0002226858,2124.00,
Department of Health,East Sussex Hospitals NHS Trust,24/03/2014,INTERVENTIONAL DISPOSABLES,Integrated Care,COOK (UK) LTD,0002226858,270.00,
Department of Health,East Sussex Hospitals NHS Trust,24/03/2014,PROSTHESIS - GRAFTS,Planned Care,COOK (UK) LTD,0002226859,2679.00,
Department of Health,East Sussex Hospitals NHS Trust,24/03/2014,DRESSINGS-OTHER,Integrated Care,COOK (UK) LTD,0002226860,816.00,
Department of Health,East Sussex Hospitals NHS Trust,24/03/2014,M&S GENERAL SUPPLIES-OTHER,Integrated Care,COOK (UK) LTD,0002226860,105.60,
Department of Health,East Sussex Hospitals NHS Trust,24/03/2014,INTERVENTIONAL DISPOSABLES,Integrated Care,COOK (UK) LTD,0002226862,780.00,
Department of Health,East Sussex Hospitals NHS Trust,24/03/2014,TSSU INSTRUMENTATION,Commercial,STRYKER UK,0002226873,502.80,
Department of Health,East Sussex Hospitals NHS Trust,24/03/2014,LAB MATERIALS - CEPHEID,Integrated Care,CEPHEID UK LTD,0002226874,971.52,
Department of Health,East Sussex Hospitals NHS Trust,24/03/2014,GENERAL CHEMICALS,Integrated Care,CEPHEID UK LTD,0002226874,1890.28,
Department of Health,East Sussex Hospitals NHS Trust,24/03/2014,INTERVENTIONAL DISPOSABLES,Integrated Care,MEDTRONIC LTD,0002226892,1200.00,
Department of Health,East Sussex Hospitals NHS Trust,24/03/2014,CARDIOLOGY STENTS,Urgent Care,ABBOTT VASCULAR,0002226895,834.00,
Department of Health,East Sussex Hospitals NHS Trust,24/03/2014,M&S GENERAL SUPPLIES-OTHER,Commercial,UNISURGE INTERNATIONAL LTD,0002226909,679.26,
Department of Health,East Sussex Hospitals NHS Trust,24/03/2014,PRE-STERILE COMMERCIAL PACKS,Commercial,UNISURGE INTERNATIONAL LTD,0002226909,963.61,
Department of Health,East Sussex Hospitals NHS Trust,24/03/2014,PRINTING/PRINTED MATERIALS,Integrated Care,COLLECTOR SET PRINTERS,0002226911,959.01,
Department of Health,East Sussex Hospitals NHS Trust,24/03/2014,PRINTING/PRINTED MATERIALS,Integrated Care,LABELS PLUS LTD,0002226921,5488.00,
Department of Health,East Sussex Hospitals NHS Trust,24/03/2014,CARDIOLOGY CATHETERS,Urgent Care,BOSTON SCIENTIFIC LTD,0002226922,412.80,
Department of Health,East Sussex Hospitals NHS Trust,24/03/2014,CARDIOLOGY STENTS,Urgent Care,BOSTON SCIENTIFIC LTD,0002226922,156.00,
Department of Health,East Sussex Hospitals NHS Trust,24/03/2014,INTERVENTIONAL DISPOSABLES,Urgent Care,BOSTON SCIENTIFIC LTD,0002226923,480.00,
Department of Health,East Sussex Hospitals NHS Trust,24/03/2014,CARDIOLOGY CATHETERS,Urgent Care,BOSTON SCIENTIFIC LTD,0002226923,82.80,
Department of Health,East Sussex Hospitals NHS Trust,24/03/2014,ENGINEERING MATERIALS,Commercial,KANNEGIESSER UK LTD,0002226925,4556.51,
Department of Health,East Sussex Hospitals NHS Trust,24/03/2014,TSSU INSTRUMENTATION,Commercial,BIOMET UK HEALTHCARE LTD,0002226926,526.80,
Department of Health,East Sussex Hospitals NHS Trust,24/03/2014,LAB MATERIALS - G & N,Integrated Care,G & N LABORATORY LTD,0002226927,3479.64,
Department of Health,East Sussex Hospitals NHS Trust,24/03/2014,CAPITAL EXPENDITURE,Other Central,PROACT MEDICAL LTD,0002226929,17982.00,
Department of Health,East Sussex Hospitals NHS Trust,24/03/2014,INTERVASCULAR STENTS,Integrated Care,W L  GORE & ASSOCIATES,0002226932,4233.60,
Department of Health,East Sussex Hospitals NHS Trust,24/03/2014,M&S GENERAL SUPPLIES-OTHER,Planned Care,MEDICAL INNOVATIONS LTD,0002226933,1183.27,
Department of Health,East Sussex Hospitals NHS Trust,24/03/2014,CARDIOLOGY CATHETERS,Urgent Care,BARD LTD,0002226935,1200.00,
Department of Health,East Sussex Hospitals NHS Trust,24/03/2014,TSSU INSTRUMENTATION,Commercial,JOHN WEISS & SONS LTD,0002226938,117.00,
Department of Health,East Sussex Hospitals NHS Trust,24/03/2014,CONT.MAIN-MED & SURG EQUIP,Commercial,JOHN WEISS & SONS LTD,0002226938,562.44,
Department of Health,East Sussex Hospitals NHS Trust,24/03/2014,CARDIOLOGY CATHETERS,Urgent Care,ST JUDE MEDICAL UK LIMITED,0002226962,600.00,
Department of Health,East Sussex Hospitals NHS Trust,24/03/2014,M&S GENERAL SUPPLIES-OTHER,Urgent Care,ST JUDE MEDICAL UK LIMITED,0002226963,3997.44,
Department of Health,East Sussex Hospitals NHS Trust,24/03/2014,INTERVASCULAR STENTS,Integrated Care,COOK (UK) LTD,0002226971,594.00,
Department of Health,East Sussex Hospitals NHS Trust,24/03/2014,M&S GENERAL SUPPLIES-OTHER,Integrated Care,COOK (UK) LTD,0002226972,331.20,
Department of Health,East Sussex Hospitals NHS Trust,24/03/2014,CARDIOLOGY CATHETERS,Integrated Care,COOK (UK) LTD,0002226972,408.00,
Department of Health,East Sussex Hospitals NHS Trust,24/03/2014,LAB MATS - SYSMEX HAEM CONS,Integrated Care,SYSMEX UK LTD,0002226973,892.57,
Department of Health,East Sussex Hospitals NHS Trust,24/03/2014,M&S GENERAL SUPPLIES-OTHER,Integrated Care,COOK (UK) LTD,0002226981,954.00,
Department of Health,East Sussex Hospitals NHS Trust,24/03/2014,INTERVENTIONAL DISPOSABLES,Integrated Care,COOK (UK) LTD,0002226981,342.00,
Department of Health,East Sussex Hospitals NHS Trust,24/03/2014,BILIARY STENTS,Integrated Care,COOK (UK) LTD,0002226981,363.60,
Department of Health,East Sussex Hospitals NHS Trust,24/03/2014,INTERVENTIONAL DISPOSABLES,Urgent Care,ST JUDE MEDICAL UK LIMITED,0002226985,1920.00,
Department of Health,East Sussex Hospitals NHS Trust,24/03/2014,CARDIOLOGY CATHETERS,Urgent Care,JOHNSON & JOHNSON MEDICAL LTD,0002226986,7500.00,
Department of Health,East Sussex Hospitals NHS Trust,24/03/2014,SURGICAL INSTRUMENTS,Planned Care,LINDSAY SURGICAL SUPPLIES LTD,0002226990,552.00,
Department of Health,East Sussex Hospitals NHS Trust,24/03/2014,M & S EQUIP REPAIR MATERIALS,Urgent Care,CME MEDICAL UK LIMITED,0002226993,151.20,
Department of Health,East Sussex Hospitals NHS Trust,24/03/2014,EME MATERIALS-INC.GENERATION,Commercial,CME MEDICAL UK LIMITED,0002226993,17.99,
Department of Health,East Sussex Hospitals NHS Trust,24/03/2014,EBME MATERIALS - ROUTINE,Commercial,CME MEDICAL UK LIMITED,0002226993,508.52,
Department of Health,East Sussex Hospitals NHS Trust,24/03/2014,PRE-STERILE COMMERCIAL PACKS,Commercial,ROCIALLE INHEALTH,0002226994,1033.03,
Department of Health,East Sussex Hospitals NHS Trust,24/03/2014,LAUNDRY-DETERGENTS,Commercial,CHRISTEYNS UK LTD,0002227009,9027.00,
Department of Health,East Sussex Hospitals NHS Trust,24/03/2014,CONT.MAIN-MED & SURG EQUIP,Commercial,RICHARD WOLF UK LTD,0002227024,1505.00,
Department of Health,East Sussex Hospitals NHS Trust,24/03/2014,M&S GENERAL SUPPLIES-OTHER,Integrated Care,MERMAID MEDICAL LTD,0002227034,2136.00,
Department of Health,East Sussex Hospitals NHS Trust,24/03/2014,PRE-STERILE COMMERCIAL PACKS,Commercial,FULL SUPPORT HEALTHCARE LTD,0002227035,3516.02,
Department of Health,East Sussex Hospitals NHS Trust,24/03/2014,DISPOSABLE DRAPES,Commercial,FULL SUPPORT HEALTHCARE LTD,0002227035,315.54,
Department of Health,East Sussex Hospitals NHS Trust,24/03/2014,CARDIOLOGY CATHETERS,Urgent Care,BOSTON SCIENTIFIC LTD,0002227038,589.18,
Department of Health,East Sussex Hospitals NHS Trust,24/03/2014,CARDIOLOGY CATHETERS,Urgent Care,BOSTON SCIENTIFIC LTD,0002227039,403.20,
Department of Health,East Sussex Hospitals NHS Trust,24/03/2014,CARDIOLOGY STENTS,Urgent Care,BOSTON SCIENTIFIC LTD,0002227039,840.00,
Department of Health,East Sussex Hospitals NHS Trust,24/03/2014,OFFICE EQUIPMENT,Commercial,LINK LOCKERS,0002227043,1553.00,
Department of Health,East Sussex Hospitals NHS Trust,24/03/2014,CAPITAL EXPENDITURE,Other Central,LINK LOCKERS,0002227043,11622.00,
Department of Health,East Sussex Hospitals NHS Trust,24/03/2014,COMPUTER HARDWARE,Planned Care,HEWLETT-PACKARD LTD,0002227047,2022.45,
Department of Health,East Sussex Hospitals NHS Trust,24/03/2014,COMPUTER MAINTENANCE-HARDWARE,Planned Care,HEWLETT-PACKARD LTD,0002227047,101.76,
Department of Health,East Sussex Hospitals NHS Trust,24/03/2014,LOANER KITS - HIRE CHARGE,Planned Care,ARTHREX LTD,0002227054,558.00,
Department of Health,East Sussex Hospitals NHS Trust,24/03/2014,PROSTHESES-OTHER,Planned Care,ARTHREX LTD,0002227054,660.00,
Department of Health,East Sussex Hospitals NHS Trust,24/03/2014,LAB MATERIALS - BECTON,Integrated Care,BECTON DICKINSON U.K. LTD,0002227058,1255.98,
Department of Health,East Sussex Hospitals NHS Trust,24/03/2014,LAB MATERIALS - BECTON,Integrated Care,BECTON DICKINSON U.K. LTD,0002227059,2258.55,
Department of Health,East Sussex Hospitals NHS Trust,24/03/2014,LOANER KITS - HIRE CHARGE,Planned Care,ARTHREX LTD,0002227061,378.00,
Department of Health,East Sussex Hospitals NHS Trust,24/03/2014,PROSTHESES-OTHER,Planned Care,ARTHREX LTD,0002227061,216.00,
Department of Health,East Sussex Hospitals NHS Trust,24/03/2014,LAB MATERIALS - BECTON,Integrated Care,BECTON DICKINSON U.K. LTD,0002227064,12969.35,
Department of Health,East Sussex Hospitals NHS Trust,24/03/2014,LAB MATERIALS - BECTON,Integrated Care,BECTON DICKINSON U.K. LTD,0002227065,1784.59,
Department of Health,East Sussex Hospitals NHS Trust,24/03/2014,GENERAL CHEMICALS,Integrated Care,BECTON DICKINSON U.K. LTD,0002227065,1040.28,
Department of Health,East Sussex Hospitals NHS Trust,24/03/2014,M&S GENERAL SUPPLIES-OTHER,Commercial,DLS MEDICAL (DIRECT LEISURE SUPPLIES),0002227075,341.76,
Department of Health,East Sussex Hospitals NHS Trust,24/03/2014,PRE-STERILE COMMERCIAL PACKS,Commercial,DLS MEDICAL (DIRECT LEISURE SUPPLIES),0002227075,174.48,
Department of Health,East Sussex Hospitals NHS Trust,24/03/2014,LOANER KITS - HIRE CHARGE,Planned Care,XPERT ORTHOPAEDICS,0002227076,630.00,
Department of Health,East Sussex Hospitals NHS Trust,24/03/2014,PROSTHESES-OTHER,Planned Care,XPERT ORTHOPAEDICS,0002227076,1579.20,
Department of Health,East Sussex Hospitals NHS Trust,24/03/2014,GENERAL CHEMICALS,Integrated Care,ROCHE DIAGNOSTICS LTD,0002227080,9635.09,
Department of Health,East Sussex Hospitals NHS Trust,24/03/2014,LAB.REAGENTS-MISCELLANEOUS,Integrated Care,ROCHE DIAGNOSTICS LTD,0002227080,140.18,
Department of Health,East Sussex Hospitals NHS Trust,24/03/2014,ROCHE 2010 REAGENTS,Integrated Care,ROCHE DIAGNOSTICS LTD,0002227080,42502.30,
Department of Health,East Sussex Hospitals NHS Trust,24/03/2014,SURGICAL INSTRUMENTS,Integrated Care,HOLOGIC UK LTD,0002227083,3084.00,
Department of Health,East Sussex Hospitals NHS Trust,24/03/2014,GENERAL CHEMICALS,Integrated Care,CEPHEID UK LTD,0002227085,1113.97,
Department of Health,East Sussex Hospitals NHS Trust,24/03/2014,COMPUTER HARDWARE,Urgent Care,HEWLETT-PACKARD LTD,0002227086,222.37,
Department of Health,East Sussex Hospitals NHS Trust,24/03/2014,COMPUTER MAINTENANCE-HARDWARE,Urgent Care,HEWLETT-PACKARD LTD,0002227086,42.30,
Department of Health,East Sussex Hospitals NHS Trust,24/03/2014,COMPUTER HARDWARE,Planned Care,HEWLETT-PACKARD LTD,0002227086,323.99,
Department of Health,East Sussex Hospitals NHS Trust,24/03/2014,COMPUTER MAINTENANCE-HARDWARE,Planned Care,HEWLETT-PACKARD LTD,0002227086,72.58,
Department of Health,East Sussex Hospitals NHS Trust,24/03/2014,COMPUTER HARDWARE,Corporate Services,HEWLETT-PACKARD LTD,0002227086,1577.62,
Department of Health,East Sussex Hospitals NHS Trust,24/03/2014,PAY & DISPLAY TICKETS,Commercial,ACS BPS LIMITED,0002227089,3114.00,
Department of Health,East Sussex Hospitals NHS Trust,24/03/2014,OTHER STATIONERY,Commercial,ACS BPS LIMITED,0002227089,58.80,
Department of Health,East Sussex Hospitals NHS Trust,24/03/2014,BUILDING MATERIALS,Commercial,ACS BPS LIMITED,0002227089,70.88,
Department of Health,East Sussex Hospitals NHS Trust,24/03/2014,M&S EQUIPMENT - OTHER,Planned Care,DARAY LTD,0002227092,1313.76,
Department of Health,East Sussex Hospitals NHS Trust,24/03/2014,CAPITAL EXPENDITURE,Other Central,DARAY LTD,0002227092,2170.56,
Department of Health,East Sussex Hospitals NHS Trust,24/03/2014,CAPITAL EXPENDITURE,Other Central,MCKESSON INFORMATION SOLUTIONS LTD,0002227094,1000.00,
Department of Health,East Sussex Hospitals NHS Trust,24/03/2014,LAB MATERIALS - LAUNCH,Integrated Care,LAUNCH DIAGNOSTICS LTD,0002227095,2784.77,
Department of Health,East Sussex Hospitals NHS Trust,24/03/2014,M&S EQUIPMENT - OTHER,Planned Care,BIOVENTUS COOPERATIEF UA,0002227096,2562.00,
Department of Health,East Sussex Hospitals NHS Trust,24/03/2014,M&S GENERAL SUPPLIES-OTHER,Integrated Care,BOSTON SCIENTIFIC LTD,0002227097,720.00,
Department of Health,East Sussex Hospitals NHS Trust,24/03/2014,ENDOSCOPY CONSUMABLES,Planned Care,BOSTON SCIENTIFIC LTD,0002227099,1584.00,
Department of Health,East Sussex Hospitals NHS Trust,24/03/2014,M&S GENERAL SUPPLIES-OTHER,Planned Care,BOSTON SCIENTIFIC LTD,0002227099,708.00,
Department of Health,East Sussex Hospitals NHS Trust,24/03/2014,SURGICAL INSTRUMENTS,Planned Care,BOSTON SCIENTIFIC LTD,0002227099,249.60,
Department of Health,East Sussex Hospitals NHS Trust,24/03/2014,CARDIOLOGY CATHETERS,Urgent Care,JOHNSON & JOHNSON MEDICAL LTD,0002227102,2700.00,
Department of Health,East Sussex Hospitals NHS Trust,24/03/2014,CLEANING MATERIALS,Commercial,SERCHEM LTD,0002227104,1386.14,
Department of Health,East Sussex Hospitals NHS Trust,24/03/2014,COMPUTER HARDWARE,Urgent Care,HEWLETT-PACKARD LTD,0002227107,94.80,
Department of Health,East Sussex Hospitals NHS Trust,24/03/2014,CAPITAL EXPENDITURE,Other Central,HEWLETT-PACKARD LTD,0002227107,3640.14,
Department of Health,East Sussex Hospitals NHS Trust,24/03/2014,M&S GENERAL SUPPLIES-OTHER,Planned Care,BIOMET UK HEALTHCARE LTD,0002227108,142.40,
Department of Health,East Sussex Hospitals NHS Trust,24/03/2014,PROSTHESES-KNEES,Planned Care,BIOMET UK HEALTHCARE LTD,0002227108,2476.44,
Department of Health,East Sussex Hospitals NHS Trust,24/03/2014,CRIMINAL RECORDS BUREAU,Corporate Services,ATLANTIC DATA LTD,0002227114,2722.30,
Department of Health,East Sussex Hospitals NHS Trust,24/03/2014,CAPITAL EXPENDITURE,Other Central,HEWLETT-PACKARD LTD,0002227119,3558.96,
Department of Health,East Sussex Hospitals NHS Trust,24/03/2014,M&S GENERAL SUPPLIES-OTHER,Integrated Care,UK MEDICAL LTD,0002227123,1890.00,
Department of Health,East Sussex Hospitals NHS Trust,24/03/2014,WHEELCHAIR REPAIRS,Integrated Care,THE HELPING HAND COMPANY (LEDBURY) LTD,0002227124,551.88,
Department of Health,East Sussex Hospitals NHS Trust,24/03/2014,LAB MATERIALS - SIEMENS HEALTH,Integrated Care,SIEMENS HEALTHCARE DIAGNOSTICS LTD,0002227126,574.32,
Department of Health,East Sussex Hospitals NHS Trust,24/03/2014,CONTRACT ENGINEERING MAINT,Commercial,SIEMENS BUILDING TECHNOLOGIES LTD,0002227129,2324.50,
Department of Health,East Sussex Hospitals NHS Trust,24/03/2014,PROCEDURE PACKS,Commercial,ROCIALLE INHEALTH,0002227131,34.88,
Department of Health,East Sussex Hospitals NHS Trust,24/03/2014,PRE-STERILE COMMERCIAL PACKS,Commercial,ROCIALLE INHEALTH,0002227131,487.85,
Department of Health,East Sussex Hospitals NHS Trust,24/03/2014,M&S GENERAL SUPPLIES-OTHER,Commercial,CLINIPAK LTD,0002227133,1185.84,
Department of Health,East Sussex Hospitals NHS Trust,24/03/2014,PROCEDURE PACKS,Commercial,MEDLINE INDUSTRIES LIMITED,0002227134,10311.08,
Department of Health,East Sussex Hospitals NHS Trust,24/03/2014,GENERAL LAB. CONSUMABLES,Integrated Care,PHADIA LTD,0002227138,150.90,
Department of Health,East Sussex Hospitals NHS Trust,24/03/2014,IMMUNONOLOGY REAGENTS,Integrated Care,PHADIA LTD,0002227138,748.32,
Department of Health,East Sussex Hospitals NHS Trust,24/03/2014,M & S EQUIP REPAIR MATERIALS,Planned Care,B BRAUN MEDICAL LTD,0002227140,1980.90,
Department of Health,East Sussex Hospitals NHS Trust,24/03/2014,PRE-STERILE COMMERCIAL PACKS,Commercial,STERIPHARM UK LTD,0002227143,967.68,
Department of Health,East Sussex Hospitals NHS Trust,24/03/2014,DISPOSABLE DRAPES,Commercial,STERIPHARM UK LTD,0002227143,360.00,
Department of Health,East Sussex Hospitals NHS Trust,24/03/2014,PRE-STERILE COMMERCIAL PACKS,Commercial,STERIPHARM UK LTD,0002227144,1612.80,
Department of Health,East Sussex Hospitals NHS Trust,24/03/2014,LAB MATERIALS - BIOMERIEUX,Integrated Care,BIOMERIEUX UK LTD,0002227146,1413.41,
Department of Health,East Sussex Hospitals NHS Trust,24/03/2014,M&S GENERAL SUPPLIES-OTHER,Urgent Care,BARD LTD,0002227148,1320.00,
Department of Health,East Sussex Hospitals NHS Trust,24/03/2014,PRE-STERILE COMMERCIAL PACKS,Commercial,ROBINSON HEALTHCARE,0002227153,777.60,
Department of Health,East Sussex Hospitals NHS Trust,24/03/2014,LAB MATERIALS - BECTON,Integrated Care,BECTON DICKINSON U.K. LTD,0002227154,592.46,
Department of Health,East Sussex Hospitals NHS Trust,24/03/2014,LAB MATERIALS - ABBOTT,Integrated Care,ABBOTT LABORATORIES LTD,0002227156,1751.11,
Department of Health,East Sussex Hospitals NHS Trust,24/03/2014,M&S GENERAL SUPPLIES-OTHER,Planned Care,JUDD MEDICAL LTD,0002227160,12.00,
Department of Health,East Sussex Hospitals NHS Trust,24/03/2014,TSSU INSTRUMENTATION,Commercial,JUDD MEDICAL LTD,0002227160,2761.92,
Department of Health,East Sussex Hospitals NHS Trust,24/03/2014,CAPITAL EXPENDITURE,Other Central,SCC CONSUMABLES,0002227168,149739.60,
Department of Health,East Sussex Hospitals NHS Trust,24/03/2014,CAPITAL EXPENDITURE,Other Central,SCC CONSUMABLES,0002227169,440299.00,
Department of Health,East Sussex Hospitals NHS Trust,24/03/2014,CAPITAL EXPENDITURE,Other Central,SCC CONSUMABLES,0002227170,7588.80,
Department of Health,East Sussex Hospitals NHS Trust,24/03/2014,SURGICAL INSTRUMENTS,Planned Care,STERICOM LTD,0002227183,582.00,
Department of Health,East Sussex Hospitals NHS Trust,24/03/2014,CARDIOLOGY STENTS,Urgent Care,ACROSTAK-UK,0002227184,3444.00,
Department of Health,East Sussex Hospitals NHS Trust,24/03/2014,THEATRE LINEN,Commercial,BUCKLEY LAMB LTD,0002227187,3945.60,
Department of Health,East Sussex Hospitals NHS Trust,24/03/2014,PRE-STERILE COMMERCIAL PACKS,Commercial,RICHARDSON HEALTHCARE,0002227190,983.04,
Department of Health,East Sussex Hospitals NHS Trust,24/03/2014,DRESSINGS-OTHER,Commercial,ROCIALLE INHEALTH,0002227191,58.82,
Department of Health,East Sussex Hospitals NHS Trust,24/03/2014,PROCEDURE PACKS,Commercial,ROCIALLE INHEALTH,0002227191,69.77,
Department of Health,East Sussex Hospitals NHS Trust,24/03/2014,PRE-STERILE COMMERCIAL PACKS,Commercial,ROCIALLE INHEALTH,0002227191,744.53,
Department of Health,East Sussex Hospitals NHS Trust,24/03/2014,M&S EQUIPMENT - OTHER,Commercial,BENMOR MEDICAL LTD,0002227193,137.40,
Department of Health,East Sussex Hospitals NHS Trust,24/03/2014,M&S GENERAL SUPPLIES-OTHER,Commercial,BENMOR MEDICAL LTD,0002227193,549.60,
Department of Health,East Sussex Hospitals NHS Trust,24/03/2014,TSSU INSTRUMENTATION,Commercial,KARL STORZ  ENDOSCOPY (UK) LTD,0002227194,865.20,
Department of Health,East Sussex Hospitals NHS Trust,24/03/2014,M&S GENERAL SUPPLIES-OTHER,Commercial,NIDA SOLUTIONS LTD,0002227212,699.60,
Department of Health,East Sussex Hospitals NHS Trust,24/03/2014,M&S EQUIPMENT - OTHER,Planned Care,COLOPLAST LTD,0002227214,1476.00,
Department of Health,East Sussex Hospitals NHS Trust,24/03/2014,CARDIOLOGY CATHETERS,Urgent Care,BARD LTD,0002227223,1200.00,
Department of Health,East Sussex Hospitals NHS Trust,24/03/2014,PROSTHESIS -BREAST IMPLANTS,Planned Care,JOHNSON & JOHNSON MEDICAL LTD,0002227235,645.24,
Department of Health,East Sussex Hospitals NHS Trust,24/03/2014,STOCK-ASCRIBE EDGH,Pharmacy Stock,BAXTER HEALTHCARE (BERKSHIRE)LTD,0013015140,2247.64,
Department of Health,East Sussex Hospitals NHS Trust,24/03/2014,STOCK-ASCRIBE EDGH,Pharmacy Stock,ELI LILLY & CO LTD,0013015142,3187.30,
Department of Health,East Sussex Hospitals NHS Trust,24/03/2014,STOCK-ASCRIBE EDGH,Pharmacy Stock,GRIFOLS UK LTD,0013015143,1360.00,
Department of Health,East Sussex Hospitals NHS Trust,24/03/2014,STOCK-ASCRIBE EDGH,Pharmacy Stock,CSL BEHRING,0013015144,12555.00,
Department of Health,East Sussex Hospitals NHS Trust,24/03/2014,STOCK-ASCRIBE EDGH,Pharmacy Stock,AMGEN LTD,0013015149,2602.80,
Department of Health,East Sussex Hospitals NHS Trust,24/03/2014,STOCK-ASCRIBE EDGH,Pharmacy Stock,GE HEALTHCARE LTD,0013015151,1306.56,
Department of Health,East Sussex Hospitals NHS Trust,24/03/2014,STOCK-ASCRIBE EDGH,Pharmacy Stock,ROCHE PRODUCTS LTD,0013015154,3893.26,
Department of Health,East Sussex Hospitals NHS Trust,24/03/2014,STOCK-ASCRIBE EDGH,Pharmacy Stock,ROCHE PRODUCTS LTD,0013015155,4437.12,
Department of Health,East Sussex Hospitals NHS Trust,24/03/2014,STOCK-ASCRIBE EDGH,Pharmacy Stock,GILEAD SCIENCES LTD,0013015156,5801.40,
Department of Health,East Sussex Hospitals NHS Trust,24/03/2014,STOCK-ASCRIBE EDGH,Pharmacy Stock,CELGENE LTD,0013015157,10660.80,
Department of Health,East Sussex Hospitals NHS Trust,24/03/2014,STOCK-ASCRIBE EDGH,Pharmacy Stock,AAH PHARMACEUTICALS LTD,0013015160,575.64,
Department of Health,East Sussex Hospitals NHS Trust,24/03/2014,STOCK-ASCRIBE EDGH,Pharmacy Stock,AAH PHARMACEUTICALS LTD,0013015164,734.40,
Department of Health,East Sussex Hospitals NHS Trust,24/03/2014,STOCK-ASCRIBE EDGH,Pharmacy Stock,AAH PHARMACEUTICALS LTD,0013015172,1501.12,
Department of Health,East Sussex Hospitals NHS Trust,24/03/2014,STOCK-ASCRIBE EDGH,Pharmacy Stock,AAH PHARMACEUTICALS LTD,0013015179,1053.36,
Department of Health,East Sussex Hospitals NHS Trust,24/03/2014,STOCK-ASCRIBE EDGH,Pharmacy Stock,AAH PHARMACEUTICALS LTD,0013015191,670.03,
Department of Health,East Sussex Hospitals NHS Trust,24/03/2014,STOCK-ASCRIBE EDGH,Pharmacy Stock,AAH PHARMACEUTICALS LTD,0013015194,567.00,
Department of Health,East Sussex Hospitals NHS Trust,24/03/2014,STOCK-ASCRIBE EDGH,Pharmacy Stock,AAH PHARMACEUTICALS LTD,0013015202,576.44,
Department of Health,East Sussex Hospitals NHS Trust,24/03/2014,STOCK-ASCRIBE EDGH,Pharmacy Stock,AAH PHARMACEUTICALS LTD,0013015206,1621.46,
Department of Health,East Sussex Hospitals NHS Trust,24/03/2014,STOCK-ASCRIBE EDGH,Pharmacy Stock,AAH PHARMACEUTICALS LTD,0013015211,2587.38,
Department of Health,East Sussex Hospitals NHS Trust,24/03/2014,STOCK-ASCRIBE EDGH,Pharmacy Stock,AAH PHARMACEUTICALS LTD,0013015218,4614.48,
Department of Health,East Sussex Hospitals NHS Trust,24/03/2014,STOCK-ASCRIBE EDGH,Pharmacy Stock,AAH PHARMACEUTICALS LTD,0013015219,532.18,
Department of Health,East Sussex Hospitals NHS Trust,24/03/2014,STOCK-ASCRIBE EDGH,Pharmacy Stock,UNIDRUG DISTRIBUTION GROUP LTD,0013015222,945.46,
Department of Health,East Sussex Hospitals NHS Trust,24/03/2014,STOCK-ASCRIBE EDGH,Pharmacy Stock,UNIDRUG DISTRIBUTION GROUP LTD,0013015223,1040.00,
Department of Health,East Sussex Hospitals NHS Trust,24/03/2014,STOCK-ASCRIBE EDGH,Pharmacy Stock,JANSSEN-CILAG LTD,0013015224,11130.00,
Department of Health,East Sussex Hospitals NHS Trust,24/03/2014,STOCK-ASCRIBE EDGH,Pharmacy Stock,ALLIANCE HEALTHCARE (DISTRIBUTION) LTD,0013015226,17530.83,
Department of Health,East Sussex Hospitals NHS Trust,24/03/2014,STOCK-ASCRIBE EDGH,Pharmacy Stock,ALLIANCE HEALTHCARE (DISTRIBUTION) LTD,0013015230,13400.64,
Department of Health,East Sussex Hospitals NHS Trust,24/03/2014,STOCK-ASCRIBE EDGH,Pharmacy Stock,ALLIANCE HEALTHCARE (DISTRIBUTION) LTD,0013015231,1068.00,
Department of Health,East Sussex Hospitals NHS Trust,24/03/2014,STOCK-ASCRIBE EDGH,Pharmacy Stock,CELGENE LTD,0013015232,4958.40,
Department of Health,East Sussex Hospitals NHS Trust,24/03/2014,STOCK-ASCRIBE EDGH,Pharmacy Stock,ALLERGAN LTD,0013015234,3132.00,
Department of Health,East Sussex Hospitals NHS Trust,24/03/2014,STOCK-ASCRIBE EDGH,Pharmacy Stock,ROCHE PRODUCTS LTD,0013015235,4191.00,
Department of Health,East Sussex Hospitals NHS Trust,24/03/2014,STOCK-ASCRIBE EDGH,Pharmacy Stock,ROCHE PRODUCTS LTD,0013015236,5546.40,
Department of Health,East Sussex Hospitals NHS Trust,24/03/2014,STOCK-ASCRIBE EDGH,Pharmacy Stock,BAYER PLC,0013015237,41952.00,
Department of Health,East Sussex Hospitals NHS Trust,24/03/2014,STOCK-ASCRIBE EDGH,Pharmacy Stock,HOSPIRA UK LIMITED,0013015238,954.00,
Department of Health,East Sussex Hospitals NHS Trust,24/03/2014,STOCK-ASCRIBE EDGH,Pharmacy Stock,CSL BEHRING,0013015240,716.70,
Department of Health,East Sussex Hospitals NHS Trust,24/03/2014,STOCK-ASCRIBE EDGH,Pharmacy Stock,ALCON EYE CARE UK LTD,0013015243,1350.00,
Department of Health,East Sussex Hospitals NHS Trust,24/03/2014,STOCK-ASCRIBE EDGH,Pharmacy Stock,AAH PHARMACEUTICALS LTD,0013015247,532.18,
Department of Health,East Sussex Hospitals NHS Trust,24/03/2014,STOCK-ASCRIBE EDGH,Pharmacy Stock,AAH PHARMACEUTICALS LTD,0013015250,4708.23,
Department of Health,East Sussex Hospitals NHS Trust,24/03/2014,STOCK-ASCRIBE EDGH,Pharmacy Stock,AAH PHARMACEUTICALS LTD,0013015256,3093.49,
Department of Health,East Sussex Hospitals NHS Trust,24/03/2014,STOCK-ASCRIBE EDGH,Pharmacy Stock,AAH PHARMACEUTICALS LTD,0013015262,814.99,
Department of Health,East Sussex Hospitals NHS Trust,24/03/2014,STOCK-ASCRIBE EDGH,Pharmacy Stock,AAH PHARMACEUTICALS LTD,0013015264,576.44,
Department of Health,East Sussex Hospitals NHS Trust,24/03/2014,STOCK-ASCRIBE EDGH,Pharmacy Stock,AAH PHARMACEUTICALS LTD,0013015268,567.00,
Department of Health,East Sussex Hospitals NHS Trust,24/03/2014,STOCK-ASCRIBE EDGH,Pharmacy Stock,AAH PHARMACEUTICALS LTD,0013015270,583.09,
Department of Health,East Sussex Hospitals NHS Trust,24/03/2014,STOCK-ASCRIBE EDGH,Pharmacy Stock,AAH PHARMACEUTICALS LTD,0013015274,810.73,
Department of Health,East Sussex Hospitals NHS Trust,24/03/2014,STOCK-ASCRIBE EDGH,Pharmacy Stock,AAH PHARMACEUTICALS LTD,0013015289,1177.06,
Department of Health,East Sussex Hospitals NHS Trust,24/03/2014,STOCK-ASCRIBE EDGH,Pharmacy Stock,AAH PHARMACEUTICALS LTD,0013015295,575.64,
Department of Health,East Sussex Hospitals NHS Trust,24/03/2014,STOCK-ASCRIBE EDGH,Pharmacy Stock,ALLIANCE HEALTHCARE (DISTRIBUTION) LTD,0013015309,512.39,
Department of Health,East Sussex Hospitals NHS Trust,24/03/2014,STOCK-ASCRIBE EDGH,Pharmacy Stock,ALLIANCE HEALTHCARE (DISTRIBUTION) LTD,0013015310,13403.52,
Department of Health,East Sussex Hospitals NHS Trust,24/03/2014,STOCK-ASCRIBE EDGH,Pharmacy Stock,BAXTER HEALTHCARE (BERKSHIRE)LTD,0013015315,840.00,
Department of Health,East Sussex Hospitals NHS Trust,24/03/2014,STOCK-ASCRIBE EDGH,Pharmacy Stock,BAXTER HEALTHCARE (BERKSHIRE)LTD,0013015316,2735.76,
Department of Health,East Sussex Hospitals NHS Trust,24/03/2014,STOCK-ASCRIBE EDGH,Pharmacy Stock,ROCHE PRODUCTS LTD,0013015317,771.65,
Department of Health,East Sussex Hospitals NHS Trust,24/03/2014,STOCK-ASCRIBE EDGH,Pharmacy Stock,AAH PHARMACEUTICALS LTD,0013015322,1114.15,
Department of Health,East Sussex Hospitals NHS Trust,24/03/2014,STOCK-ASCRIBE EDGH,Pharmacy Stock,AAH PHARMACEUTICALS LTD,0013015326,2354.11,
Department of Health,East Sussex Hospitals NHS Trust,24/03/2014,STOCK-ASCRIBE EDGH,Pharmacy Stock,GILEAD SCIENCES LTD,0013015327,3480.84,
Department of Health,East Sussex Hospitals NHS Trust,24/03/2014,STOCK-ASCRIBE EDGH,Pharmacy Stock,CSL BEHRING,0013015328,12555.00,
Department of Health,East Sussex Hospitals NHS Trust,24/03/2014,STOCK-ASCRIBE EDGH,Pharmacy Stock,ROCHE PRODUCTS LTD,0013015329,32598.17,
Department of Health,East Sussex Hospitals NHS Trust,24/03/2014,M&S GENERAL SUPPLIES-OTHER,Planned Care,ARTHROCARE UK LIMITED,0080003843,760.20,
Department of Health,East Sussex Hospitals NHS Trust,24/03/2014,PROSTHESIS - SPINAL,Planned Care,FANNIN (UK) LIMITED,0080003897,858.00,
Department of Health,East Sussex Hospitals NHS Trust,24/03/2014,PROSTHESIS - LENS,Planned Care,ALCON EYE CARE UK LTD,0080003923,1783.20,
Department of Health,East Sussex Hospitals NHS Trust,24/03/2014,PROCEDURE PACKS,Planned Care,ALCON EYE CARE UK LTD,0080003925,2246.40,
Department of Health,East Sussex Hospitals NHS Trust,24/03/2014,M&S GENERAL SUPPLIES-OTHER,Planned Care,ALCON EYE CARE UK LTD,0080003925,7872.00,
Department of Health,East Sussex Hospitals NHS Trust,24/03/2014,PROSTHESES-KNEES,Planned Care,BIOMET UK HEALTHCARE LTD,0080003928,9458.69,
Department of Health,East Sussex Hospitals NHS Trust,24/03/2014,NATIONAL JOINT REGISTRY LEVY,Planned Care,BIOMET UK HEALTHCARE LTD,0080003928,40.01,
Department of Health,East Sussex Hospitals NHS Trust,24/03/2014,PROSTHESIS - LENS,Planned Care,ALCON EYE CARE UK LTD,0080003930,1785.60,
Department of Health,East Sussex Hospitals NHS Trust,24/03/2014,PROSTHESIS - LENS,Planned Care,ALCON EYE CARE UK LTD,0080003931,595.20,
Department of Health,East Sussex Hospitals NHS Trust,24/03/2014,M&S GENERAL SUPPLIES-OTHER,Planned Care,SMITH & NEPHEW ADVANCED SURGICAL DEVICES,0080003935,50.30,
Department of Health,East Sussex Hospitals NHS Trust,24/03/2014,SURGICAL INSTRUMENTS,Planned Care,SMITH & NEPHEW ADVANCED SURGICAL DEVICES,0080003935,34.25,
Department of Health,East Sussex Hospitals NHS Trust,24/03/2014,PROSTHESES-OTHER,Planned Care,SMITH & NEPHEW ADVANCED SURGICAL DEVICES,0080003935,651.16,
Department of Health,East Sussex Hospitals NHS Trust,24/03/2014,M&S GENERAL SUPPLIES-OTHER,Planned Care,STRYKER UK,0080003940,939.60,
Department of Health,East Sussex Hospitals NHS Trust,24/03/2014,SURGICAL INSTRUMENTS,Planned Care,STRYKER UK,0080003940,345.60,
Department of Health,East Sussex Hospitals NHS Trust,24/03/2014,CONTINENCE PRODUCTS,Urgent Care,PAUL HARTMANN LTD,0080003965,65.14,
Department of Health,East Sussex Hospitals NHS Trust,24/03/2014,CONTINENCE PRODUCTS,Urgent Care,PAUL HARTMANN LTD,0080003965,54.76,
Department of Health,East Sussex Hospitals NHS Trust,24/03/2014,CONTINENCE PRODUCTS,Planned Care,PAUL HARTMANN LTD,0080003965,7.58,
Department of Health,East Sussex Hospitals NHS Trust,24/03/2014,CONTINENCE PRODUCTS,Planned Care,PAUL HARTMANN LTD,0080003965,29.85,
Department of Health,East Sussex Hospitals NHS Trust,24/03/2014,CONTINENCE PRODUCTS,Urgent Care,PAUL HARTMANN LTD,0080003965,11.06,
Department of Health,East Sussex Hospitals NHS Trust,24/03/2014,CONTINENCE PRODUCTS,Planned Care,PAUL HARTMANN LTD,0080003965,26.23,
Department of Health,East Sussex Hospitals NHS Trust,24/03/2014,CONTINENCE PRODUCTS,Urgent Care,PAUL HARTMANN LTD,0080003965,58.71,
Department of Health,East Sussex Hospitals NHS Trust,24/03/2014,CONTINENCE PRODUCTS,Urgent Care,PAUL HARTMANN LTD,0080003965,87.48,
Department of Health,East Sussex Hospitals NHS Trust,24/03/2014,CONTINENCE PRODUCTS,Urgent Care,PAUL HARTMANN LTD,0080003965,80.81,
Department of Health,East Sussex Hospitals NHS Trust,24/03/2014,CONTINENCE PRODUCTS,Planned Care,PAUL HARTMANN LTD,0080003965,72.39,
Department of Health,East Sussex Hospitals NHS Trust,24/03/2014,CONTINENCE PRODUCTS,Planned Care,PAUL HARTMANN LTD,0080003965,20.36,
Department of Health,East Sussex Hospitals NHS Trust,24/03/2014,CONTINENCE PRODUCTS,Urgent Care,PAUL HARTMANN LTD,0080003965,29.93,
Department of Health,East Sussex Hospitals NHS Trust,24/03/2014,"PATS APPL - NECK, ARM, HAND",Planned Care,DACEY LIMITED (ORTHOTIX),0080003967,86.76,
Department of Health,East Sussex Hospitals NHS Trust,24/03/2014,PATS APPL - LEG SUPPORTS,Planned Care,DACEY LIMITED (ORTHOTIX),0080003967,368.64,
Department of Health,East Sussex Hospitals NHS Trust,24/03/2014,PATS APPL - FOOTWARE,Planned Care,DACEY LIMITED (ORTHOTIX),0080003967,161.28,
Department of Health,East Sussex Hospitals NHS Trust,24/03/2014,PROSTHESIS - LENS,Planned Care,ALCON EYE CARE UK LTD,0080003986,1190.40,
Department of Health,East Sussex Hospitals NHS Trust,24/03/2014,ARTHROSCOPY INSTRUMENTS,Planned Care,SMITH & NEPHEW HEALTHCARE LTD,0080003989,581.54,
Department of Health,East Sussex Hospitals NHS Trust,24/03/2014,SURGICAL INSTRUMENTS,Planned Care,SMITH & NEPHEW ADVANCED SURGICAL DEVICES,0080003990,62.86,
Department of Health,East Sussex Hospitals NHS Trust,24/03/2014,PROSTHESES-OTHER,Planned Care,SMITH & NEPHEW ADVANCED SURGICAL DEVICES,0080003990,1385.86,
Department of Health,East Sussex Hospitals NHS Trust,24/03/2014,PROSTHESES-HIP,Planned Care,JOHNSON & JOHNSON MEDICAL LTD,0080004003,6496.62,
Department of Health,East Sussex Hospitals NHS Trust,24/03/2014,NATIONAL JOINT REGISTRY LEVY,Planned Care,JOHNSON & JOHNSON MEDICAL LTD,0080004003,40.01,
Department of Health,East Sussex Hospitals NHS Trust,24/03/2014,PROSTHESES-HIP,Planned Care,JOHNSON & JOHNSON MEDICAL LTD,0080004005,2845.12,
Department of Health,East Sussex Hospitals NHS Trust,24/03/2014,PROSTHESES-HIP,Planned Care,JOHNSON & JOHNSON MEDICAL LTD,0080004006,711.28,
Department of Health,East Sussex Hospitals NHS Trust,24/03/2014,ACL LIGAMENT REPAIR INSTRUMENT,Planned Care,SMITH & NEPHEW ADVANCED SURGICAL DEVICES,0080004007,119.95,
Department of Health,East Sussex Hospitals NHS Trust,24/03/2014,PROSTHESES-OTHER,Planned Care,SMITH & NEPHEW ADVANCED SURGICAL DEVICES,0080004007,463.80,
Department of Health,East Sussex Hospitals NHS Trust,24/03/2014,PROSTHESES-HIP,Planned Care,JOHNSON & JOHNSON MEDICAL LTD,0080004010,2133.84,
Department of Health,East Sussex Hospitals NHS Trust,24/03/2014,M&S GENERAL SUPPLIES-OTHER,Planned Care,JOHNSON & JOHNSON MEDICAL LTD,0080004011,506.88,
Department of Health,East Sussex Hospitals NHS Trust,24/03/2014,PROSTHESES-HIP,Planned Care,JOHNSON & JOHNSON MEDICAL LTD,0080004012,2845.12,
Department of Health,East Sussex Hospitals NHS Trust,24/03/2014,PROSTHESES-HIP,Planned Care,JOHNSON & JOHNSON MEDICAL LTD,0080004013,5246.06,
Department of Health,East Sussex Hospitals NHS Trust,24/03/2014,PROCEDURE PACKS,Urgent Care,ARCROYAL LTD,0080004014,969.60,
Department of Health,East Sussex Hospitals NHS Trust,24/03/2014,SURGICAL INSTRUMENTS,Planned Care,SMITH & NEPHEW ADVANCED SURGICAL DEVICES,0080004018,732.60,
Department of Health,East Sussex Hospitals NHS Trust,24/03/2014,PROSTHESES-HIP,Planned Care,JOHNSON & JOHNSON MEDICAL LTD,0080004020,5803.15,
Department of Health,East Sussex Hospitals NHS Trust,24/03/2014,PROSTHESES-HIP,Planned Care,JOHNSON & JOHNSON MEDICAL LTD,0080004021,711.28,
Department of Health,East Sussex Hospitals NHS Trust,24/03/2014,PROSTHESES-HIP,Planned Care,JOHNSON & JOHNSON MEDICAL LTD,0080004022,711.28,
Department of Health,East Sussex Hospitals NHS Trust,24/03/2014,PROSTHESES-HIP,Planned Care,JOINT REPLACEMENT INSTRUMENTATION  LTD,0080004035,571.20,
Department of Health,East Sussex Hospitals NHS Trust,24/03/2014,PROSTHESES-HIP,Planned Care,JOINT REPLACEMENT INSTRUMENTATION  LTD,0080004036,1454.40,
Department of Health,East Sussex Hospitals NHS Trust,24/03/2014,SURGICAL INSTRUMENTS,Planned Care,ARTHREX LTD,0080004043,1314.00,
Department of Health,East Sussex Hospitals NHS Trust,24/03/2014,M&S GENERAL SUPPLIES-OTHER,Planned Care,STRYKER UK,0080004045,858.60,
Department of Health,East Sussex Hospitals NHS Trust,24/03/2014,SURGICAL INSTRUMENTS,Planned Care,STRYKER UK,0080004045,345.60,
Department of Health,East Sussex Hospitals NHS Trust,24/03/2014,PROSTHESES-KNEES,Planned Care,BIOMET UK HEALTHCARE LTD,0080004047,2001.81,
Department of Health,East Sussex Hospitals NHS Trust,24/03/2014,NATIONAL JOINT REGISTRY LEVY,Planned Care,BIOMET UK HEALTHCARE LTD,0080004047,20.00,
Department of Health,East Sussex Hospitals NHS Trust,24/03/2014,PROSTHESES-OTHER,Planned Care,JOHNSON & JOHNSON MEDICAL LTD,0080004050,1626.74,
Department of Health,East Sussex Hospitals NHS Trust,24/03/2014,STAPLING DEVICES,Planned Care,COVIDIEN (UK) COMMERCIAL LTD,0080004052,244.14,
Department of Health,East Sussex Hospitals NHS Trust,24/03/2014,M&S GENERAL SUPPLIES-OTHER,Planned Care,COVIDIEN (UK) COMMERCIAL LTD,0080004052,2222.40,
Department of Health,East Sussex Hospitals NHS Trust,24/03/2014,M&S GENERAL SUPPLIES-OTHER,Planned Care,STRYKER UK,0080004056,128.00,
Department of Health,East Sussex Hospitals NHS Trust,24/03/2014,PROSTHESES-HIP,Planned Care,STRYKER UK,0080004056,1549.80,
Department of Health,East Sussex Hospitals NHS Trust,24/03/2014,ELECTRO MEDICAL EQUIPMENT,Planned Care,LINA MEDICAL UK LTD,0080004059,936.00,
Department of Health,East Sussex Hospitals NHS Trust,24/03/2014,M&S GENERAL SUPPLIES-OTHER,Planned Care,SMITH & NEPHEW HEALTHCARE LTD,0080004060,746.28,
Department of Health,East Sussex Hospitals NHS Trust,24/03/2014,PROSTHESES-KNEES,Planned Care,BIOMET UK HEALTHCARE LTD,0080004070,6762.50,
Department of Health,East Sussex Hospitals NHS Trust,24/03/2014,NATIONAL JOINT REGISTRY LEVY,Planned Care,BIOMET UK HEALTHCARE LTD,0080004070,40.01,
Department of Health,East Sussex Hospitals NHS Trust,24/03/2014,SURGICAL INSTRUMENTS,Planned Care,LINA MEDICAL UK LTD,0080004071,485.76,
Department of Health,East Sussex Hospitals NHS Trust,24/03/2014,VAGINAL/HYSTERECT REPAIR INSTR,Planned Care,LINA MEDICAL UK LTD,0080004071,540.00,
Department of Health,East Sussex Hospitals NHS Trust,24/03/2014,SURGICAL INSTRUMENTS,Planned Care,JOHNSON & JOHNSON MEDICAL LTD,0080004074,194.00,
Department of Health,East Sussex Hospitals NHS Trust,24/03/2014,PROSTHESES-OTHER,Planned Care,JOHNSON & JOHNSON MEDICAL LTD,0080004074,1702.22,
Department of Health,East Sussex Hospitals NHS Trust,24/03/2014,M&S GENERAL SUPPLIES-OTHER,Planned Care,COVIDIEN (UK) COMMERCIAL LTD,0080004078,192.00,
Department of Health,East Sussex Hospitals NHS Trust,24/03/2014,ELECTRO MEDICAL EQUIPMENT,Planned Care,COVIDIEN (UK) COMMERCIAL LTD,0080004078,336.00,
Department of Health,East Sussex Hospitals NHS Trust,24/03/2014,PROSTHESES-OTHER,Planned Care,STRYKER UK,0080004082,2010.12,
Department of Health,East Sussex Hospitals NHS Trust,24/03/2014,M&S GENERAL SUPPLIES-OTHER,Planned Care,SMITH & NEPHEW ADVANCED SURGICAL DEVICES,0080004085,16.66,
Department of Health,East Sussex Hospitals NHS Trust,24/03/2014,SURGICAL INSTRUMENTS,Planned Care,SMITH & NEPHEW ADVANCED SURGICAL DEVICES,0080004085,310.80,
